DepartmentFamily,Entity,Date,ExpenseType,ExpenseArea,Supplier,TransactionNumber,Amount,VAT Registration No
BEIS,The Insolvency Service,01/06/2018,Other Costs,Criminal Enforcement Team,"Department For Business, Energy And Industrial Strategy (Be)",300000676,290.00,
BEIS,The Insolvency Service,01/06/2018,Legal Costs,Investigations & Enforcement Services,Mendip Media Group Ltd (Now Trading As Appen) - (Transcri),300000281,196.60,609546425
BEIS,The Insolvency Service,01/06/2018,Accomodation,Finance & Commercial,Department For Work & Pensions,300000871,658.85,888815554
BEIS,The Insolvency Service,01/06/2018,Investigation & Enforcement Costs,Criminal Enforcement Team,KNIGHTS PROFESSIONAL SERVICES LIMITED,300001077,2404.17,208827104
BEIS,The Insolvency Service,01/06/2018,Investigation & Enforcement Costs,Criminal Enforcement Team,Tnt Uk Ltd,300000459,127.36,354715057
BEIS,The Insolvency Service,01/06/2018,Insolvency Case Related Costs,Official Receiver Services,Hpi Ltd,300000539,92.77,942407139
BEIS,The Insolvency Service,01/06/2018,Investigation & Enforcement Costs,Criminal Enforcement Team,Freers Askew Bunting Solicitors,300000936,318.70,200979807
BEIS,The Insolvency Service,01/06/2018,Insolvency Case Related Costs,Official Receiver Services,The Stationery Office Ltd,300000742,149.16,662774703
BEIS,The Insolvency Service,01/06/2018,Insolvency Case Related Costs,Official Receiver Services,The Stationery Office Ltd,300000738,149.16,662774703
BEIS,The Insolvency Service,01/06/2018,Insolvency Case Related Costs,Official Receiver Services,The Stationery Office Ltd,300000741,223.74,662774703
BEIS,The Insolvency Service,01/06/2018,Investigation & Enforcement Costs,Investigations & Enforcement Services,Clarke Willmott Solicitors,300000943,216.65,129913060
BEIS,The Insolvency Service,01/06/2018,Insolvency Case Related Costs,Official Receiver Services,The Stationery Office Ltd,300000739,74.58,662774703
BEIS,The Insolvency Service,01/06/2018,Investigation & Enforcement Costs,Investigations & Enforcement Services,Tnt Uk Ltd,300000776,74.32,354715057
BEIS,The Insolvency Service,01/06/2018,Insolvency Case Related Costs,Official Receiver Services,The Stationery Office Ltd,300000740,223.74,662774703
BEIS,The Insolvency Service,01/06/2018,Investigation & Enforcement Costs,Investigations & Enforcement Services,Insolvency Service,300001025,40000.00,
BEIS,The Insolvency Service,01/06/2018,Accomodation,Finance & Commercial,Cbre Limited,300000873,3630.66,
BEIS,The Insolvency Service,01/06/2018,Insolvency Case Related Costs,Official Receiver Services,The Stationery Office Ltd,300000994,74.58,662774703
BEIS,The Insolvency Service,01/06/2018,Insolvency Case Related Costs,Official Receiver Services,The Stationery Office Ltd,300000995,149.16,662774703
BEIS,The Insolvency Service,01/06/2018,Accomodation,Finance & Commercial,"Department For Business, Energy And Industrial Strategy (Be)",300000874,8336.00,
BEIS,The Insolvency Service,01/06/2018,Accomodation,Finance & Commercial,"Department For Business, Energy And Industrial Strategy (Be)",300000875,568.53,
BEIS,The Insolvency Service,01/06/2018,Investigation & Enforcement Costs,Investigations & Enforcement Services,Dwf,300001287,7764.50,
BEIS,The Insolvency Service,01/06/2018,Training Costs,Investigations & Enforcement Services,Kpmg Llp,300000879,149.00,791788859
BEIS,The Insolvency Service,01/06/2018,Investigation & Enforcement Costs,Investigations & Enforcement Services,Dwf,300001278,13734.04,
BEIS,The Insolvency Service,01/06/2018,Investigation & Enforcement Costs,Investigations & Enforcement Services,Dwf,300001288,5761.74,
BEIS,The Insolvency Service,01/06/2018,Insolvency Case Related Costs,Official Receiver Services,Hpi Ltd,300001118,80.00,942407139
BEIS,The Insolvency Service,01/06/2018,Agency Costs,Information & Technology,Capita Business Services Limited,300000180,2230.10,618184140
BEIS,The Insolvency Service,01/06/2018,Investigation & Enforcement Costs,Investigations & Enforcement Services,Howes Percival,30000004,-96449.87,119523573
BEIS,The Insolvency Service,01/06/2018,Investigation & Enforcement Costs,Investigations & Enforcement Services,Howes Percival,300001047,96449.87,119523573
BEIS,The Insolvency Service,01/06/2018,Investigation & Enforcement Costs,Investigations & Enforcement Services,Gowling Wragge Lawrence Graham  & Co,300001030,26701.65,858698838
BEIS,The Insolvency Service,01/06/2018,Investigation & Enforcement Costs,Investigations & Enforcement Services,Gowling Wragge Lawrence Graham  & Co,300001031,25074.26,858698838
BEIS,The Insolvency Service,01/06/2018,Investigation & Enforcement Costs,Investigations & Enforcement Services,Gowling Wragge Lawrence Graham  & Co,300001032,88763.04,858698838
BEIS,The Insolvency Service,01/06/2018,Investigation & Enforcement Costs,Investigations & Enforcement Services,Dwf Solicitors,300001011,23977.32,
BEIS,The Insolvency Service,01/06/2018,Investigation & Enforcement Costs,Investigations & Enforcement Services,Dwf Solicitors,300001029,21702.24,
BEIS,The Insolvency Service,01/06/2018,Investigation & Enforcement Costs,Investigations & Enforcement Services,Shepherd & Wedderburn,300001022,7066.14,
BEIS,The Insolvency Service,01/06/2018,Investigation & Enforcement Costs,Investigations & Enforcement Services,Shepherd & Wedderburn,300001024,92519.91,
BEIS,The Insolvency Service,01/06/2018,Investigation & Enforcement Costs,Investigations & Enforcement Services,Shepherd & Wedderburn,300001014,9527.22,890559386
BEIS,The Insolvency Service,01/06/2018,Investigation & Enforcement Costs,Investigations & Enforcement Services,Womble Bond Dickinson,300001027,2671.15,123392627
BEIS,The Insolvency Service,01/06/2018,Travel & Subsistence,Investigations & Enforcement Services,Staff Payment,900001244,14.95,
BEIS,The Insolvency Service,01/06/2018,Travel & Subsistence,Investigations & Enforcement Services,Staff Payment,900001244,4.50,
BEIS,The Insolvency Service,01/06/2018,Travel & Subsistence,Investigations & Enforcement Services,Staff Payment,900001244,5.00,
BEIS,The Insolvency Service,01/06/2018,Travel & Subsistence,Investigations & Enforcement Services,Staff Payment,900001064,3.85,
BEIS,The Insolvency Service,01/06/2018,Travel & Subsistence,Investigations & Enforcement Services,Staff Payment,900001064,12.00,
BEIS,The Insolvency Service,01/06/2018,Travel & Subsistence,Business Service Division,Staff Payment,900001097,4.20,
BEIS,The Insolvency Service,01/06/2018,Travel & Subsistence,Business Service Division,Staff Payment,900001210,5.00,
BEIS,The Insolvency Service,01/06/2018,Travel & Subsistence,Business Service Division,Staff Payment,900001210,20.00,
BEIS,The Insolvency Service,01/06/2018,Travel & Subsistence,Business Service Division,Staff Payment,900001210,5.00,
BEIS,The Insolvency Service,01/06/2018,Travel & Subsistence,Business Service Division,Staff Payment,900001210,18.40,
BEIS,The Insolvency Service,01/06/2018,Travel & Subsistence,Chief Executive Office,Staff Payment,900001286,5.00,
BEIS,The Insolvency Service,01/06/2018,Travel & Subsistence,Official Receiver Services,Staff Payment,900001288,5.00,
BEIS,The Insolvency Service,01/06/2018,Travel & Subsistence,Investigations & Enforcement Services,Staff Payment,900001260,7.00,
BEIS,The Insolvency Service,01/06/2018,Travel & Subsistence,Investigations & Enforcement Services,Staff Payment,900001166,7.00,
BEIS,The Insolvency Service,01/06/2018,Travel & Subsistence,Strategy & Change,Staff Payment,900000465,3.80,
BEIS,The Insolvency Service,01/06/2018,Travel & Subsistence,Strategy & Change,Staff Payment,900000465,4.10,
BEIS,The Insolvency Service,01/06/2018,Travel & Subsistence,Business Service Division,Staff Payment,900001066,5.00,
BEIS,The Insolvency Service,01/06/2018,Travel & Subsistence,Business Service Division,Staff Payment,900001112,4.60,
BEIS,The Insolvency Service,01/06/2018,Travel & Subsistence,Business Service Division,Staff Payment,900001117,5.00,
BEIS,The Insolvency Service,01/06/2018,Travel & Subsistence,Business Service Division,Staff Payment,900001117,13.95,
BEIS,The Insolvency Service,01/06/2018,Travel & Subsistence,Business Service Division,Staff Payment,900001117,5.00,
BEIS,The Insolvency Service,01/06/2018,Travel & Subsistence,Business Service Division,Staff Payment,900001117,8.00,
BEIS,The Insolvency Service,01/06/2018,Travel & Subsistence,Business Service Division,Staff Payment,900001117,5.00,
BEIS,The Insolvency Service,01/06/2018,Travel & Subsistence,Business Service Division,Staff Payment,900001117,13.00,
BEIS,The Insolvency Service,01/06/2018,Travel & Subsistence,Business Service Division,Staff Payment,900001117,5.00,
BEIS,The Insolvency Service,01/06/2018,Travel & Subsistence,People & Capability,Staff Payment,900000598,47.68,
BEIS,The Insolvency Service,01/06/2018,Travel & Subsistence,Official Receiver Services,Staff Payment,900001182,2.99,
BEIS,The Insolvency Service,01/06/2018,Travel & Subsistence,Official Receiver Services,Staff Payment,900001182,4.00,
BEIS,The Insolvency Service,01/06/2018,Travel & Subsistence,People & Capability,Staff Payment,900001183,5.00,
BEIS,The Insolvency Service,01/06/2018,Travel & Subsistence,People & Capability,Staff Payment,900001183,3.50,
BEIS,The Insolvency Service,01/06/2018,Travel & Subsistence,People & Capability,Staff Payment,900001183,4.71,
BEIS,The Insolvency Service,01/06/2018,Travel & Subsistence,People & Capability,Staff Payment,900001183,6.65,
BEIS,The Insolvency Service,01/06/2018,Travel & Subsistence,Business Service Division,Staff Payment,900001201,20.00,
BEIS,The Insolvency Service,01/06/2018,Travel & Subsistence,Chief Executive Office,Staff Payment,900001248,5.00,
BEIS,The Insolvency Service,01/06/2018,Travel & Subsistence,Chief Executive Office,Staff Payment,900001249,15.00,
BEIS,The Insolvency Service,01/06/2018,Travel & Subsistence,Investigations & Enforcement Services,Staff Payment,900001231,12.00,
BEIS,The Insolvency Service,01/06/2018,Travel & Subsistence,Investigations & Enforcement Services,Staff Payment,900001231,24.00,
BEIS,The Insolvency Service,01/06/2018,Travel & Subsistence,Investigations & Enforcement Services,Staff Payment,900001231,7.00,
BEIS,The Insolvency Service,01/06/2018,Travel & Subsistence,Investigations & Enforcement Services,Staff Payment,900001231,8.00,
BEIS,The Insolvency Service,01/06/2018,Travel & Subsistence,Investigations & Enforcement Services,Staff Payment,900001231,5.00,
BEIS,The Insolvency Service,01/06/2018,Travel & Subsistence,Investigations & Enforcement Services,Staff Payment,900001231,8.84,
BEIS,The Insolvency Service,01/06/2018,Travel & Subsistence,Investigations & Enforcement Services,Staff Payment,900001231,5.00,
BEIS,The Insolvency Service,01/06/2018,Travel & Subsistence,Investigations & Enforcement Services,Staff Payment,900001231,13.50,
BEIS,The Insolvency Service,01/06/2018,Travel & Subsistence,Investigations & Enforcement Services,Staff Payment,900001231,25.00,
BEIS,The Insolvency Service,01/06/2018,Travel & Subsistence,Investigations & Enforcement Services,Staff Payment,900001231,5.00,
BEIS,The Insolvency Service,01/06/2018,Travel & Subsistence,Investigations & Enforcement Services,Staff Payment,900001231,10.00,
BEIS,The Insolvency Service,01/06/2018,Travel & Subsistence,Investigations & Enforcement Services,Staff Payment,900001231,15.00,
BEIS,The Insolvency Service,01/06/2018,Travel & Subsistence,Investigations & Enforcement Services,Staff Payment,900001231,5.00,
BEIS,The Insolvency Service,01/06/2018,Travel & Subsistence,Investigations & Enforcement Services,Staff Payment,900001231,5.00,
BEIS,The Insolvency Service,01/06/2018,Travel & Subsistence,Investigations & Enforcement Services,Staff Payment,900001231,5.00,
BEIS,The Insolvency Service,01/06/2018,Travel & Subsistence,Investigations & Enforcement Services,Staff Payment,900001231,15.00,
BEIS,The Insolvency Service,01/06/2018,Travel & Subsistence,Investigations & Enforcement Services,Staff Payment,900001231,10.00,
BEIS,The Insolvency Service,01/06/2018,Travel & Subsistence,Investigations & Enforcement Services,Staff Payment,900001231,10.50,
BEIS,The Insolvency Service,01/06/2018,Travel & Subsistence,Investigations & Enforcement Services,Staff Payment,900001231,5.00,
BEIS,The Insolvency Service,01/06/2018,Travel & Subsistence,Investigations & Enforcement Services,Staff Payment,900001231,15.00,
BEIS,The Insolvency Service,01/06/2018,Travel & Subsistence,Investigations & Enforcement Services,Staff Payment,900001231,5.00,
BEIS,The Insolvency Service,01/06/2018,Travel & Subsistence,Investigations & Enforcement Services,Staff Payment,900001231,10.00,
BEIS,The Insolvency Service,01/06/2018,Travel & Subsistence,Investigations & Enforcement Services,Staff Payment,900001231,15.00,
BEIS,The Insolvency Service,01/06/2018,Travel & Subsistence,Investigations & Enforcement Services,Staff Payment,900001231,5.00,
BEIS,The Insolvency Service,01/06/2018,Travel & Subsistence,Investigations & Enforcement Services,Staff Payment,900001220,16.20,
BEIS,The Insolvency Service,01/06/2018,Travel & Subsistence,Investigations & Enforcement Services,Staff Payment,900001220,81.00,
BEIS,The Insolvency Service,01/06/2018,Travel & Subsistence,Investigations & Enforcement Services,Staff Payment,900001220,70.20,
BEIS,The Insolvency Service,01/06/2018,Travel & Subsistence,Investigations & Enforcement Services,Staff Payment,900001220,7.20,
BEIS,The Insolvency Service,01/06/2018,Travel & Subsistence,Investigations & Enforcement Services,Staff Payment,900001220,19.80,
BEIS,The Insolvency Service,01/06/2018,Travel & Subsistence,Investigations & Enforcement Services,Staff Payment,900001220,24.00,
BEIS,The Insolvency Service,01/06/2018,Travel & Subsistence,Investigations & Enforcement Services,Staff Payment,900001220,16.00,
BEIS,The Insolvency Service,01/06/2018,Travel & Subsistence,Investigations & Enforcement Services,Staff Payment,900001220,9.00,
BEIS,The Insolvency Service,01/06/2018,Travel & Subsistence,Investigations & Enforcement Services,Staff Payment,900001220,24.00,
BEIS,The Insolvency Service,01/06/2018,Travel & Subsistence,Investigations & Enforcement Services,Staff Payment,900001220,5.00,
BEIS,The Insolvency Service,01/06/2018,Travel & Subsistence,Investigations & Enforcement Services,Staff Payment,900001220,5.00,
BEIS,The Insolvency Service,01/06/2018,Travel & Subsistence,Investigations & Enforcement Services,Staff Payment,900001220,4.40,
BEIS,The Insolvency Service,01/06/2018,Travel & Subsistence,Investigations & Enforcement Services,Staff Payment,900001220,5.00,
BEIS,The Insolvency Service,01/06/2018,Travel & Subsistence,Investigations & Enforcement Services,Staff Payment,900001220,3.50,
BEIS,The Insolvency Service,01/06/2018,Travel & Subsistence,Investigations & Enforcement Services,Staff Payment,900001220,39.60,
BEIS,The Insolvency Service,01/06/2018,Travel & Subsistence,Investigations & Enforcement Services,Staff Payment,900001250,5.00,
BEIS,The Insolvency Service,01/06/2018,Travel & Subsistence,Investigations & Enforcement Services,Staff Payment,900001250,13.50,
BEIS,The Insolvency Service,01/06/2018,Travel & Subsistence,Investigations & Enforcement Services,Staff Payment,900001250,8.00,
BEIS,The Insolvency Service,01/06/2018,Travel & Subsistence,Investigations & Enforcement Services,Staff Payment,900001250,3.54,
BEIS,The Insolvency Service,01/06/2018,Travel & Subsistence,Investigations & Enforcement Services,Staff Payment,900000650,85.95,
BEIS,The Insolvency Service,01/06/2018,Travel & Subsistence,Investigations & Enforcement Services,Staff Payment,900000650,103.50,
BEIS,The Insolvency Service,01/06/2018,Travel & Subsistence,Investigations & Enforcement Services,Staff Payment,900000650,15.75,
BEIS,The Insolvency Service,01/06/2018,Travel & Subsistence,Investigations & Enforcement Services,Staff Payment,900000650,131.85,
BEIS,The Insolvency Service,01/06/2018,Travel & Subsistence,Investigations & Enforcement Services,Staff Payment,900000650,5.00,
BEIS,The Insolvency Service,01/06/2018,Travel & Subsistence,Investigations & Enforcement Services,Staff Payment,900000650,22.78,
BEIS,The Insolvency Service,01/06/2018,Travel & Subsistence,Investigations & Enforcement Services,Staff Payment,900000650,4.50,
BEIS,The Insolvency Service,01/06/2018,Travel & Subsistence,Investigations & Enforcement Services,Staff Payment,900000650,103.50,
BEIS,The Insolvency Service,01/06/2018,Travel & Subsistence,Investigations & Enforcement Services,Staff Payment,900000647,76.50,
BEIS,The Insolvency Service,01/06/2018,Travel & Subsistence,Investigations & Enforcement Services,Staff Payment,900000647,75.60,
BEIS,The Insolvency Service,01/06/2018,Travel & Subsistence,Investigations & Enforcement Services,Staff Payment,900000647,10.00,
BEIS,The Insolvency Service,01/06/2018,Travel & Subsistence,Investigations & Enforcement Services,Staff Payment,900000647,28.80,
BEIS,The Insolvency Service,01/06/2018,Travel & Subsistence,Investigations & Enforcement Services,Staff Payment,900000647,1.77,
BEIS,The Insolvency Service,01/06/2018,Travel & Subsistence,Investigations & Enforcement Services,Staff Payment,900000647,5.60,
BEIS,The Insolvency Service,01/06/2018,Travel & Subsistence,Investigations & Enforcement Services,Staff Payment,900000647,63.00,
BEIS,The Insolvency Service,01/06/2018,Travel & Subsistence,Investigations & Enforcement Services,Staff Payment,900000647,5.00,
BEIS,The Insolvency Service,01/06/2018,Travel & Subsistence,Investigations & Enforcement Services,Staff Payment,900001300,97.20,
BEIS,The Insolvency Service,01/06/2018,Travel & Subsistence,Investigations & Enforcement Services,Staff Payment,900001300,21.00,
BEIS,The Insolvency Service,01/06/2018,Travel & Subsistence,Investigations & Enforcement Services,Staff Payment,900001300,2.10,
BEIS,The Insolvency Service,01/06/2018,Travel & Subsistence,Investigations & Enforcement Services,Staff Payment,900001300,3.00,
BEIS,The Insolvency Service,01/06/2018,Travel & Subsistence,Investigations & Enforcement Services,Staff Payment,900001300,5.00,
BEIS,The Insolvency Service,01/06/2018,Travel & Subsistence,Investigations & Enforcement Services,Staff Payment,900001300,4.65,
BEIS,The Insolvency Service,01/06/2018,Travel & Subsistence,Investigations & Enforcement Services,Staff Payment,900001300,4.75,
BEIS,The Insolvency Service,01/06/2018,Travel & Subsistence,Investigations & Enforcement Services,Staff Payment,900001300,81.00,
BEIS,The Insolvency Service,01/06/2018,Travel & Subsistence,Investigations & Enforcement Services,Staff Payment,900001300,5.00,
BEIS,The Insolvency Service,01/06/2018,Travel & Subsistence,Investigations & Enforcement Services,Staff Payment,900001300,6.10,
BEIS,The Insolvency Service,01/06/2018,Travel & Subsistence,Investigations & Enforcement Services,Staff Payment,900001300,9.90,
BEIS,The Insolvency Service,01/06/2018,Travel & Subsistence,Investigations & Enforcement Services,Staff Payment,900001300,21.60,
BEIS,The Insolvency Service,01/06/2018,Travel & Subsistence,Investigations & Enforcement Services,Staff Payment,900001300,10.80,
BEIS,The Insolvency Service,01/06/2018,Travel & Subsistence,Investigations & Enforcement Services,Staff Payment,900001300,4.20,
BEIS,The Insolvency Service,01/06/2018,Travel & Subsistence,Investigations & Enforcement Services,Staff Payment,900001300,10.80,
BEIS,The Insolvency Service,01/06/2018,Travel & Subsistence,Investigations & Enforcement Services,Staff Payment,900001300,5.00,
BEIS,The Insolvency Service,01/06/2018,Travel & Subsistence,Investigations & Enforcement Services,Staff Payment,900001300,3.50,
BEIS,The Insolvency Service,01/06/2018,Travel & Subsistence,Investigations & Enforcement Services,Staff Payment,900001300,5.00,
BEIS,The Insolvency Service,01/06/2018,Travel & Subsistence,Investigations & Enforcement Services,Staff Payment,900001300,15.00,
BEIS,The Insolvency Service,01/06/2018,Travel & Subsistence,Investigations & Enforcement Services,Staff Payment,900001300,5.00,
BEIS,The Insolvency Service,01/06/2018,Travel & Subsistence,Investigations & Enforcement Services,Staff Payment,900001300,32.40,
BEIS,The Insolvency Service,01/06/2018,Travel & Subsistence,Investigations & Enforcement Services,Staff Payment,900000690,13.50,
BEIS,The Insolvency Service,01/06/2018,Travel & Subsistence,Investigations & Enforcement Services,Staff Payment,900000690,13.50,
BEIS,The Insolvency Service,01/06/2018,Travel & Subsistence,Investigations & Enforcement Services,Staff Payment,900000690,11.50,
BEIS,The Insolvency Service,01/06/2018,Travel & Subsistence,Investigations & Enforcement Services,Staff Payment,900000690,13.50,
BEIS,The Insolvency Service,01/06/2018,Travel & Subsistence,Investigations & Enforcement Services,Staff Payment,900000690,11.50,
BEIS,The Insolvency Service,01/06/2018,Travel & Subsistence,Investigations & Enforcement Services,Staff Payment,900000690,13.50,
BEIS,The Insolvency Service,01/06/2018,Travel & Subsistence,Investigations & Enforcement Services,Staff Payment,900000690,11.50,
BEIS,The Insolvency Service,01/06/2018,Travel & Subsistence,Investigations & Enforcement Services,Staff Payment,900000690,11.50,
BEIS,The Insolvency Service,01/06/2018,Travel & Subsistence,Investigations & Enforcement Services,Staff Payment,900000690,13.50,
BEIS,The Insolvency Service,01/06/2018,Travel & Subsistence,Investigations & Enforcement Services,Staff Payment,900000690,46.00,
BEIS,The Insolvency Service,01/06/2018,Travel & Subsistence,Investigations & Enforcement Services,Staff Payment,900000690,11.50,
BEIS,The Insolvency Service,01/06/2018,Travel & Subsistence,Investigations & Enforcement Services,Staff Payment,900000690,13.50,
BEIS,The Insolvency Service,01/06/2018,Travel & Subsistence,Investigations & Enforcement Services,Staff Payment,900000690,13.50,
BEIS,The Insolvency Service,01/06/2018,Travel & Subsistence,Investigations & Enforcement Services,Staff Payment,900000904,20.70,
BEIS,The Insolvency Service,01/06/2018,Travel & Subsistence,Investigations & Enforcement Services,Staff Payment,900001230,71.10,
BEIS,The Insolvency Service,01/06/2018,Travel & Subsistence,Investigations & Enforcement Services,Staff Payment,900001230,36.00,
BEIS,The Insolvency Service,01/06/2018,Travel & Subsistence,Investigations & Enforcement Services,Staff Payment,900001230,26.10,
BEIS,The Insolvency Service,01/06/2018,Travel & Subsistence,Investigations & Enforcement Services,Staff Payment,900001230,91.80,
BEIS,The Insolvency Service,01/06/2018,Travel & Subsistence,Investigations & Enforcement Services,Staff Payment,900001230,5.60,
BEIS,The Insolvency Service,01/06/2018,Travel & Subsistence,Investigations & Enforcement Services,Staff Payment,900001230,5.00,
BEIS,The Insolvency Service,01/06/2018,Travel & Subsistence,Investigations & Enforcement Services,Staff Payment,900001230,5.00,
BEIS,The Insolvency Service,01/06/2018,Travel & Subsistence,Investigations & Enforcement Services,Staff Payment,900001230,5.00,
BEIS,The Insolvency Service,01/06/2018,Travel & Subsistence,Investigations & Enforcement Services,Staff Payment,900001230,9.20,
BEIS,The Insolvency Service,01/06/2018,Travel & Subsistence,Investigations & Enforcement Services,Staff Payment,900000651,4.80,
BEIS,The Insolvency Service,01/06/2018,Travel & Subsistence,Investigations & Enforcement Services,Staff Payment,900000651,6.00,
BEIS,The Insolvency Service,01/06/2018,Travel & Subsistence,Investigations & Enforcement Services,Staff Payment,900000651,3.79,
BEIS,The Insolvency Service,01/06/2018,Travel & Subsistence,Investigations & Enforcement Services,Staff Payment,900000651,9.45,
BEIS,The Insolvency Service,01/06/2018,Travel & Subsistence,Investigations & Enforcement Services,Staff Payment,900000651,5.00,
BEIS,The Insolvency Service,01/06/2018,Travel & Subsistence,Investigations & Enforcement Services,Staff Payment,900000651,5.00,
BEIS,The Insolvency Service,01/06/2018,Travel & Subsistence,Investigations & Enforcement Services,Staff Payment,900000651,10.00,
BEIS,The Insolvency Service,01/06/2018,Travel & Subsistence,Investigations & Enforcement Services,Staff Payment,900000651,5.00,
BEIS,The Insolvency Service,01/06/2018,Travel & Subsistence,Investigations & Enforcement Services,Staff Payment,900000651,55.80,
BEIS,The Insolvency Service,01/06/2018,Travel & Subsistence,Investigations & Enforcement Services,Staff Payment,900000651,53.10,
BEIS,The Insolvency Service,01/06/2018,Travel & Subsistence,Investigations & Enforcement Services,Staff Payment,900000651,25.00,
BEIS,The Insolvency Service,01/06/2018,Travel & Subsistence,Investigations & Enforcement Services,Staff Payment,900000651,6.30,
BEIS,The Insolvency Service,01/06/2018,Travel & Subsistence,Investigations & Enforcement Services,Staff Payment,900000651,15.00,
BEIS,The Insolvency Service,01/06/2018,Travel & Subsistence,Investigations & Enforcement Services,Staff Payment,900000651,5.00,
BEIS,The Insolvency Service,01/06/2018,Travel & Subsistence,Investigations & Enforcement Services,Staff Payment,900000651,3.65,
BEIS,The Insolvency Service,01/06/2018,Travel & Subsistence,Finance & Commercial,Staff Payment,900001105,5.28,
BEIS,The Insolvency Service,01/06/2018,Travel & Subsistence,Finance & Commercial,Staff Payment,900001105,3.60,
BEIS,The Insolvency Service,01/06/2018,Travel & Subsistence,Finance & Commercial,Staff Payment,900001105,3.00,
BEIS,The Insolvency Service,01/06/2018,Travel & Subsistence,Finance & Commercial,Staff Payment,900001105,8.15,
BEIS,The Insolvency Service,01/06/2018,Travel & Subsistence,Finance & Commercial,Staff Payment,900001105,3.00,
BEIS,The Insolvency Service,01/06/2018,Travel & Subsistence,Finance & Commercial,Staff Payment,900001105,5.00,
BEIS,The Insolvency Service,01/06/2018,Travel & Subsistence,Finance & Commercial,Staff Payment,900001105,3.60,
BEIS,The Insolvency Service,01/06/2018,Travel & Subsistence,Finance & Commercial,Staff Payment,900001105,4.10,
BEIS,The Insolvency Service,01/06/2018,Travel & Subsistence,Finance & Commercial,Staff Payment,900001105,10.00,
BEIS,The Insolvency Service,01/06/2018,Travel & Subsistence,Finance & Commercial,Staff Payment,900001105,8.15,
BEIS,The Insolvency Service,01/06/2018,Travel & Subsistence,Investigations & Enforcement Services,Staff Payment,900001257,110.70,
BEIS,The Insolvency Service,01/06/2018,Travel & Subsistence,Investigations & Enforcement Services,Staff Payment,900001257,48.15,
BEIS,The Insolvency Service,01/06/2018,Travel & Subsistence,Investigations & Enforcement Services,Staff Payment,900001257,15.00,
BEIS,The Insolvency Service,01/06/2018,Travel & Subsistence,Investigations & Enforcement Services,Staff Payment,900001257,1.77,
BEIS,The Insolvency Service,01/06/2018,Travel & Subsistence,Investigations & Enforcement Services,Staff Payment,900001257,7.50,
BEIS,The Insolvency Service,01/06/2018,Travel & Subsistence,Investigations & Enforcement Services,Staff Payment,900001257,18.90,
BEIS,The Insolvency Service,01/06/2018,Travel & Subsistence,Investigations & Enforcement Services,Staff Payment,900001257,47.70,
BEIS,The Insolvency Service,01/06/2018,Travel & Subsistence,Investigations & Enforcement Services,Staff Payment,900001257,5.00,
BEIS,The Insolvency Service,01/06/2018,Travel & Subsistence,Investigations & Enforcement Services,Staff Payment,900001257,5.00,
BEIS,The Insolvency Service,01/06/2018,Travel & Subsistence,Investigations & Enforcement Services,Staff Payment,900001257,4.66,
BEIS,The Insolvency Service,01/06/2018,Travel & Subsistence,Investigations & Enforcement Services,Staff Payment,900001257,15.00,
BEIS,The Insolvency Service,01/06/2018,Travel & Subsistence,Investigations & Enforcement Services,Staff Payment,900001257,4.50,
BEIS,The Insolvency Service,01/06/2018,Travel & Subsistence,Investigations & Enforcement Services,Staff Payment,900001267,33.30,
BEIS,The Insolvency Service,01/06/2018,Travel & Subsistence,Investigations & Enforcement Services,Staff Payment,900001270,32.40,
BEIS,The Insolvency Service,01/06/2018,Travel & Subsistence,Investigations & Enforcement Services,Staff Payment,900001273,90.00,
BEIS,The Insolvency Service,01/06/2018,Travel & Subsistence,Investigations & Enforcement Services,Staff Payment,900001277,134.00,
BEIS,The Insolvency Service,01/06/2018,Travel & Subsistence,Investigations & Enforcement Services,Staff Payment,900001280,15.00,
BEIS,The Insolvency Service,01/06/2018,Travel & Subsistence,Investigations & Enforcement Services,Staff Payment,900001281,5.00,
BEIS,The Insolvency Service,01/06/2018,Travel & Subsistence,Investigations & Enforcement Services,Staff Payment,900001282,9.20,
BEIS,The Insolvency Service,01/06/2018,Travel & Subsistence,Investigations & Enforcement Services,Staff Payment,900001283,5.00,
BEIS,The Insolvency Service,01/06/2018,Travel & Subsistence,Investigations & Enforcement Services,Staff Payment,900001284,90.00,
BEIS,The Insolvency Service,01/06/2018,Travel & Subsistence,Investigations & Enforcement Services,Staff Payment,900001285,5.00,
BEIS,The Insolvency Service,01/06/2018,Travel & Subsistence,Investigations & Enforcement Services,Staff Payment,900001233,11.30,
BEIS,The Insolvency Service,01/06/2018,Travel & Subsistence,Investigations & Enforcement Services,Staff Payment,900001233,32.01,
BEIS,The Insolvency Service,01/06/2018,Travel & Subsistence,Investigations & Enforcement Services,Staff Payment,900001233,11.81,
BEIS,The Insolvency Service,01/06/2018,Travel & Subsistence,Investigations & Enforcement Services,Staff Payment,900001233,11.10,
BEIS,The Insolvency Service,01/06/2018,Travel & Subsistence,Investigations & Enforcement Services,Staff Payment,900001233,39.35,
BEIS,The Insolvency Service,01/06/2018,Travel & Subsistence,Investigations & Enforcement Services,Staff Payment,900001233,5.00,
BEIS,The Insolvency Service,01/06/2018,Travel & Subsistence,Investigations & Enforcement Services,Staff Payment,900001233,4.80,
BEIS,The Insolvency Service,01/06/2018,Travel & Subsistence,Investigations & Enforcement Services,Staff Payment,900001233,25.90,
BEIS,The Insolvency Service,01/06/2018,Travel & Subsistence,Investigations & Enforcement Services,Staff Payment,900001233,181.00,
BEIS,The Insolvency Service,01/06/2018,Travel & Subsistence,Investigations & Enforcement Services,Staff Payment,900001233,25.00,
BEIS,The Insolvency Service,01/06/2018,Travel & Subsistence,Investigations & Enforcement Services,Staff Payment,900001233,10.02,
BEIS,The Insolvency Service,01/06/2018,Travel & Subsistence,Investigations & Enforcement Services,Staff Payment,900001232,25.00,
BEIS,The Insolvency Service,01/06/2018,Travel & Subsistence,Investigations & Enforcement Services,Staff Payment,900001232,9.50,
BEIS,The Insolvency Service,01/06/2018,Travel & Subsistence,Investigations & Enforcement Services,Staff Payment,900001232,25.90,
BEIS,The Insolvency Service,01/06/2018,Travel & Subsistence,Investigations & Enforcement Services,Staff Payment,900001232,11.30,
BEIS,The Insolvency Service,01/06/2018,Travel & Subsistence,Investigations & Enforcement Services,Staff Payment,900001232,181.00,
BEIS,The Insolvency Service,01/06/2018,Travel & Subsistence,Investigations & Enforcement Services,Staff Payment,900001232,54.87,
BEIS,The Insolvency Service,01/06/2018,Travel & Subsistence,Investigations & Enforcement Services,Staff Payment,900001232,14.20,
BEIS,The Insolvency Service,01/06/2018,Travel & Subsistence,Investigations & Enforcement Services,Staff Payment,900001227,5.00,
BEIS,The Insolvency Service,01/06/2018,Travel & Subsistence,Investigations & Enforcement Services,Staff Payment,900001228,5.00,
BEIS,The Insolvency Service,01/06/2018,Travel & Subsistence,Investigations & Enforcement Services,Staff Payment,900001229,5.00,
BEIS,The Insolvency Service,01/06/2018,Computer and IT Systems,Information & Technology,Kcom Group Plc,300000992,92.00,647235137
BEIS,The Insolvency Service,01/06/2018,Investigation & Enforcement Costs,Criminal Enforcement Team,18 Red Lion Court Chambers,300000993,576.00,766793665
BEIS,The Insolvency Service,01/06/2018,Training Costs,People & Capability,Kpmg Llp,300000962,3643.00,791788859
BEIS,The Insolvency Service,01/06/2018,Training Costs,People & Capability,Kpmg Llp,300000968,3643.00,791788859
BEIS,The Insolvency Service,01/06/2018,Training Costs,People & Capability,Kpmg Llp,300000973,3643.00,791788859
BEIS,The Insolvency Service,01/06/2018,Training Costs,People & Capability,Kpmg Llp,300000974,3643.00,791788859
BEIS,The Insolvency Service,01/06/2018,Insolvency Case Related Costs,Official Receiver Services,Experian Qas Ltd,300000983,10.80,887133593
BEIS,The Insolvency Service,01/06/2018,Computer and IT Systems,Investigations & Enforcement Services,Daisy Communications Ltd,300001151,39.56,
BEIS,The Insolvency Service,01/06/2018,Insolvency Case Related Costs,Official Receiver Services,Insolvency Service,300001010,70.00,
BEIS,The Insolvency Service,02/06/2018,Accomodation,Finance & Commercial,Blackpool Borough Council,300001136,30687.12,
BEIS,The Insolvency Service,02/06/2018,Computer and IT Systems,Information & Technology,Vodafone - Cable & Wireless Communications,300001111,3721.79,569953277
BEIS,The Insolvency Service,03/06/2018,Computer and IT Systems,Official Receiver Services,Vodafone - Cable & Wireless Communications,300001164,293.06,569953277
BEIS,The Insolvency Service,04/06/2018,Accomodation,Finance & Commercial,Cbre Limited,300001068,11108.79,
BEIS,The Insolvency Service,04/06/2018,Accomodation,Finance & Commercial,Cbre Limited,300001070,11182.52,
BEIS,The Insolvency Service,04/06/2018,Insolvency Case Related Costs,Official Receiver Services,The Stationery Office Ltd,300001192,149.16,662774703
BEIS,The Insolvency Service,05/06/2018,Accomodation,Finance & Commercial,Companies House,300001120,26649.31,GD255
BEIS,The Insolvency Service,05/06/2018,Accomodation,Finance & Commercial,Gva,300001067,46156.50,657719590
BEIS,The Insolvency Service,05/06/2018,Agency Costs,Finance & Commercial,Gva,300001067,25993.20,657719590
BEIS,The Insolvency Service,06/06/2018,Investigation & Enforcement Costs,Chief Executive Office,"Department For Business, Energy And Industrial Strategy (Be)",300000591,7791.00,
BEIS,The Insolvency Service,06/06/2018,Office Machinery,Investigations & Enforcement Services,Pitney Bowes Finance Limited,300000987,246.00,
BEIS,The Insolvency Service,06/06/2018,Insolvency Case Related Costs,Official Receiver Services,The Stationery Office Ltd,300000343,124.30,662774703
BEIS,The Insolvency Service,06/06/2018,Insolvency Case Related Costs,Official Receiver Services,The Stationery Office Ltd,300000342,186.45,662774703
BEIS,The Insolvency Service,06/06/2018,Investigation & Enforcement Costs,Criminal Enforcement Team,Police And Crime Commissioner For Hampshire,300000975,1179.40,
BEIS,The Insolvency Service,06/06/2018,Other Costs,Business Service Division,Companies House,300000835,5.00,GD255
BEIS,The Insolvency Service,06/06/2018,Accomodation,Finance & Commercial,British Gas Business,300000587,182.78,684966762
BEIS,The Insolvency Service,06/06/2018,Investigation & Enforcement Costs,Criminal Enforcement Team,Police And Crime Commissioner For Hampshire,300000976,156.00,
BEIS,The Insolvency Service,06/06/2018,Computer and IT Systems,Information & Technology,Vodafone - Cable & Wireless Communications,300000622,487.83,569953277
BEIS,The Insolvency Service,06/06/2018,Computer and IT Systems,Official Receiver Services,Royal Mail,300000969,20.40,
BEIS,The Insolvency Service,06/06/2018,Investigation & Enforcement Costs,Criminal Enforcement Team,East Anglian Chambers (Ea Law),300000941,150.00,9057455614
BEIS,The Insolvency Service,06/06/2018,Investigation & Enforcement Costs,Investigations & Enforcement Services,Tnt Uk Ltd,300000862,8.84,354715057
BEIS,The Insolvency Service,06/06/2018,Training Costs,Finance & Commercial,Chamber Business Training,300000855,3589.80,
BEIS,The Insolvency Service,06/06/2018,Computer and IT Systems,Official Receiver Services,Royal Mail,300000979,17.22,243170002
BEIS,The Insolvency Service,06/06/2018,Investigation & Enforcement Costs,Criminal Enforcement Team,39 Essex Chambers,300000990,432.00,
BEIS,The Insolvency Service,06/06/2018,Insolvency Case Related Costs,Official Receiver Services,Williams Lea Ltd,300000989,62.15,662774703
BEIS,The Insolvency Service,06/06/2018,Investigation & Enforcement Costs,Investigations & Enforcement Services,Mendip Media Group Ltd (Now Trading As Appen) - (Transcri),300000939,204.34,609546425
BEIS,The Insolvency Service,06/06/2018,Investigation & Enforcement Costs,Criminal Enforcement Team,18 Red Lion Court Chambers,300000942,180.00,766793665
BEIS,The Insolvency Service,06/06/2018,Insolvency Case Related Costs,Official Receiver Services,Hpi Ltd,300000954,7.61,942407139
BEIS,The Insolvency Service,06/06/2018,Insolvency Case Related Costs,Official Receiver Services,Hpi Ltd,300000961,15.70,942407139
BEIS,The Insolvency Service,06/06/2018,Insolvency Case Related Costs,Official Receiver Services,Hpi Ltd,300000964,54.88,942407139
BEIS,The Insolvency Service,06/06/2018,Insolvency Case Related Costs,Official Receiver Services,Hpi Ltd,300000967,14.75,942407139
BEIS,The Insolvency Service,06/06/2018,Computer and IT Systems,Information & Technology,Experian Ltd,300000957,2788.14,887133593
BEIS,The Insolvency Service,06/06/2018,Computer and IT Systems,Information & Technology,Experian Ltd,300000958,352.21,887133593
BEIS,The Insolvency Service,06/06/2018,Computer and IT Systems,Information & Technology,Experian Ltd,300000959,9783.60,887133593
BEIS,The Insolvency Service,06/06/2018,Computer and IT Systems,Information & Technology,Ukcloud Ltd,300000982,6041.93,172647982
BEIS,The Insolvency Service,06/06/2018,Legal Costs,Finance & Commercial,K International Plc,300000972,201.45,600413800
BEIS,The Insolvency Service,06/06/2018,Insolvency Case Related Costs,Finance & Commercial,Insolvency Service,600001139,-65.24,
BEIS,The Insolvency Service,06/06/2018,Travel & Subsistence,Official Receiver Services,Staff Payment,900000938,4.55,
BEIS,The Insolvency Service,06/06/2018,Travel & Subsistence,Official Receiver Services,Staff Payment,900000938,5.00,
BEIS,The Insolvency Service,06/06/2018,Travel & Subsistence,Official Receiver Services,Staff Payment,900000938,15.00,
BEIS,The Insolvency Service,06/06/2018,Travel & Subsistence,Official Receiver Services,Staff Payment,900000938,4.82,
BEIS,The Insolvency Service,06/06/2018,Travel & Subsistence,Strategy & Change,Staff Payment,900000949,9.98,
BEIS,The Insolvency Service,06/06/2018,Travel & Subsistence,Strategy & Change,Staff Payment,900000949,6.50,
BEIS,The Insolvency Service,06/06/2018,Travel & Subsistence,Strategy & Change,Staff Payment,900000949,17.00,
BEIS,The Insolvency Service,06/06/2018,Travel & Subsistence,Strategy & Change,Staff Payment,900000949,9.00,
BEIS,The Insolvency Service,06/06/2018,Travel & Subsistence,Strategy & Change,Staff Payment,900000949,11.25,
BEIS,The Insolvency Service,06/06/2018,Travel & Subsistence,Official Receiver Services,Staff Payment,900001380,6.00,
BEIS,The Insolvency Service,06/06/2018,Travel & Subsistence,Official Receiver Services,Staff Payment,900001382,6.00,
BEIS,The Insolvency Service,06/06/2018,Travel & Subsistence,Official Receiver Services,Staff Payment,900001382,3.39,
BEIS,The Insolvency Service,06/06/2018,Travel & Subsistence,Official Receiver Services,Staff Payment,900001383,6.00,
BEIS,The Insolvency Service,06/06/2018,Travel & Subsistence,Business Service Division,Staff Payment,900001224,34.20,
BEIS,The Insolvency Service,06/06/2018,Travel & Subsistence,Business Service Division,Staff Payment,900001224,34.20,
BEIS,The Insolvency Service,06/06/2018,Travel & Subsistence,Business Service Division,Staff Payment,900001224,3.34,
BEIS,The Insolvency Service,06/06/2018,Travel & Subsistence,Business Service Division,Staff Payment,900001224,5.00,
BEIS,The Insolvency Service,06/06/2018,Travel & Subsistence,Official Receiver Services,Staff Payment,900001360,5.00,
BEIS,The Insolvency Service,06/06/2018,Travel & Subsistence,Official Receiver Services,Staff Payment,900000836,24.00,
BEIS,The Insolvency Service,06/06/2018,Travel & Subsistence,Official Receiver Services,Staff Payment,900000836,5.00,
BEIS,The Insolvency Service,06/06/2018,Travel & Subsistence,Official Receiver Services,Staff Payment,900000836,5.00,
BEIS,The Insolvency Service,06/06/2018,Travel & Subsistence,Official Receiver Services,Staff Payment,900000836,15.00,
BEIS,The Insolvency Service,06/06/2018,Travel & Subsistence,Official Receiver Services,Staff Payment,900000836,4.44,
BEIS,The Insolvency Service,06/06/2018,Travel & Subsistence,Official Receiver Services,Staff Payment,900000837,15.00,
BEIS,The Insolvency Service,06/06/2018,Travel & Subsistence,Official Receiver Services,Staff Payment,900000837,5.00,
BEIS,The Insolvency Service,06/06/2018,Travel & Subsistence,Official Receiver Services,Staff Payment,900000837,24.00,
BEIS,The Insolvency Service,06/06/2018,Travel & Subsistence,Official Receiver Services,Staff Payment,900000837,3.55,
BEIS,The Insolvency Service,06/06/2018,Travel & Subsistence,Official Receiver Services,Staff Payment,900000837,3.89,
BEIS,The Insolvency Service,06/06/2018,Travel & Subsistence,Official Receiver Services,Staff Payment,900001041,12.00,
BEIS,The Insolvency Service,06/06/2018,Travel & Subsistence,Official Receiver Services,Staff Payment,900001041,3.89,
BEIS,The Insolvency Service,06/06/2018,Travel & Subsistence,Official Receiver Services,Staff Payment,900001118,3.70,
BEIS,The Insolvency Service,06/06/2018,Travel & Subsistence,Official Receiver Services,Staff Payment,900001368,28.80,
BEIS,The Insolvency Service,06/06/2018,Travel & Subsistence,Official Receiver Services,Staff Payment,900000913,6.00,
BEIS,The Insolvency Service,06/06/2018,Travel & Subsistence,Official Receiver Services,Staff Payment,900000913,19.00,
BEIS,The Insolvency Service,06/06/2018,Travel & Subsistence,Official Receiver Services,Staff Payment,900000913,4.00,
BEIS,The Insolvency Service,06/06/2018,Travel & Subsistence,Strategy & Change,Staff Payment,900000958,5.00,
BEIS,The Insolvency Service,06/06/2018,Travel & Subsistence,Strategy & Change,Staff Payment,900000958,76.00,
BEIS,The Insolvency Service,06/06/2018,Travel & Subsistence,Strategy & Change,Staff Payment,900000958,15.00,
BEIS,The Insolvency Service,06/06/2018,Travel & Subsistence,Strategy & Change,Staff Payment,900000958,3.89,
BEIS,The Insolvency Service,06/06/2018,Travel & Subsistence,Investigations & Enforcement Services,Staff Payment,900001311,2.85,
BEIS,The Insolvency Service,06/06/2018,Travel & Subsistence,Investigations & Enforcement Services,Staff Payment,900001311,4.98,
BEIS,The Insolvency Service,06/06/2018,Travel & Subsistence,Investigations & Enforcement Services,Staff Payment,900001311,2.95,
BEIS,The Insolvency Service,06/06/2018,Travel & Subsistence,Investigations & Enforcement Services,Staff Payment,900001387,4.70,
BEIS,The Insolvency Service,06/06/2018,Travel & Subsistence,Investigations & Enforcement Services,Staff Payment,900001387,2.88,
BEIS,The Insolvency Service,06/06/2018,Travel & Subsistence,Investigations & Enforcement Services,Staff Payment,900001387,4.50,
BEIS,The Insolvency Service,06/06/2018,Travel & Subsistence,Investigations & Enforcement Services,Staff Payment,900001254,14.00,
BEIS,The Insolvency Service,06/06/2018,Travel & Subsistence,Investigations & Enforcement Services,Staff Payment,900001065,12.00,
BEIS,The Insolvency Service,06/06/2018,Travel & Subsistence,Official Receiver Services,Staff Payment,900001353,3.40,
BEIS,The Insolvency Service,06/06/2018,Travel & Subsistence,Investigations & Enforcement Services,Staff Payment,900001370,44.55,
BEIS,The Insolvency Service,06/06/2018,Travel & Subsistence,Investigations & Enforcement Services,Staff Payment,900001370,9.25,
BEIS,The Insolvency Service,06/06/2018,Travel & Subsistence,Investigations & Enforcement Services,Staff Payment,900001370,44.55,
BEIS,The Insolvency Service,06/06/2018,Travel & Subsistence,Investigations & Enforcement Services,Staff Payment,900001370,37.00,
BEIS,The Insolvency Service,06/06/2018,Travel & Subsistence,Official Receiver Services,Staff Payment,900001363,38.25,
BEIS,The Insolvency Service,06/06/2018,Travel & Subsistence,Official Receiver Services,Staff Payment,900001363,191.25,
BEIS,The Insolvency Service,06/06/2018,Travel & Subsistence,Official Receiver Services,Staff Payment,900001325,156.42,
BEIS,The Insolvency Service,06/06/2018,Travel & Subsistence,Official Receiver Services,Staff Payment,900001367,1.84,
BEIS,The Insolvency Service,06/06/2018,Travel & Subsistence,Official Receiver Services,Staff Payment,900001367,6.28,
BEIS,The Insolvency Service,06/06/2018,Travel & Subsistence,Official Receiver Services,Staff Payment,900001367,6.15,
BEIS,The Insolvency Service,06/06/2018,Travel & Subsistence,Official Receiver Services,Staff Payment,900001367,6.15,
BEIS,The Insolvency Service,06/06/2018,Travel & Subsistence,Official Receiver Services,Staff Payment,900001367,10.00,
BEIS,The Insolvency Service,06/06/2018,Travel & Subsistence,Official Receiver Services,Staff Payment,900001367,1.84,
BEIS,The Insolvency Service,06/06/2018,Travel & Subsistence,Official Receiver Services,Staff Payment,900001367,10.00,
BEIS,The Insolvency Service,06/06/2018,Travel & Subsistence,Official Receiver Services,Staff Payment,900001303,32.40,
BEIS,The Insolvency Service,06/06/2018,Travel & Subsistence,Official Receiver Services,Staff Payment,900001303,3.10,
BEIS,The Insolvency Service,06/06/2018,Travel & Subsistence,Official Receiver Services,Staff Payment,900001223,6.00,
BEIS,The Insolvency Service,06/06/2018,Travel & Subsistence,Official Receiver Services,Staff Payment,900001389,7.50,
BEIS,The Insolvency Service,06/06/2018,Travel & Subsistence,Strategy & Change,Staff Payment,900001305,5.00,
BEIS,The Insolvency Service,06/06/2018,Travel & Subsistence,Strategy & Change,Staff Payment,900001305,5.00,
BEIS,The Insolvency Service,06/06/2018,Travel & Subsistence,Strategy & Change,Staff Payment,900001305,10.00,
BEIS,The Insolvency Service,06/06/2018,Travel & Subsistence,Strategy & Change,Staff Payment,900001305,6.85,
BEIS,The Insolvency Service,06/06/2018,Travel & Subsistence,Strategy & Change,Staff Payment,900001305,5.00,
BEIS,The Insolvency Service,06/06/2018,Travel & Subsistence,Strategy & Change,Staff Payment,900001306,5.00,
BEIS,The Insolvency Service,06/06/2018,Travel & Subsistence,Strategy & Change,Staff Payment,900001306,15.00,
BEIS,The Insolvency Service,06/06/2018,Travel & Subsistence,Strategy & Change,Staff Payment,900001306,5.00,
BEIS,The Insolvency Service,06/06/2018,Travel & Subsistence,Strategy & Change,Staff Payment,900001306,5.00,
BEIS,The Insolvency Service,06/06/2018,Travel & Subsistence,People & Capability,Staff Payment,900001404,6.10,
BEIS,The Insolvency Service,06/06/2018,Travel & Subsistence,People & Capability,Staff Payment,900001404,2.40,
BEIS,The Insolvency Service,06/06/2018,Travel & Subsistence,People & Capability,Staff Payment,900001404,2.40,
BEIS,The Insolvency Service,06/06/2018,Travel & Subsistence,People & Capability,Staff Payment,900001404,5.00,
BEIS,The Insolvency Service,06/06/2018,Travel & Subsistence,People & Capability,Staff Payment,900001404,8.55,
BEIS,The Insolvency Service,06/06/2018,Travel & Subsistence,Official Receiver Services,Staff Payment,900001238,43.99,
BEIS,The Insolvency Service,06/06/2018,Travel & Subsistence,Official Receiver Services,Staff Payment,900001349,21.29,
BEIS,The Insolvency Service,06/06/2018,Travel & Subsistence,Official Receiver Services,Staff Payment,900001068,63.80,
BEIS,The Insolvency Service,06/06/2018,Travel & Subsistence,Official Receiver Services,Staff Payment,900001068,3.60,
BEIS,The Insolvency Service,06/06/2018,Travel & Subsistence,Official Receiver Services,Staff Payment,900001350,48.60,
BEIS,The Insolvency Service,06/06/2018,Travel & Subsistence,Official Receiver Services,Staff Payment,900001350,48.60,
BEIS,The Insolvency Service,06/06/2018,Travel & Subsistence,Investigations & Enforcement Services,Staff Payment,900001256,4.95,
BEIS,The Insolvency Service,06/06/2018,Travel & Subsistence,Investigations & Enforcement Services,Staff Payment,900001400,4.80,
BEIS,The Insolvency Service,06/06/2018,Travel & Subsistence,Official Receiver Services,Staff Payment,900001294,1.99,
BEIS,The Insolvency Service,06/06/2018,Travel & Subsistence,Official Receiver Services,Staff Payment,900001294,0.75,
BEIS,The Insolvency Service,06/06/2018,Travel & Subsistence,Official Receiver Services,Staff Payment,900001294,5.00,
BEIS,The Insolvency Service,06/06/2018,Travel & Subsistence,Investigations & Enforcement Services,Staff Payment,900001235,60.00,
BEIS,The Insolvency Service,06/06/2018,Travel & Subsistence,Investigations & Enforcement Services,Staff Payment,900001235,25.00,
BEIS,The Insolvency Service,06/06/2018,Travel & Subsistence,Investigations & Enforcement Services,Staff Payment,900001235,20.00,
BEIS,The Insolvency Service,06/06/2018,Travel & Subsistence,Investigations & Enforcement Services,Staff Payment,900001298,5.00,
BEIS,The Insolvency Service,06/06/2018,Travel & Subsistence,Investigations & Enforcement Services,Staff Payment,900001298,2.40,
BEIS,The Insolvency Service,06/06/2018,Travel & Subsistence,Official Receiver Services,Staff Payment,900001262,8.95,
BEIS,The Insolvency Service,06/06/2018,Travel & Subsistence,Official Receiver Services,Staff Payment,900001262,5.00,
BEIS,The Insolvency Service,06/06/2018,Travel & Subsistence,Official Receiver Services,Staff Payment,900001255,4.40,
BEIS,The Insolvency Service,06/06/2018,Travel & Subsistence,Official Receiver Services,Staff Payment,900001255,57.60,
BEIS,The Insolvency Service,06/06/2018,Travel & Subsistence,Official Receiver Services,Staff Payment,900001255,5.00,
BEIS,The Insolvency Service,06/06/2018,Travel & Subsistence,People & Capability,Staff Payment,900001297,2.70,
BEIS,The Insolvency Service,06/06/2018,Travel & Subsistence,People & Capability,Staff Payment,900001297,15.00,
BEIS,The Insolvency Service,06/06/2018,Travel & Subsistence,People & Capability,Staff Payment,900001297,5.00,
BEIS,The Insolvency Service,06/06/2018,Travel & Subsistence,People & Capability,Staff Payment,900001297,2.70,
BEIS,The Insolvency Service,06/06/2018,Travel & Subsistence,People & Capability,Staff Payment,900001297,5.00,
BEIS,The Insolvency Service,06/06/2018,Travel & Subsistence,People & Capability,Staff Payment,900001297,5.00,
BEIS,The Insolvency Service,06/06/2018,Travel & Subsistence,Investigations & Enforcement Services,Staff Payment,900000236,123.30,
BEIS,The Insolvency Service,06/06/2018,Travel & Subsistence,Official Receiver Services,Staff Payment,900001158,18.50,
BEIS,The Insolvency Service,06/06/2018,Travel & Subsistence,Official Receiver Services,Staff Payment,900001158,6.20,
BEIS,The Insolvency Service,06/06/2018,Travel & Subsistence,Official Receiver Services,Staff Payment,900001158,16.90,
BEIS,The Insolvency Service,06/06/2018,Travel & Subsistence,Official Receiver Services,Staff Payment,900001354,6.30,
BEIS,The Insolvency Service,06/06/2018,Travel & Subsistence,Official Receiver Services,Staff Payment,900001354,3.74,
BEIS,The Insolvency Service,06/06/2018,Travel & Subsistence,Official Receiver Services,Staff Payment,900001354,4.35,
BEIS,The Insolvency Service,06/06/2018,Travel & Subsistence,Investigations & Enforcement Services,Staff Payment,900001247,17.00,
BEIS,The Insolvency Service,06/06/2018,Travel & Subsistence,Business Service Division,Staff Payment,900001336,5.00,
BEIS,The Insolvency Service,06/06/2018,Travel & Subsistence,Business Service Division,Staff Payment,900001336,10.00,
BEIS,The Insolvency Service,06/06/2018,Travel & Subsistence,Business Service Division,Staff Payment,900001336,11.20,
BEIS,The Insolvency Service,06/06/2018,Travel & Subsistence,Business Service Division,Staff Payment,900001337,19.00,
BEIS,The Insolvency Service,06/06/2018,Travel & Subsistence,Business Service Division,Staff Payment,900001338,4.45,
BEIS,The Insolvency Service,06/06/2018,Travel & Subsistence,Business Service Division,Staff Payment,900001338,15.00,
BEIS,The Insolvency Service,06/06/2018,Travel & Subsistence,Business Service Division,Staff Payment,900001338,5.00,
BEIS,The Insolvency Service,06/06/2018,Travel & Subsistence,Business Service Division,Staff Payment,900001338,5.00,
BEIS,The Insolvency Service,06/06/2018,Travel & Subsistence,Business Service Division,Staff Payment,900001339,2.90,
BEIS,The Insolvency Service,06/06/2018,Travel & Subsistence,Business Service Division,Staff Payment,900001340,13.60,
BEIS,The Insolvency Service,06/06/2018,Travel & Subsistence,Business Service Division,Staff Payment,900001340,2.40,
BEIS,The Insolvency Service,06/06/2018,Travel & Subsistence,Business Service Division,Staff Payment,900001340,5.00,
BEIS,The Insolvency Service,06/06/2018,Travel & Subsistence,Business Service Division,Staff Payment,900001340,13.70,
BEIS,The Insolvency Service,06/06/2018,Travel & Subsistence,Business Service Division,Staff Payment,900001341,15.00,
BEIS,The Insolvency Service,06/06/2018,Travel & Subsistence,Business Service Division,Staff Payment,900001341,10.00,
BEIS,The Insolvency Service,06/06/2018,Travel & Subsistence,Business Service Division,Staff Payment,900001341,5.00,
BEIS,The Insolvency Service,06/06/2018,Travel & Subsistence,Business Service Division,Staff Payment,900001341,3.39,
BEIS,The Insolvency Service,06/06/2018,Travel & Subsistence,Business Service Division,Staff Payment,900001341,3.70,
BEIS,The Insolvency Service,06/06/2018,Travel & Subsistence,Business Service Division,Staff Payment,900001342,5.00,
BEIS,The Insolvency Service,06/06/2018,Travel & Subsistence,Business Service Division,Staff Payment,900001342,15.00,
BEIS,The Insolvency Service,06/06/2018,Travel & Subsistence,Business Service Division,Staff Payment,900001342,5.00,
BEIS,The Insolvency Service,06/06/2018,Travel & Subsistence,Business Service Division,Staff Payment,900001342,10.40,
BEIS,The Insolvency Service,06/06/2018,Travel & Subsistence,Business Service Division,Staff Payment,900001343,10.40,
BEIS,The Insolvency Service,06/06/2018,Travel & Subsistence,Business Service Division,Staff Payment,900001343,4.60,
BEIS,The Insolvency Service,06/06/2018,Travel & Subsistence,Business Service Division,Staff Payment,900001343,13.45,
BEIS,The Insolvency Service,06/06/2018,Travel & Subsistence,Business Service Division,Staff Payment,900001343,5.00,
BEIS,The Insolvency Service,06/06/2018,Travel & Subsistence,Business Service Division,Staff Payment,900001344,13.40,
BEIS,The Insolvency Service,06/06/2018,Travel & Subsistence,Strategy & Change,Staff Payment,900001356,10.00,
BEIS,The Insolvency Service,06/06/2018,Travel & Subsistence,Strategy & Change,Staff Payment,900001356,153.18,
BEIS,The Insolvency Service,06/06/2018,Travel & Subsistence,Strategy & Change,Staff Payment,900001356,12.38,
BEIS,The Insolvency Service,06/06/2018,Travel & Subsistence,Official Receiver Services,Staff Payment,900001071,20.70,
BEIS,The Insolvency Service,06/06/2018,Travel & Subsistence,Official Receiver Services,Staff Payment,900001071,2.00,
BEIS,The Insolvency Service,06/06/2018,Travel & Subsistence,Official Receiver Services,Staff Payment,900001073,4.95,
BEIS,The Insolvency Service,06/06/2018,Travel & Subsistence,Official Receiver Services,Staff Payment,900001074,1.00,
BEIS,The Insolvency Service,06/06/2018,Travel & Subsistence,Official Receiver Services,Staff Payment,900001074,110.00,
BEIS,The Insolvency Service,06/06/2018,Travel & Subsistence,Official Receiver Services,Staff Payment,900001074,5.00,
BEIS,The Insolvency Service,06/06/2018,Travel & Subsistence,Official Receiver Services,Staff Payment,900001251,1.00,
BEIS,The Insolvency Service,06/06/2018,Travel & Subsistence,Official Receiver Services,Staff Payment,900001251,32.40,
BEIS,The Insolvency Service,06/06/2018,Travel & Subsistence,Official Receiver Services,Staff Payment,900001252,20.70,
BEIS,The Insolvency Service,06/06/2018,Travel & Subsistence,Official Receiver Services,Staff Payment,900001252,2.00,
BEIS,The Insolvency Service,06/06/2018,Travel & Subsistence,Strategy & Change,Staff Payment,900001246,8.15,
BEIS,The Insolvency Service,06/06/2018,Travel & Subsistence,Strategy & Change,Staff Payment,900001246,9.00,
BEIS,The Insolvency Service,06/06/2018,Travel & Subsistence,Strategy & Change,Staff Payment,900001246,12.00,
BEIS,The Insolvency Service,06/06/2018,Travel & Subsistence,Chief Executive Office,Staff Payment,900001391,5.00,
BEIS,The Insolvency Service,06/06/2018,Travel & Subsistence,Chief Executive Office,Staff Payment,900001392,30.00,
BEIS,The Insolvency Service,06/06/2018,Travel & Subsistence,Chief Executive Office,Staff Payment,900001392,5.00,
BEIS,The Insolvency Service,06/06/2018,Travel & Subsistence,Chief Executive Office,Staff Payment,900001392,5.00,
BEIS,The Insolvency Service,06/06/2018,Travel & Subsistence,Strategy & Change,Staff Payment,900000974,139.70,
BEIS,The Insolvency Service,06/06/2018,Travel & Subsistence,Strategy & Change,Staff Payment,900000975,139.70,
BEIS,The Insolvency Service,06/06/2018,Travel & Subsistence,Strategy & Change,Staff Payment,900001206,80.51,
BEIS,The Insolvency Service,06/06/2018,Travel & Subsistence,Investigations & Enforcement Services,Staff Payment,900001345,5.00,
BEIS,The Insolvency Service,06/06/2018,Travel & Subsistence,Investigations & Enforcement Services,Staff Payment,900001345,3.00,
BEIS,The Insolvency Service,06/06/2018,Travel & Subsistence,Investigations & Enforcement Services,Staff Payment,900001345,46.99,
BEIS,The Insolvency Service,06/06/2018,Travel & Subsistence,Investigations & Enforcement Services,Staff Payment,900001345,3.65,
BEIS,The Insolvency Service,06/06/2018,Travel & Subsistence,Official Receiver Services,Staff Payment,900001315,4.30,
BEIS,The Insolvency Service,06/06/2018,Travel & Subsistence,Official Receiver Services,Staff Payment,900001315,1.29,
BEIS,The Insolvency Service,06/06/2018,Travel & Subsistence,Official Receiver Services,Staff Payment,900001315,52.02,
BEIS,The Insolvency Service,06/06/2018,Travel & Subsistence,Investigations & Enforcement Services,Staff Payment,900001361,4.00,
BEIS,The Insolvency Service,06/06/2018,Travel & Subsistence,Investigations & Enforcement Services,Staff Payment,900001361,56.00,
BEIS,The Insolvency Service,06/06/2018,Travel & Subsistence,Investigations & Enforcement Services,Staff Payment,900001361,9.30,
BEIS,The Insolvency Service,06/06/2018,Travel & Subsistence,Investigations & Enforcement Services,Staff Payment,900001361,10.00,
BEIS,The Insolvency Service,06/06/2018,Travel & Subsistence,Investigations & Enforcement Services,Staff Payment,900001361,77.00,
BEIS,The Insolvency Service,06/06/2018,Travel & Subsistence,Investigations & Enforcement Services,Staff Payment,900001361,19.58,
BEIS,The Insolvency Service,06/06/2018,Travel & Subsistence,Investigations & Enforcement Services,Staff Payment,900001295,5.00,
BEIS,The Insolvency Service,06/06/2018,Travel & Subsistence,Investigations & Enforcement Services,Staff Payment,900001295,4.80,
BEIS,The Insolvency Service,06/06/2018,Travel & Subsistence,Investigations & Enforcement Services,Staff Payment,900001295,40.50,
BEIS,The Insolvency Service,06/06/2018,Travel & Subsistence,Investigations & Enforcement Services,Staff Payment,900001295,1.80,
BEIS,The Insolvency Service,06/06/2018,Travel & Subsistence,Investigations & Enforcement Services,Staff Payment,900001295,11.00,
BEIS,The Insolvency Service,06/06/2018,Travel & Subsistence,Investigations & Enforcement Services,Staff Payment,900001295,3.00,
BEIS,The Insolvency Service,06/06/2018,Travel & Subsistence,Investigations & Enforcement Services,Staff Payment,900001295,5.00,
BEIS,The Insolvency Service,06/06/2018,Travel & Subsistence,Investigations & Enforcement Services,Staff Payment,900001295,3.10,
BEIS,The Insolvency Service,06/06/2018,Travel & Subsistence,Investigations & Enforcement Services,Staff Payment,900000808,1.50,
BEIS,The Insolvency Service,06/06/2018,Travel & Subsistence,Investigations & Enforcement Services,Staff Payment,900000808,85.95,
BEIS,The Insolvency Service,06/06/2018,Travel & Subsistence,Investigations & Enforcement Services,Staff Payment,900000808,64.00,
BEIS,The Insolvency Service,06/06/2018,Travel & Subsistence,Investigations & Enforcement Services,Staff Payment,900000808,53.55,
BEIS,The Insolvency Service,06/06/2018,Travel & Subsistence,Investigations & Enforcement Services,Staff Payment,900000808,4.80,
BEIS,The Insolvency Service,06/06/2018,Travel & Subsistence,Investigations & Enforcement Services,Staff Payment,900000808,5.00,
BEIS,The Insolvency Service,06/06/2018,Travel & Subsistence,Investigations & Enforcement Services,Staff Payment,900000808,4.25,
BEIS,The Insolvency Service,06/06/2018,Travel & Subsistence,Investigations & Enforcement Services,Staff Payment,900000808,8.50,
BEIS,The Insolvency Service,06/06/2018,Travel & Subsistence,Investigations & Enforcement Services,Staff Payment,900000808,17.05,
BEIS,The Insolvency Service,06/06/2018,Travel & Subsistence,Investigations & Enforcement Services,Staff Payment,900000808,30.15,
BEIS,The Insolvency Service,06/06/2018,Travel & Subsistence,Investigations & Enforcement Services,Staff Payment,900000808,3.60,
BEIS,The Insolvency Service,06/06/2018,Travel & Subsistence,Investigations & Enforcement Services,Staff Payment,900000808,5.00,
BEIS,The Insolvency Service,06/06/2018,Travel & Subsistence,Investigations & Enforcement Services,Staff Payment,900001125,63.90,
BEIS,The Insolvency Service,06/06/2018,Travel & Subsistence,Investigations & Enforcement Services,Staff Payment,900001125,63.00,
BEIS,The Insolvency Service,06/06/2018,Travel & Subsistence,Investigations & Enforcement Services,Staff Payment,900001125,5.90,
BEIS,The Insolvency Service,06/06/2018,Travel & Subsistence,Investigations & Enforcement Services,Staff Payment,900001125,5.90,
BEIS,The Insolvency Service,06/06/2018,Travel & Subsistence,Investigations & Enforcement Services,Staff Payment,900001125,5.00,
BEIS,The Insolvency Service,06/06/2018,Travel & Subsistence,Investigations & Enforcement Services,Staff Payment,900001125,5.00,
BEIS,The Insolvency Service,06/06/2018,Travel & Subsistence,Investigations & Enforcement Services,Staff Payment,900001125,3.70,
BEIS,The Insolvency Service,06/06/2018,Travel & Subsistence,Investigations & Enforcement Services,Staff Payment,900001125,3.60,
BEIS,The Insolvency Service,06/06/2018,Travel & Subsistence,Criminal Enforcement Team,Staff Payment,900000945,10.75,
BEIS,The Insolvency Service,06/06/2018,Travel & Subsistence,Criminal Enforcement Team,Staff Payment,900000945,60.00,
BEIS,The Insolvency Service,06/06/2018,Travel & Subsistence,Criminal Enforcement Team,Staff Payment,900000945,3.70,
BEIS,The Insolvency Service,06/06/2018,Travel & Subsistence,Criminal Enforcement Team,Staff Payment,900000945,14.80,
BEIS,The Insolvency Service,06/06/2018,Travel & Subsistence,Criminal Enforcement Team,Staff Payment,900000945,3.30,
BEIS,The Insolvency Service,06/06/2018,Travel & Subsistence,Criminal Enforcement Team,Staff Payment,900000945,15.00,
BEIS,The Insolvency Service,06/06/2018,Travel & Subsistence,Criminal Enforcement Team,Staff Payment,900000945,13.48,
BEIS,The Insolvency Service,06/06/2018,Travel & Subsistence,Criminal Enforcement Team,Staff Payment,900000945,22.00,
BEIS,The Insolvency Service,06/06/2018,Travel & Subsistence,Criminal Enforcement Team,Staff Payment,900000945,3.90,
BEIS,The Insolvency Service,06/06/2018,Travel & Subsistence,Criminal Enforcement Team,Staff Payment,900000945,4.79,
BEIS,The Insolvency Service,06/06/2018,Travel & Subsistence,Criminal Enforcement Team,Staff Payment,900000945,5.70,
BEIS,The Insolvency Service,06/06/2018,Travel & Subsistence,Criminal Enforcement Team,Staff Payment,900000945,8.00,
BEIS,The Insolvency Service,06/06/2018,Travel & Subsistence,Criminal Enforcement Team,Staff Payment,900000945,15.00,
BEIS,The Insolvency Service,06/06/2018,Travel & Subsistence,Criminal Enforcement Team,Staff Payment,900000945,10.70,
BEIS,The Insolvency Service,06/06/2018,Travel & Subsistence,Criminal Enforcement Team,Staff Payment,900000945,7.79,
BEIS,The Insolvency Service,06/06/2018,Travel & Subsistence,Criminal Enforcement Team,Staff Payment,900000945,10.70,
BEIS,The Insolvency Service,06/06/2018,Travel & Subsistence,Criminal Enforcement Team,Staff Payment,900000945,3.89,
BEIS,The Insolvency Service,06/06/2018,Travel & Subsistence,Criminal Enforcement Team,Staff Payment,900000945,14.15,
BEIS,The Insolvency Service,06/06/2018,Travel & Subsistence,Criminal Enforcement Team,Staff Payment,900000945,5.00,
BEIS,The Insolvency Service,06/06/2018,Travel & Subsistence,Criminal Enforcement Team,Staff Payment,900000945,5.00,
BEIS,The Insolvency Service,06/06/2018,Travel & Subsistence,Criminal Enforcement Team,Staff Payment,900000945,10.75,
BEIS,The Insolvency Service,06/06/2018,Travel & Subsistence,Criminal Enforcement Team,Staff Payment,900000945,4.00,
BEIS,The Insolvency Service,06/06/2018,Travel & Subsistence,Criminal Enforcement Team,Staff Payment,900000945,15.00,
BEIS,The Insolvency Service,06/06/2018,Travel & Subsistence,Criminal Enforcement Team,Staff Payment,900000945,4.40,
BEIS,The Insolvency Service,06/06/2018,Travel & Subsistence,Criminal Enforcement Team,Staff Payment,900000945,5.00,
BEIS,The Insolvency Service,06/06/2018,Travel & Subsistence,Criminal Enforcement Team,Staff Payment,900000945,5.35,
BEIS,The Insolvency Service,06/06/2018,Travel & Subsistence,Criminal Enforcement Team,Staff Payment,900000945,7.00,
BEIS,The Insolvency Service,06/06/2018,Travel & Subsistence,Criminal Enforcement Team,Staff Payment,900000945,5.00,
BEIS,The Insolvency Service,06/06/2018,Travel & Subsistence,Investigations & Enforcement Services,Staff Payment,900001264,20.70,
BEIS,The Insolvency Service,06/06/2018,Travel & Subsistence,Investigations & Enforcement Services,Staff Payment,900001266,5.00,
BEIS,The Insolvency Service,06/06/2018,Travel & Subsistence,Investigations & Enforcement Services,Staff Payment,900001269,25.20,
BEIS,The Insolvency Service,06/06/2018,Travel & Subsistence,Investigations & Enforcement Services,Staff Payment,900001271,5.00,
BEIS,The Insolvency Service,06/06/2018,Travel & Subsistence,Investigations & Enforcement Services,Staff Payment,900001272,5.00,
BEIS,The Insolvency Service,06/06/2018,Travel & Subsistence,Investigations & Enforcement Services,Staff Payment,900001274,25.20,
BEIS,The Insolvency Service,06/06/2018,Travel & Subsistence,Investigations & Enforcement Services,Staff Payment,900001275,5.00,
BEIS,The Insolvency Service,06/06/2018,Travel & Subsistence,Investigations & Enforcement Services,Staff Payment,900001276,5.00,
BEIS,The Insolvency Service,06/06/2018,Travel & Subsistence,Investigations & Enforcement Services,Staff Payment,900001138,15.00,
BEIS,The Insolvency Service,06/06/2018,Travel & Subsistence,Investigations & Enforcement Services,Staff Payment,900001138,5.00,
BEIS,The Insolvency Service,06/06/2018,Travel & Subsistence,Investigations & Enforcement Services,Staff Payment,900001138,15.00,
BEIS,The Insolvency Service,06/06/2018,Travel & Subsistence,Investigations & Enforcement Services,Staff Payment,900001138,5.00,
BEIS,The Insolvency Service,06/06/2018,Travel & Subsistence,Investigations & Enforcement Services,Staff Payment,900001138,8.00,
BEIS,The Insolvency Service,06/06/2018,Travel & Subsistence,Investigations & Enforcement Services,Staff Payment,900001138,31.00,
BEIS,The Insolvency Service,06/06/2018,Travel & Subsistence,Investigations & Enforcement Services,Staff Payment,900001138,5.00,
BEIS,The Insolvency Service,06/06/2018,Travel & Subsistence,Investigations & Enforcement Services,Staff Payment,900001138,5.00,
BEIS,The Insolvency Service,06/06/2018,Travel & Subsistence,Investigations & Enforcement Services,Staff Payment,900001138,3.99,
BEIS,The Insolvency Service,06/06/2018,Travel & Subsistence,Investigations & Enforcement Services,Staff Payment,900001138,4.30,
BEIS,The Insolvency Service,06/06/2018,Travel & Subsistence,Investigations & Enforcement Services,Staff Payment,900001138,4.90,
BEIS,The Insolvency Service,06/06/2018,Travel & Subsistence,Investigations & Enforcement Services,Staff Payment,900001138,4.50,
BEIS,The Insolvency Service,06/06/2018,Travel & Subsistence,Investigations & Enforcement Services,Staff Payment,900001138,2.75,
BEIS,The Insolvency Service,06/06/2018,Travel & Subsistence,Investigations & Enforcement Services,Staff Payment,900001138,8.90,
BEIS,The Insolvency Service,06/06/2018,Travel & Subsistence,Investigations & Enforcement Services,Staff Payment,900001138,136.80,
BEIS,The Insolvency Service,06/06/2018,Travel & Subsistence,Investigations & Enforcement Services,Staff Payment,900001138,8.90,
BEIS,The Insolvency Service,06/06/2018,Travel & Subsistence,Investigations & Enforcement Services,Staff Payment,900001138,101.70,
BEIS,The Insolvency Service,06/06/2018,Travel & Subsistence,Investigations & Enforcement Services,Staff Payment,900001138,5.00,
BEIS,The Insolvency Service,06/06/2018,Travel & Subsistence,Investigations & Enforcement Services,Staff Payment,900001365,5.00,
BEIS,The Insolvency Service,06/06/2018,Travel & Subsistence,Investigations & Enforcement Services,Staff Payment,900001365,14.95,
BEIS,The Insolvency Service,06/06/2018,Travel & Subsistence,Investigations & Enforcement Services,Staff Payment,900001365,5.00,
BEIS,The Insolvency Service,06/06/2018,Travel & Subsistence,Investigations & Enforcement Services,Staff Payment,900001365,5.00,
BEIS,The Insolvency Service,06/06/2018,Travel & Subsistence,Investigations & Enforcement Services,Staff Payment,900001365,10.00,
BEIS,The Insolvency Service,06/06/2018,Travel & Subsistence,Investigations & Enforcement Services,Staff Payment,900001365,5.00,
BEIS,The Insolvency Service,06/06/2018,Travel & Subsistence,Investigations & Enforcement Services,Staff Payment,900001365,40.50,
BEIS,The Insolvency Service,06/06/2018,Travel & Subsistence,Investigations & Enforcement Services,Staff Payment,900001365,16.20,
BEIS,The Insolvency Service,06/06/2018,Travel & Subsistence,Investigations & Enforcement Services,Staff Payment,900001365,5.40,
BEIS,The Insolvency Service,06/06/2018,Travel & Subsistence,Investigations & Enforcement Services,Staff Payment,900001365,17.10,
BEIS,The Insolvency Service,06/06/2018,Travel & Subsistence,Investigations & Enforcement Services,Staff Payment,900001365,17.55,
BEIS,The Insolvency Service,06/06/2018,Travel & Subsistence,Investigations & Enforcement Services,Staff Payment,900001365,38.25,
BEIS,The Insolvency Service,06/06/2018,Travel & Subsistence,Investigations & Enforcement Services,Staff Payment,900001365,21.60,
BEIS,The Insolvency Service,06/06/2018,Travel & Subsistence,Investigations & Enforcement Services,Staff Payment,900001365,3.90,
BEIS,The Insolvency Service,06/06/2018,Travel & Subsistence,Investigations & Enforcement Services,Staff Payment,900001365,5.00,
BEIS,The Insolvency Service,06/06/2018,Travel & Subsistence,Investigations & Enforcement Services,Staff Payment,900001365,12.95,
BEIS,The Insolvency Service,06/06/2018,Travel & Subsistence,Investigations & Enforcement Services,Staff Payment,900001365,5.00,
BEIS,The Insolvency Service,06/06/2018,Travel & Subsistence,Investigations & Enforcement Services,Staff Payment,900001365,21.60,
BEIS,The Insolvency Service,06/06/2018,Travel & Subsistence,Investigations & Enforcement Services,Staff Payment,900001365,14.85,
BEIS,The Insolvency Service,06/06/2018,Travel & Subsistence,Investigations & Enforcement Services,Staff Payment,900001365,38.25,
BEIS,The Insolvency Service,06/06/2018,Travel & Subsistence,Investigations & Enforcement Services,Staff Payment,900001365,13.50,
BEIS,The Insolvency Service,06/06/2018,Travel & Subsistence,Investigations & Enforcement Services,Staff Payment,900001365,9.00,
BEIS,The Insolvency Service,06/06/2018,Travel & Subsistence,Investigations & Enforcement Services,Staff Payment,900001365,18.90,
BEIS,The Insolvency Service,06/06/2018,Travel & Subsistence,Investigations & Enforcement Services,Staff Payment,900001366,3.60,
BEIS,The Insolvency Service,06/06/2018,Travel & Subsistence,Investigations & Enforcement Services,Staff Payment,900001366,45.90,
BEIS,The Insolvency Service,06/06/2018,Travel & Subsistence,Investigations & Enforcement Services,Staff Payment,900001366,17.10,
BEIS,The Insolvency Service,06/06/2018,Travel & Subsistence,Investigations & Enforcement Services,Staff Payment,900001366,5.00,
BEIS,The Insolvency Service,06/06/2018,Travel & Subsistence,Investigations & Enforcement Services,Staff Payment,900001366,34.20,
BEIS,The Insolvency Service,06/06/2018,Travel & Subsistence,Investigations & Enforcement Services,Staff Payment,900001366,35.10,
BEIS,The Insolvency Service,06/06/2018,Travel & Subsistence,Investigations & Enforcement Services,Staff Payment,900001366,10.00,
BEIS,The Insolvency Service,06/06/2018,Travel & Subsistence,Investigations & Enforcement Services,Staff Payment,900001366,1.60,
BEIS,The Insolvency Service,06/06/2018,Travel & Subsistence,Investigations & Enforcement Services,Staff Payment,900001366,18.90,
BEIS,The Insolvency Service,06/06/2018,Travel & Subsistence,Investigations & Enforcement Services,Staff Payment,900001366,5.00,
BEIS,The Insolvency Service,06/06/2018,Travel & Subsistence,Investigations & Enforcement Services,Staff Payment,900001366,2.80,
BEIS,The Insolvency Service,06/06/2018,Travel & Subsistence,Investigations & Enforcement Services,Staff Payment,900001366,5.00,
BEIS,The Insolvency Service,06/06/2018,Travel & Subsistence,Investigations & Enforcement Services,Staff Payment,900001366,4.40,
BEIS,The Insolvency Service,06/06/2018,Travel & Subsistence,Investigations & Enforcement Services,Staff Payment,900001366,5.00,
BEIS,The Insolvency Service,06/06/2018,Travel & Subsistence,Investigations & Enforcement Services,Staff Payment,900001366,4.00,
BEIS,The Insolvency Service,06/06/2018,Travel & Subsistence,Investigations & Enforcement Services,Staff Payment,900001366,4.45,
BEIS,The Insolvency Service,06/06/2018,Travel & Subsistence,Investigations & Enforcement Services,Staff Payment,900001366,20.70,
BEIS,The Insolvency Service,06/06/2018,Travel & Subsistence,Investigations & Enforcement Services,Staff Payment,900001366,17.10,
BEIS,The Insolvency Service,06/06/2018,Travel & Subsistence,Investigations & Enforcement Services,Staff Payment,900001366,12.60,
BEIS,The Insolvency Service,06/06/2018,Travel & Subsistence,Investigations & Enforcement Services,Staff Payment,900001366,30.60,
BEIS,The Insolvency Service,06/06/2018,Travel & Subsistence,Investigations & Enforcement Services,Staff Payment,900001366,25.20,
BEIS,The Insolvency Service,06/06/2018,Travel & Subsistence,Investigations & Enforcement Services,Staff Payment,900001366,5.00,
BEIS,The Insolvency Service,06/06/2018,Travel & Subsistence,Investigations & Enforcement Services,Staff Payment,900001366,5.00,
BEIS,The Insolvency Service,06/06/2018,Travel & Subsistence,Investigations & Enforcement Services,Staff Payment,900001366,5.00,
BEIS,The Insolvency Service,06/06/2018,Travel & Subsistence,Investigations & Enforcement Services,Staff Payment,900001366,5.00,
BEIS,The Insolvency Service,06/06/2018,Travel & Subsistence,Investigations & Enforcement Services,Staff Payment,900001369,5.00,
BEIS,The Insolvency Service,06/06/2018,Travel & Subsistence,Investigations & Enforcement Services,Staff Payment,900001369,17.98,
BEIS,The Insolvency Service,06/06/2018,Travel & Subsistence,Investigations & Enforcement Services,Staff Payment,900001369,5.00,
BEIS,The Insolvency Service,06/06/2018,Travel & Subsistence,Investigations & Enforcement Services,Staff Payment,900001369,13.45,
BEIS,The Insolvency Service,06/06/2018,Travel & Subsistence,Investigations & Enforcement Services,Staff Payment,900001369,8.10,
BEIS,The Insolvency Service,06/06/2018,Travel & Subsistence,Investigations & Enforcement Services,Staff Payment,900001369,26.10,
BEIS,The Insolvency Service,06/06/2018,Travel & Subsistence,Investigations & Enforcement Services,Staff Payment,900001369,43.20,
BEIS,The Insolvency Service,06/06/2018,Travel & Subsistence,Investigations & Enforcement Services,Staff Payment,900001369,3.60,
BEIS,The Insolvency Service,06/06/2018,Travel & Subsistence,Investigations & Enforcement Services,Staff Payment,900001369,39.60,
BEIS,The Insolvency Service,06/06/2018,Travel & Subsistence,Investigations & Enforcement Services,Staff Payment,900001369,3.60,
BEIS,The Insolvency Service,06/06/2018,Travel & Subsistence,Investigations & Enforcement Services,Staff Payment,900001369,30.60,
BEIS,The Insolvency Service,06/06/2018,Travel & Subsistence,Investigations & Enforcement Services,Staff Payment,900001369,13.50,
BEIS,The Insolvency Service,06/06/2018,Travel & Subsistence,Investigations & Enforcement Services,Staff Payment,900001369,10.00,
BEIS,The Insolvency Service,06/06/2018,Travel & Subsistence,Investigations & Enforcement Services,Staff Payment,900001369,9.80,
BEIS,The Insolvency Service,06/06/2018,Travel & Subsistence,Investigations & Enforcement Services,Staff Payment,900001369,4.00,
BEIS,The Insolvency Service,06/06/2018,Travel & Subsistence,Investigations & Enforcement Services,Staff Payment,900001369,7.20,
BEIS,The Insolvency Service,06/06/2018,Travel & Subsistence,Investigations & Enforcement Services,Staff Payment,900001369,27.90,
BEIS,The Insolvency Service,06/06/2018,Travel & Subsistence,Investigations & Enforcement Services,Staff Payment,900001369,21.60,
BEIS,The Insolvency Service,06/06/2018,Travel & Subsistence,Investigations & Enforcement Services,Staff Payment,900001369,2.00,
BEIS,The Insolvency Service,06/06/2018,Travel & Subsistence,Investigations & Enforcement Services,Staff Payment,900001302,45.45,
BEIS,The Insolvency Service,06/06/2018,Travel & Subsistence,Investigations & Enforcement Services,Staff Payment,900001302,45.90,
BEIS,The Insolvency Service,06/06/2018,Travel & Subsistence,Investigations & Enforcement Services,Staff Payment,900001302,5.00,
BEIS,The Insolvency Service,06/06/2018,Travel & Subsistence,Investigations & Enforcement Services,Staff Payment,900001302,5.80,
BEIS,The Insolvency Service,06/06/2018,Travel & Subsistence,Investigations & Enforcement Services,Staff Payment,900001302,5.00,
BEIS,The Insolvency Service,06/06/2018,Travel & Subsistence,Investigations & Enforcement Services,Staff Payment,900001302,4.50,
BEIS,The Insolvency Service,06/06/2018,Travel & Subsistence,Investigations & Enforcement Services,Staff Payment,900001302,4.79,
BEIS,The Insolvency Service,06/06/2018,Travel & Subsistence,Investigations & Enforcement Services,Staff Payment,900001302,45.45,
BEIS,The Insolvency Service,06/06/2018,Travel & Subsistence,Investigations & Enforcement Services,Staff Payment,900001302,6.00,
BEIS,The Insolvency Service,06/06/2018,Travel & Subsistence,Investigations & Enforcement Services,Staff Payment,900001302,5.80,
BEIS,The Insolvency Service,06/06/2018,Travel & Subsistence,Investigations & Enforcement Services,Staff Payment,900001302,37.50,
BEIS,The Insolvency Service,06/06/2018,Travel & Subsistence,Investigations & Enforcement Services,Staff Payment,900001302,8.80,
BEIS,The Insolvency Service,06/06/2018,Travel & Subsistence,Investigations & Enforcement Services,Staff Payment,900001302,104.85,
BEIS,The Insolvency Service,06/06/2018,Travel & Subsistence,Investigations & Enforcement Services,Staff Payment,900001302,45.45,
BEIS,The Insolvency Service,06/06/2018,Travel & Subsistence,Investigations & Enforcement Services,Staff Payment,900001302,3.20,
BEIS,The Insolvency Service,06/06/2018,Travel & Subsistence,Investigations & Enforcement Services,Staff Payment,900001302,5.00,
BEIS,The Insolvency Service,06/06/2018,Travel & Subsistence,Investigations & Enforcement Services,Staff Payment,900001261,139.50,
BEIS,The Insolvency Service,06/06/2018,Travel & Subsistence,Investigations & Enforcement Services,Staff Payment,900001261,8.80,
BEIS,The Insolvency Service,06/06/2018,Travel & Subsistence,Investigations & Enforcement Services,Staff Payment,900001261,6.65,
BEIS,The Insolvency Service,06/06/2018,Travel & Subsistence,Investigations & Enforcement Services,Staff Payment,900001261,27.00,
BEIS,The Insolvency Service,06/06/2018,Travel & Subsistence,Investigations & Enforcement Services,Staff Payment,900001261,5.80,
BEIS,The Insolvency Service,06/06/2018,Travel & Subsistence,Investigations & Enforcement Services,Staff Payment,900001261,69.30,
BEIS,The Insolvency Service,06/06/2018,Travel & Subsistence,Investigations & Enforcement Services,Staff Payment,900001261,27.90,
BEIS,The Insolvency Service,06/06/2018,Travel & Subsistence,Investigations & Enforcement Services,Staff Payment,900001261,25.00,
BEIS,The Insolvency Service,06/06/2018,Travel & Subsistence,Investigations & Enforcement Services,Staff Payment,900001261,28.80,
BEIS,The Insolvency Service,06/06/2018,Travel & Subsistence,Investigations & Enforcement Services,Staff Payment,900001296,5.00,
BEIS,The Insolvency Service,06/06/2018,Travel & Subsistence,Investigations & Enforcement Services,Staff Payment,900001296,10.00,
BEIS,The Insolvency Service,06/06/2018,Travel & Subsistence,Investigations & Enforcement Services,Staff Payment,900001296,3.99,
BEIS,The Insolvency Service,06/06/2018,Travel & Subsistence,Investigations & Enforcement Services,Staff Payment,900001296,5.20,
BEIS,The Insolvency Service,06/06/2018,Travel & Subsistence,Investigations & Enforcement Services,Staff Payment,900001296,67.50,
BEIS,The Insolvency Service,06/06/2018,Travel & Subsistence,Investigations & Enforcement Services,Staff Payment,900001296,4.50,
BEIS,The Insolvency Service,06/06/2018,Travel & Subsistence,Investigations & Enforcement Services,Staff Payment,900001296,6.00,
BEIS,The Insolvency Service,06/06/2018,Travel & Subsistence,Investigations & Enforcement Services,Staff Payment,900001296,93.90,
BEIS,The Insolvency Service,06/06/2018,Travel & Subsistence,Investigations & Enforcement Services,Staff Payment,900001296,36.00,
BEIS,The Insolvency Service,06/06/2018,Travel & Subsistence,Investigations & Enforcement Services,Staff Payment,900001296,207.00,
BEIS,The Insolvency Service,06/06/2018,Travel & Subsistence,Investigations & Enforcement Services,Staff Payment,900001296,5.00,
BEIS,The Insolvency Service,06/06/2018,Travel & Subsistence,Investigations & Enforcement Services,Staff Payment,900001296,1.50,
BEIS,The Insolvency Service,06/06/2018,Travel & Subsistence,Investigations & Enforcement Services,Staff Payment,900001296,3.50,
BEIS,The Insolvency Service,06/06/2018,Travel & Subsistence,Chief Executive Office,Staff Payment,900001042,8.74,
BEIS,The Insolvency Service,06/06/2018,Travel & Subsistence,Chief Executive Office,Staff Payment,900001042,5.00,
BEIS,The Insolvency Service,06/06/2018,Travel & Subsistence,Chief Executive Office,Staff Payment,900001042,5.00,
BEIS,The Insolvency Service,06/06/2018,Travel & Subsistence,Chief Executive Office,Staff Payment,900001171,7.00,
BEIS,The Insolvency Service,06/06/2018,Travel & Subsistence,Chief Executive Office,Staff Payment,900001171,5.00,
BEIS,The Insolvency Service,06/06/2018,Travel & Subsistence,Chief Executive Office,Staff Payment,900001171,9.20,
BEIS,The Insolvency Service,06/06/2018,Travel & Subsistence,Chief Executive Office,Staff Payment,900001171,5.00,
BEIS,The Insolvency Service,06/06/2018,Travel & Subsistence,Chief Executive Office,Staff Payment,900001171,7.00,
BEIS,The Insolvency Service,06/06/2018,Travel & Subsistence,Chief Executive Office,Staff Payment,900001217,4.83,
BEIS,The Insolvency Service,06/06/2018,Travel & Subsistence,Chief Executive Office,Staff Payment,900001217,2.65,
BEIS,The Insolvency Service,06/06/2018,Travel & Subsistence,Chief Executive Office,Staff Payment,900001293,3.39,
BEIS,The Insolvency Service,06/06/2018,Travel & Subsistence,Chief Executive Office,Staff Payment,900001195,5.00,
BEIS,The Insolvency Service,06/06/2018,Travel & Subsistence,Chief Executive Office,Staff Payment,900001195,2.30,
BEIS,The Insolvency Service,06/06/2018,Travel & Subsistence,Chief Executive Office,Staff Payment,900001195,9.50,
BEIS,The Insolvency Service,06/06/2018,Travel & Subsistence,Chief Executive Office,Staff Payment,900001195,15.00,
BEIS,The Insolvency Service,06/06/2018,Travel & Subsistence,Chief Executive Office,Staff Payment,900001195,5.00,
BEIS,The Insolvency Service,06/06/2018,Travel & Subsistence,Chief Executive Office,Staff Payment,900001195,27.00,
BEIS,The Insolvency Service,06/06/2018,Travel & Subsistence,Chief Executive Office,Staff Payment,900001196,5.00,
BEIS,The Insolvency Service,06/06/2018,Travel & Subsistence,Chief Executive Office,Staff Payment,900001196,20.00,
BEIS,The Insolvency Service,06/06/2018,Travel & Subsistence,Chief Executive Office,Staff Payment,900001196,13.20,
BEIS,The Insolvency Service,06/06/2018,Travel & Subsistence,Chief Executive Office,Staff Payment,900001196,5.00,
BEIS,The Insolvency Service,06/06/2018,Travel & Subsistence,Chief Executive Office,Staff Payment,900001196,8.00,
BEIS,The Insolvency Service,06/06/2018,Travel & Subsistence,Chief Executive Office,Staff Payment,900001289,5.00,
BEIS,The Insolvency Service,06/06/2018,Travel & Subsistence,Chief Executive Office,Staff Payment,900001289,15.00,
BEIS,The Insolvency Service,06/06/2018,Travel & Subsistence,Chief Executive Office,Staff Payment,900001289,5.00,
BEIS,The Insolvency Service,06/06/2018,Travel & Subsistence,Chief Executive Office,Staff Payment,900001289,2.72,
BEIS,The Insolvency Service,06/06/2018,Travel & Subsistence,Chief Executive Office,Staff Payment,900001290,5.00,
BEIS,The Insolvency Service,06/06/2018,Travel & Subsistence,Chief Executive Office,Staff Payment,900001290,5.00,
BEIS,The Insolvency Service,06/06/2018,Travel & Subsistence,Chief Executive Office,Staff Payment,900001291,5.00,
BEIS,The Insolvency Service,06/06/2018,Travel & Subsistence,Chief Executive Office,Staff Payment,900001291,2.50,
BEIS,The Insolvency Service,06/06/2018,Travel & Subsistence,Chief Executive Office,Staff Payment,900001292,5.00,
BEIS,The Insolvency Service,06/06/2018,Travel & Subsistence,Chief Executive Office,Staff Payment,900001292,6.00,
BEIS,The Insolvency Service,06/06/2018,Travel & Subsistence,Investigations & Enforcement Services,Staff Payment,900001384,3.20,
BEIS,The Insolvency Service,06/06/2018,Travel & Subsistence,Investigations & Enforcement Services,Staff Payment,900001385,4.20,
BEIS,The Insolvency Service,06/06/2018,Travel & Subsistence,Investigations & Enforcement Services,Staff Payment,900001386,17.70,
BEIS,The Insolvency Service,06/06/2018,Insolvency Case Related Costs,Official Receiver Services,Hmcts,300001033,308.00,
BEIS,The Insolvency Service,06/06/2018,Insolvency Case Related Costs,Official Receiver Services,Hmcts,300001037,308.00,
BEIS,The Insolvency Service,06/06/2018,Investigation & Enforcement Costs,Criminal Enforcement Team,Citadel Chambers,300001099,763.80,241217250
BEIS,The Insolvency Service,06/06/2018,Investigation & Enforcement Costs,Official Receiver Services,Hmcts,300001063,528.00,
BEIS,The Insolvency Service,06/06/2018,Investigation & Enforcement Costs,Official Receiver Services,Hmcts,300001064,528.00,
BEIS,The Insolvency Service,06/06/2018,Accomodation,Investigations & Enforcement Services,Restore Datashred (Data Solutions 2016 Ltd T/A Restore Data),300001075,58.27,240193143
BEIS,The Insolvency Service,06/06/2018,Investigation & Enforcement Costs,Criminal Enforcement Team,18 Red Lion Court Chambers,300001143,1435.20,766793665
BEIS,The Insolvency Service,06/06/2018,Travel & Subsistence,People & Capability,Staff Payment,900001355,10.45,
BEIS,The Insolvency Service,06/06/2018,Travel & Subsistence,People & Capability,Staff Payment,900001355,11.00,
BEIS,The Insolvency Service,06/06/2018,Travel & Subsistence,People & Capability,Staff Payment,900001355,5.00,
BEIS,The Insolvency Service,06/06/2018,Travel & Subsistence,People & Capability,Staff Payment,900001358,3.99,
BEIS,The Insolvency Service,06/06/2018,Travel & Subsistence,People & Capability,Staff Payment,900001364,5.00,
BEIS,The Insolvency Service,06/06/2018,Travel & Subsistence,People & Capability,Staff Payment,900001364,5.00,
BEIS,The Insolvency Service,06/06/2018,Travel & Subsistence,People & Capability,Staff Payment,900001364,6.79,
BEIS,The Insolvency Service,06/06/2018,Travel & Subsistence,Investigations & Enforcement Services,Staff Payment,900001299,113.17,
BEIS,The Insolvency Service,06/06/2018,Travel & Subsistence,Investigations & Enforcement Services,Staff Payment,900001299,86.19,
BEIS,The Insolvency Service,06/06/2018,Travel & Subsistence,Investigations & Enforcement Services,Staff Payment,900001299,88.79,
BEIS,The Insolvency Service,06/06/2018,Travel & Subsistence,Investigations & Enforcement Services,Staff Payment,900001312,6.35,
BEIS,The Insolvency Service,06/06/2018,Travel & Subsistence,Investigations & Enforcement Services,Staff Payment,900001313,6.35,
BEIS,The Insolvency Service,06/06/2018,Travel & Subsistence,Investigations & Enforcement Services,Staff Payment,900001314,6.35,
BEIS,The Insolvency Service,06/06/2018,Travel & Subsistence,Investigations & Enforcement Services,Staff Payment,900001316,6.35,
BEIS,The Insolvency Service,06/06/2018,Travel & Subsistence,Investigations & Enforcement Services,Staff Payment,900001316,3.60,
BEIS,The Insolvency Service,06/06/2018,Travel & Subsistence,Investigations & Enforcement Services,Staff Payment,900001317,6.35,
BEIS,The Insolvency Service,06/06/2018,Travel & Subsistence,Investigations & Enforcement Services,Staff Payment,900001318,3.99,
BEIS,The Insolvency Service,06/06/2018,Travel & Subsistence,Investigations & Enforcement Services,Staff Payment,900001318,6.35,
BEIS,The Insolvency Service,06/06/2018,Travel & Subsistence,Investigations & Enforcement Services,Staff Payment,900001319,6.35,
BEIS,The Insolvency Service,06/06/2018,Travel & Subsistence,Investigations & Enforcement Services,Staff Payment,900001319,4.45,
BEIS,The Insolvency Service,06/06/2018,Travel & Subsistence,Investigations & Enforcement Services,Staff Payment,900001320,28.80,
BEIS,The Insolvency Service,06/06/2018,Travel & Subsistence,Investigations & Enforcement Services,Staff Payment,900001321,6.35,
BEIS,The Insolvency Service,06/06/2018,Travel & Subsistence,Investigations & Enforcement Services,Staff Payment,900001323,18.25,
BEIS,The Insolvency Service,06/06/2018,Travel & Subsistence,Investigations & Enforcement Services,Staff Payment,900001323,5.00,
BEIS,The Insolvency Service,06/06/2018,Travel & Subsistence,Investigations & Enforcement Services,Staff Payment,900001324,6.35,
BEIS,The Insolvency Service,06/06/2018,Travel & Subsistence,Investigations & Enforcement Services,Staff Payment,900001324,5.00,
BEIS,The Insolvency Service,06/06/2018,Travel & Subsistence,Chief Executive Office,Staff Payment,900001381,10.98,
BEIS,The Insolvency Service,06/06/2018,Travel & Subsistence,Business Service Division,Staff Payment,900001362,5.00,
BEIS,The Insolvency Service,06/06/2018,Travel & Subsistence,Business Service Division,Staff Payment,900001362,7.32,
BEIS,The Insolvency Service,06/06/2018,Travel & Subsistence,Business Service Division,Staff Payment,900001362,4.55,
BEIS,The Insolvency Service,07/06/2018,Computer and IT Systems,Business Service Division,Tnt Uk Ltd,300000410,23.11,354715057
BEIS,The Insolvency Service,07/06/2018,Computer and IT Systems,Business Service Division,City Sprint Uk Ltd,300000432,20.04,997327364
BEIS,The Insolvency Service,07/06/2018,Computer and IT Systems,Business Service Division,City Sprint Uk Ltd,300000415,169.05,997327364
BEIS,The Insolvency Service,07/06/2018,Computer and IT Systems,Information & Technology,Vodafone - Cable & Wireless Communications,300000468,4079.24,569953277
BEIS,The Insolvency Service,07/06/2018,Computer and IT Systems,Information & Technology,Bt Telephone Payment Centre,300001008,39004.87,245719348
BEIS,The Insolvency Service,07/06/2018,Office Machinery,Business Service Division,Hague Computer Supplies,300000971,7220.00,333613774
BEIS,The Insolvency Service,07/06/2018,Travel & Subsistence,People & Capability,Staff Payment,900001221,20.00,
BEIS,The Insolvency Service,07/06/2018,Travel & Subsistence,People & Capability,Staff Payment,900001221,3.50,
BEIS,The Insolvency Service,07/06/2018,Travel & Subsistence,People & Capability,Staff Payment,900001221,4.14,
BEIS,The Insolvency Service,07/06/2018,Travel & Subsistence,Official Receiver Services,Staff Payment,900001425,13.18,
BEIS,The Insolvency Service,07/06/2018,Travel & Subsistence,Official Receiver Services,Staff Payment,900001425,3.10,
BEIS,The Insolvency Service,07/06/2018,Travel & Subsistence,Official Receiver Services,Staff Payment,900001411,5.00,
BEIS,The Insolvency Service,07/06/2018,Travel & Subsistence,Official Receiver Services,Staff Payment,900001412,5.00,
BEIS,The Insolvency Service,07/06/2018,Travel & Subsistence,Official Receiver Services,Staff Payment,900001412,15.00,
BEIS,The Insolvency Service,07/06/2018,Travel & Subsistence,Official Receiver Services,Staff Payment,900001412,5.00,
BEIS,The Insolvency Service,07/06/2018,Travel & Subsistence,Official Receiver Services,Staff Payment,900001412,5.00,
BEIS,The Insolvency Service,07/06/2018,Travel & Subsistence,Official Receiver Services,Staff Payment,900001412,20.00,
BEIS,The Insolvency Service,07/06/2018,Travel & Subsistence,Official Receiver Services,Staff Payment,900001413,5.00,
BEIS,The Insolvency Service,07/06/2018,Travel & Subsistence,Official Receiver Services,Staff Payment,900001413,15.00,
BEIS,The Insolvency Service,07/06/2018,Travel & Subsistence,Official Receiver Services,Staff Payment,900001413,5.00,
BEIS,The Insolvency Service,07/06/2018,Travel & Subsistence,Official Receiver Services,Staff Payment,900001413,3.99,
BEIS,The Insolvency Service,07/06/2018,Travel & Subsistence,People & Capability,Staff Payment,900001176,8.00,
BEIS,The Insolvency Service,07/06/2018,Travel & Subsistence,People & Capability,Staff Payment,900001176,2.80,
BEIS,The Insolvency Service,07/06/2018,Travel & Subsistence,People & Capability,Staff Payment,900001176,5.80,
BEIS,The Insolvency Service,07/06/2018,Travel & Subsistence,People & Capability,Staff Payment,900001176,7.35,
BEIS,The Insolvency Service,07/06/2018,Travel & Subsistence,Official Receiver Services,Staff Payment,900001379,11.65,
BEIS,The Insolvency Service,07/06/2018,Travel & Subsistence,Official Receiver Services,Staff Payment,900001379,6.75,
BEIS,The Insolvency Service,07/06/2018,Travel & Subsistence,Official Receiver Services,Staff Payment,900001379,3.30,
BEIS,The Insolvency Service,07/06/2018,Travel & Subsistence,Official Receiver Services,Staff Payment,900001379,8.35,
BEIS,The Insolvency Service,07/06/2018,Travel & Subsistence,Official Receiver Services,Staff Payment,900001379,0.95,
BEIS,The Insolvency Service,07/06/2018,Travel & Subsistence,Official Receiver Services,Staff Payment,900001379,2.65,
BEIS,The Insolvency Service,07/06/2018,Travel & Subsistence,Official Receiver Services,Staff Payment,900001379,3.25,
BEIS,The Insolvency Service,07/06/2018,Travel & Subsistence,Chief Executive Office,Staff Payment,900001416,25.90,
BEIS,The Insolvency Service,07/06/2018,Travel & Subsistence,People & Capability,Staff Payment,900001076,5.00,
BEIS,The Insolvency Service,07/06/2018,Travel & Subsistence,Investigations & Enforcement Services,Staff Payment,900001431,20.00,
BEIS,The Insolvency Service,07/06/2018,Travel & Subsistence,Investigations & Enforcement Services,Staff Payment,900001431,20.00,
BEIS,The Insolvency Service,07/06/2018,Travel & Subsistence,Investigations & Enforcement Services,Staff Payment,900001431,4.70,
BEIS,The Insolvency Service,07/06/2018,Travel & Subsistence,Investigations & Enforcement Services,Staff Payment,900001431,20.00,
BEIS,The Insolvency Service,07/06/2018,Travel & Subsistence,Investigations & Enforcement Services,Staff Payment,900001431,25.00,
BEIS,The Insolvency Service,07/06/2018,Travel & Subsistence,Investigations & Enforcement Services,Staff Payment,900001431,25.00,
BEIS,The Insolvency Service,07/06/2018,Travel & Subsistence,Investigations & Enforcement Services,Staff Payment,900001431,25.00,
BEIS,The Insolvency Service,07/06/2018,Travel & Subsistence,Investigations & Enforcement Services,Staff Payment,900001431,25.00,
BEIS,The Insolvency Service,07/06/2018,Accomodation,Finance & Commercial,Gva,300001152,4188.00,657719590
BEIS,The Insolvency Service,08/06/2018,Accomodation,Finance & Commercial,Prydis Support Ltd,300001101,41625.60,974841283
BEIS,The Insolvency Service,08/06/2018,Computer and IT Systems,Business Service Division,Tnt Uk Ltd,300001193,8.84,354715057
BEIS,The Insolvency Service,08/06/2018,Training Costs,People & Capability,Skills For Justice (Enterprises) Ltd,300001149,750.00,167140810
BEIS,The Insolvency Service,09/06/2018,Computer and IT Systems,Official Receiver Services,City Sprint Uk Ltd,300001246,199.80,997327364
BEIS,The Insolvency Service,09/06/2018,Computer and IT Systems,Official Receiver Services,City Sprint Uk Ltd,300001248,143.40,997327364
BEIS,The Insolvency Service,11/06/2018,Insolvency Case Related Costs,Official Receiver Services,HMCTS,300001086,110.00,
BEIS,The Insolvency Service,11/06/2018,Accomodation,Finance & Commercial,Beis - Dept. For Business Innovation & Skills,300001113,57600.48,888825550
BEIS,The Insolvency Service,11/06/2018,Investigation & Enforcement Costs,Criminal Enforcement Team,Albion Chambers,300001141,1056.04,822187438
BEIS,The Insolvency Service,12/06/2018,Insolvency Case Related Costs,Official Receiver Services,Iron Mountain (Uk) Ltd,300001045,35.57,607937516
BEIS,The Insolvency Service,12/06/2018,Insolvency Case Related Costs,Finance & Commercial,Sirs (Europe) Ltd,300000980,22546.44,990834974
BEIS,The Insolvency Service,12/06/2018,Investigation & Enforcement Costs,Criminal Enforcement Team,3 Raymond Buildings,300000963,488.40,155955083
BEIS,The Insolvency Service,12/06/2018,Investigation & Enforcement Costs,Criminal Enforcement Team,Foundry Chambers,300000643,2679.00,744244930
BEIS,The Insolvency Service,12/06/2018,Computer and IT Systems,Official Receiver Services,City Sprint Uk Ltd,300001009,37.00,997327364
BEIS,The Insolvency Service,12/06/2018,Computer and IT Systems,Official Receiver Services,City Sprint Uk Ltd,300001015,41.50,997327364
BEIS,The Insolvency Service,12/06/2018,Computer and IT Systems,Official Receiver Services,City Sprint Uk Ltd,300001016,32.50,997327364
BEIS,The Insolvency Service,12/06/2018,Computer and IT Systems,Official Receiver Services,City Sprint Uk Ltd,300001017,39.00,997327364
BEIS,The Insolvency Service,12/06/2018,Investigation & Enforcement Costs,Criminal Enforcement Team,Park Square Barristers,300001034,2592.00,875308991
BEIS,The Insolvency Service,12/06/2018,Investigation & Enforcement Costs,Criminal Enforcement Team,18 Red Lion Court Chambers,300000522,2309.88,766793665
BEIS,The Insolvency Service,12/06/2018,Computer and IT Systems,Information & Technology,Experian Ltd,300001055,9783.60,887133593
BEIS,The Insolvency Service,12/06/2018,Investigation & Enforcement Costs,Investigations & Enforcement Services,Mendip Media Group Ltd (Now Trading As Appen) - (Transcri),300001039,48.26,609546425
BEIS,The Insolvency Service,12/06/2018,Other Costs,Official Receiver Services,The Surveillance Group Ltd,300000876,2207.82,918530324
BEIS,The Insolvency Service,12/06/2018,Investigation & Enforcement Costs,Criminal Enforcement Team,Foundry Chambers,300000645,618.60,744244930
BEIS,The Insolvency Service,12/06/2018,Investigation & Enforcement Costs,Criminal Enforcement Team,Foundry Chambers,300000654,270.60,744244930
BEIS,The Insolvency Service,12/06/2018,Investigation & Enforcement Costs,Criminal Enforcement Team,18 Red Lion Court Chambers,300000523,4686.00,766793665
BEIS,The Insolvency Service,12/06/2018,Investigation & Enforcement Costs,Criminal Enforcement Team,18 Red Lion Court Chambers,300000524,37.50,766793665
BEIS,The Insolvency Service,12/06/2018,Investigation & Enforcement Costs,Criminal Enforcement Team,18 Red Lion Court Chambers,300000519,248.40,766793665
BEIS,The Insolvency Service,12/06/2018,Investigation & Enforcement Costs,Criminal Enforcement Team,18 Red Lion Court Chambers,300000525,1329.60,766793665
BEIS,The Insolvency Service,12/06/2018,Other Costs,Criminal Enforcement Team,18 Red Lion Court Chambers,300000518,1644.66,766793665
BEIS,The Insolvency Service,12/06/2018,Investigation & Enforcement Costs,Criminal Enforcement Team,Harrington Street Chambers,300000636,26793.45,
BEIS,The Insolvency Service,12/06/2018,Investigation & Enforcement Costs,Criminal Enforcement Team,Harrington Street Chambers,300000641,2443.75,
BEIS,The Insolvency Service,12/06/2018,Investigation & Enforcement Costs,Criminal Enforcement Team,Exchange Chambers,300000706,366.00,
BEIS,The Insolvency Service,12/06/2018,Investigation & Enforcement Costs,Criminal Enforcement Team,Exchange Chambers,300000709,384.00,
BEIS,The Insolvency Service,12/06/2018,Investigation & Enforcement Costs,Criminal Enforcement Team,Exchange Chambers,300000728,199.80,
BEIS,The Insolvency Service,12/06/2018,Investigation & Enforcement Costs,Criminal Enforcement Team,Exchange Chambers,300000729,336.00,
BEIS,The Insolvency Service,12/06/2018,Investigation & Enforcement Costs,Criminal Enforcement Team,Government Legal Department,300000689,331.32,766793665
BEIS,The Insolvency Service,12/06/2018,Investigation & Enforcement Costs,Criminal Enforcement Team,Government Legal Department,300000690,1074.80,766793665
BEIS,The Insolvency Service,12/06/2018,Investigation & Enforcement Costs,Criminal Enforcement Team,Government Legal Department,300000691,17294.61,766793665
BEIS,The Insolvency Service,12/06/2018,Legal Costs,People & Capability,Government Legal Department,300000828,647.28,766793665
BEIS,The Insolvency Service,12/06/2018,Investigation & Enforcement Costs,Criminal Enforcement Team,18 Red Lion Court Chambers,300000520,2857.50,766793665
BEIS,The Insolvency Service,12/06/2018,Insolvency Case Related Costs,Official Receiver Services,The Stationery Office Ltd,300000312,62.15,662774703
BEIS,The Insolvency Service,12/06/2018,Investigation & Enforcement Costs,Criminal Enforcement Team,18 Red Lion Court Chambers,300000521,8363.34,766793665
BEIS,The Insolvency Service,12/06/2018,Investigation & Enforcement Costs,Investigations & Enforcement Services,Mendip Media Group Ltd (Now Trading As Appen) - (Transcri),300001041,256.54,609546425
BEIS,The Insolvency Service,12/06/2018,Investigation & Enforcement Costs,Official Receiver Services,Hmcts,300001062,528.00,
BEIS,The Insolvency Service,12/06/2018,Investigation & Enforcement Costs,Investigations & Enforcement Services,Mendip Media Group Ltd (Now Trading As Appen) - (Transcri),300001042,279.84,609546425
BEIS,The Insolvency Service,12/06/2018,Investigation & Enforcement Costs,Investigations & Enforcement Services,Mendip Media Group Ltd (Now Trading As Appen) - (Transcri),300001043,232.41,609546425
BEIS,The Insolvency Service,12/06/2018,Computer and IT Systems,Business Service Division,Tnt Uk Ltd,300000492,22.42,354715057
BEIS,The Insolvency Service,12/06/2018,Employee Related Costs,People & Capability,Cabinet Office,300000678,300.00,888801080
BEIS,The Insolvency Service,12/06/2018,Computer and IT Systems,Information & Technology,"Govdelivery, Llc D/B/A Granicus",300000821,786.00,943669974
BEIS,The Insolvency Service,12/06/2018,Investigation & Enforcement Costs,Criminal Enforcement Team,Lamb Building Chambers,300001035,120.00,203245162
BEIS,The Insolvency Service,12/06/2018,Investigation & Enforcement Costs,Criminal Enforcement Team,Exchange Chambers,300000708,767.64,
BEIS,The Insolvency Service,12/06/2018,Investigation & Enforcement Costs,Criminal Enforcement Team,Government Legal Department,300000917,18484.32,766793665
BEIS,The Insolvency Service,12/06/2018,Investigation & Enforcement Costs,Criminal Enforcement Team,Government Legal Department,300000918,712.80,766793665
BEIS,The Insolvency Service,12/06/2018,Investigation & Enforcement Costs,Criminal Enforcement Team,Government Legal Department,300000919,145.08,766793665
BEIS,The Insolvency Service,12/06/2018,Investigation & Enforcement Costs,Criminal Enforcement Team,Government Legal Department,300000920,1550.88,766793665
BEIS,The Insolvency Service,12/06/2018,Legal Costs,Official Receiver Services,Government Legal Department,300000816,1612.80,766793665
BEIS,The Insolvency Service,12/06/2018,Legal Costs,People & Capability,Government Legal Department,300000833,453.60,766793665
BEIS,The Insolvency Service,12/06/2018,Investigation & Enforcement Costs,Investigations & Enforcement Services,Tnt Uk Ltd,300000886,32.53,354715057
BEIS,The Insolvency Service,12/06/2018,Investigation & Enforcement Costs,Criminal Enforcement Team,Harrington Street Chambers,300000639,2115.00,
BEIS,The Insolvency Service,12/06/2018,Investigation & Enforcement Costs,Investigations & Enforcement Services,Mendip Media Group Ltd (Now Trading As Appen) - (Transcri),300001040,156.21,609546425
BEIS,The Insolvency Service,12/06/2018,Investigation & Enforcement Costs,Investigations & Enforcement Services,Mendip Media Group Ltd (Now Trading As Appen) - (Transcri),300001044,55.88,609546425
BEIS,The Insolvency Service,12/06/2018,Investigation & Enforcement Costs,Official Receiver Services,Hmcts,300001066,280.00,
BEIS,The Insolvency Service,12/06/2018,Investigation & Enforcement Costs,Official Receiver Services,Hmcts,300001065,280.00,
BEIS,The Insolvency Service,12/06/2018,Insolvency Case Related Costs,Official Receiver Services,The Stationery Office Ltd,300000859,149.16,662774703
BEIS,The Insolvency Service,12/06/2018,Insolvency Case Related Costs,Official Receiver Services,The Stationery Office Ltd,300000860,149.16,662774703
BEIS,The Insolvency Service,12/06/2018,Investigation & Enforcement Costs,Criminal Enforcement Team,Foundry Chambers,300000940,1387.50,744244930
BEIS,The Insolvency Service,12/06/2018,Investigation & Enforcement Costs,Criminal Enforcement Team,Foundry Chambers,300000944,528.00,744244930
BEIS,The Insolvency Service,12/06/2018,Insolvency Case Related Costs,Official Receiver Services,The Stationery Office Ltd,300000861,74.58,662774703
BEIS,The Insolvency Service,12/06/2018,Office Machinery,Investigations & Enforcement Services,Pitney Bowes - Purchasepower,300000977,237.37,
BEIS,The Insolvency Service,12/06/2018,Accomodation,Finance & Commercial,Restore Datashred (Data Solutions 2016 Ltd T/A Restore Data),300000922,550.46,240193143
BEIS,The Insolvency Service,12/06/2018,Accomodation,Finance & Commercial,Restore Datashred (Data Solutions 2016 Ltd T/A Restore Data),300000923,115.20,240193143
BEIS,The Insolvency Service,12/06/2018,Accomodation,Finance & Commercial,Restore Datashred (Data Solutions 2016 Ltd T/A Restore Data),300000924,39.42,240193143
BEIS,The Insolvency Service,12/06/2018,Accomodation,Finance & Commercial,Restore Datashred (Data Solutions 2016 Ltd T/A Restore Data),300000925,64.75,240193143
BEIS,The Insolvency Service,12/06/2018,Accomodation,Finance & Commercial,Restore Datashred (Data Solutions 2016 Ltd T/A Restore Data),300000926,76.80,240193143
BEIS,The Insolvency Service,12/06/2018,Accomodation,Finance & Commercial,Restore Datashred (Data Solutions 2016 Ltd T/A Restore Data),300000927,56.58,240193143
BEIS,The Insolvency Service,12/06/2018,Accomodation,Finance & Commercial,Restore Datashred (Data Solutions 2016 Ltd T/A Restore Data),300000928,76.80,240193143
BEIS,The Insolvency Service,12/06/2018,Accomodation,Finance & Commercial,Restore Datashred (Data Solutions 2016 Ltd T/A Restore Data),300000929,88.92,240193143
BEIS,The Insolvency Service,12/06/2018,Accomodation,Finance & Commercial,Restore Datashred (Data Solutions 2016 Ltd T/A Restore Data),300000930,38.40,240193143
BEIS,The Insolvency Service,12/06/2018,Accomodation,Finance & Commercial,Restore Datashred (Data Solutions 2016 Ltd T/A Restore Data),300000931,201.01,240193143
BEIS,The Insolvency Service,12/06/2018,Accomodation,Finance & Commercial,Restore Datashred (Data Solutions 2016 Ltd T/A Restore Data),300000932,76.80,240193143
BEIS,The Insolvency Service,12/06/2018,Accomodation,Finance & Commercial,Restore Datashred (Data Solutions 2016 Ltd T/A Restore Data),300000933,102.96,240193143
BEIS,The Insolvency Service,12/06/2018,Accomodation,Finance & Commercial,Restore Datashred (Data Solutions 2016 Ltd T/A Restore Data),300000934,38.40,240193143
BEIS,The Insolvency Service,12/06/2018,Accomodation,Finance & Commercial,Restore Datashred (Data Solutions 2016 Ltd T/A Restore Data),300000935,45.54,240193143
BEIS,The Insolvency Service,12/06/2018,Investigation & Enforcement Costs,Investigations & Enforcement Services,Mendip Media Group Ltd (Now Trading As Appen) - (Transcri),300001038,277.20,609546425
BEIS,The Insolvency Service,12/06/2018,Computer and IT Systems,Official Receiver Services,City Sprint Uk Ltd,300000985,45.62,997327364
BEIS,The Insolvency Service,12/06/2018,Computer and IT Systems,Official Receiver Services,City Sprint Uk Ltd,300000986,193.50,997327364
BEIS,The Insolvency Service,12/06/2018,Computer and IT Systems,Information & Technology,Ibm Uk Ltd,300000991,502368.20,107328000
BEIS,The Insolvency Service,12/06/2018,Insolvency Case Related Costs,Information & Technology,Equifax Ltd,300001056,265.26,565629213
BEIS,The Insolvency Service,12/06/2018,Insolvency Case Related Costs,Official Receiver Services,Hpi Ltd,300000965,54.94,942407139
BEIS,The Insolvency Service,12/06/2018,Travel & Subsistence,Official Receiver Services,Staff Payment,900001141,1.70,
BEIS,The Insolvency Service,12/06/2018,Travel & Subsistence,Official Receiver Services,Staff Payment,900001263,42.30,
BEIS,The Insolvency Service,12/06/2018,Travel & Subsistence,Official Receiver Services,Staff Payment,900001263,1.70,
BEIS,The Insolvency Service,12/06/2018,Travel & Subsistence,Official Receiver Services,Staff Payment,900001268,4.69,
BEIS,The Insolvency Service,12/06/2018,Travel & Subsistence,Official Receiver Services,Staff Payment,900001287,24.00,
BEIS,The Insolvency Service,12/06/2018,Travel & Subsistence,Official Receiver Services,Staff Payment,900001287,5.00,
BEIS,The Insolvency Service,12/06/2018,Travel & Subsistence,Official Receiver Services,Staff Payment,900001287,5.00,
BEIS,The Insolvency Service,12/06/2018,Travel & Subsistence,Official Receiver Services,Staff Payment,900001287,13.25,
BEIS,The Insolvency Service,12/06/2018,Travel & Subsistence,Official Receiver Services,Staff Payment,900001287,5.00,
BEIS,The Insolvency Service,12/06/2018,Travel & Subsistence,Official Receiver Services,Staff Payment,900001352,1.70,
BEIS,The Insolvency Service,12/06/2018,Travel & Subsistence,Official Receiver Services,Staff Payment,900001352,1.20,
BEIS,The Insolvency Service,12/06/2018,Travel & Subsistence,Official Receiver Services,Staff Payment,900001352,42.30,
BEIS,The Insolvency Service,12/06/2018,Travel & Subsistence,Investigations & Enforcement Services,Staff Payment,900001390,21.00,
BEIS,The Insolvency Service,12/06/2018,Travel & Subsistence,Investigations & Enforcement Services,Staff Payment,900001395,7.00,
BEIS,The Insolvency Service,12/06/2018,Travel & Subsistence,Official Receiver Services,Staff Payment,900001351,2.40,
BEIS,The Insolvency Service,12/06/2018,Travel & Subsistence,Official Receiver Services,Staff Payment,900001351,4.90,
BEIS,The Insolvency Service,12/06/2018,Travel & Subsistence,Official Receiver Services,Staff Payment,900001351,2.40,
BEIS,The Insolvency Service,12/06/2018,Travel & Subsistence,Official Receiver Services,Staff Payment,900001351,81.45,
BEIS,The Insolvency Service,12/06/2018,Travel & Subsistence,Official Receiver Services,Staff Payment,900001351,12.00,
BEIS,The Insolvency Service,12/06/2018,Travel & Subsistence,Official Receiver Services,Staff Payment,900001351,4.40,
BEIS,The Insolvency Service,12/06/2018,Travel & Subsistence,Investigations & Enforcement Services,Staff Payment,900001462,4.95,
BEIS,The Insolvency Service,12/06/2018,Travel & Subsistence,Investigations & Enforcement Services,Staff Payment,900001462,3.25,
BEIS,The Insolvency Service,12/06/2018,Travel & Subsistence,Investigations & Enforcement Services,Staff Payment,900001463,5.00,
BEIS,The Insolvency Service,12/06/2018,Travel & Subsistence,Investigations & Enforcement Services,Staff Payment,900001463,4.60,
BEIS,The Insolvency Service,12/06/2018,Travel & Subsistence,Investigations & Enforcement Services,Staff Payment,900001371,10.00,
BEIS,The Insolvency Service,12/06/2018,Travel & Subsistence,Investigations & Enforcement Services,Staff Payment,900001371,20.00,
BEIS,The Insolvency Service,12/06/2018,Travel & Subsistence,Investigations & Enforcement Services,Staff Payment,900001371,22.54,
BEIS,The Insolvency Service,12/06/2018,Travel & Subsistence,Investigations & Enforcement Services,Staff Payment,900001371,10.00,
BEIS,The Insolvency Service,12/06/2018,Travel & Subsistence,Investigations & Enforcement Services,Staff Payment,900001371,10.00,
BEIS,The Insolvency Service,12/06/2018,Travel & Subsistence,Official Receiver Services,Staff Payment,900001374,1.80,
BEIS,The Insolvency Service,12/06/2018,Travel & Subsistence,Official Receiver Services,Staff Payment,900001374,36.00,
BEIS,The Insolvency Service,12/06/2018,Travel & Subsistence,Official Receiver Services,Staff Payment,900001374,3.00,
BEIS,The Insolvency Service,12/06/2018,Travel & Subsistence,Finance & Commercial,Staff Payment,900001113,4.30,
BEIS,The Insolvency Service,12/06/2018,Travel & Subsistence,Finance & Commercial,Staff Payment,900001113,3.45,
BEIS,The Insolvency Service,12/06/2018,Travel & Subsistence,Finance & Commercial,Staff Payment,900001114,3.90,
BEIS,The Insolvency Service,12/06/2018,Travel & Subsistence,Finance & Commercial,Staff Payment,900001114,3.90,
BEIS,The Insolvency Service,12/06/2018,Travel & Subsistence,Finance & Commercial,Staff Payment,900001115,3.95,
BEIS,The Insolvency Service,12/06/2018,Travel & Subsistence,Finance & Commercial,Staff Payment,900001116,8.00,
BEIS,The Insolvency Service,12/06/2018,Travel & Subsistence,Finance & Commercial,Staff Payment,900001119,6.30,
BEIS,The Insolvency Service,12/06/2018,Travel & Subsistence,Finance & Commercial,Staff Payment,900001120,4.70,
BEIS,The Insolvency Service,12/06/2018,Travel & Subsistence,Finance & Commercial,Staff Payment,900001120,2.70,
BEIS,The Insolvency Service,12/06/2018,Travel & Subsistence,Finance & Commercial,Staff Payment,900001121,8.70,
BEIS,The Insolvency Service,12/06/2018,Travel & Subsistence,Finance & Commercial,Staff Payment,900001122,7.14,
BEIS,The Insolvency Service,12/06/2018,Travel & Subsistence,Finance & Commercial,Staff Payment,900001123,4.49,
BEIS,The Insolvency Service,12/06/2018,Travel & Subsistence,Finance & Commercial,Staff Payment,900001123,3.25,
BEIS,The Insolvency Service,12/06/2018,Travel & Subsistence,Finance & Commercial,Staff Payment,900001124,9.44,
BEIS,The Insolvency Service,12/06/2018,Travel & Subsistence,Official Receiver Services,Staff Payment,900001444,3.00,
BEIS,The Insolvency Service,12/06/2018,Travel & Subsistence,Official Receiver Services,Staff Payment,900001444,15.30,
BEIS,The Insolvency Service,12/06/2018,Travel & Subsistence,Investigations & Enforcement Services,Staff Payment,900001465,5.00,
BEIS,The Insolvency Service,12/06/2018,Travel & Subsistence,Investigations & Enforcement Services,Staff Payment,900001465,7.50,
BEIS,The Insolvency Service,12/06/2018,Travel & Subsistence,Investigations & Enforcement Services,Staff Payment,900001465,5.00,
BEIS,The Insolvency Service,12/06/2018,Travel & Subsistence,Investigations & Enforcement Services,Staff Payment,900001465,3.65,
BEIS,The Insolvency Service,12/06/2018,Travel & Subsistence,Investigations & Enforcement Services,Staff Payment,900001465,15.00,
BEIS,The Insolvency Service,12/06/2018,Travel & Subsistence,Investigations & Enforcement Services,Staff Payment,900001465,80.00,
BEIS,The Insolvency Service,12/06/2018,Travel & Subsistence,Investigations & Enforcement Services,Staff Payment,900001465,12.55,
BEIS,The Insolvency Service,12/06/2018,Travel & Subsistence,Investigations & Enforcement Services,Staff Payment,900001465,3.65,
BEIS,The Insolvency Service,12/06/2018,Travel & Subsistence,Investigations & Enforcement Services,Staff Payment,900001465,4.70,
BEIS,The Insolvency Service,12/06/2018,Travel & Subsistence,Investigations & Enforcement Services,Staff Payment,900001465,2.80,
BEIS,The Insolvency Service,12/06/2018,Travel & Subsistence,Investigations & Enforcement Services,Staff Payment,900001472,5.00,
BEIS,The Insolvency Service,12/06/2018,Travel & Subsistence,Investigations & Enforcement Services,Staff Payment,900001472,12.00,
BEIS,The Insolvency Service,12/06/2018,Travel & Subsistence,Investigations & Enforcement Services,Staff Payment,900001473,12.00,
BEIS,The Insolvency Service,12/06/2018,Travel & Subsistence,Investigations & Enforcement Services,Staff Payment,900001473,7.60,
BEIS,The Insolvency Service,12/06/2018,Travel & Subsistence,Investigations & Enforcement Services,Staff Payment,900001474,3.84,
BEIS,The Insolvency Service,12/06/2018,Travel & Subsistence,Investigations & Enforcement Services,Staff Payment,900001093,107.96,
BEIS,The Insolvency Service,12/06/2018,Travel & Subsistence,Official Receiver Services,Staff Payment,900001503,4.30,
BEIS,The Insolvency Service,12/06/2018,Travel & Subsistence,Official Receiver Services,Staff Payment,900001503,4.30,
BEIS,The Insolvency Service,12/06/2018,Travel & Subsistence,Official Receiver Services,Staff Payment,900001503,23.36,
BEIS,The Insolvency Service,12/06/2018,Travel & Subsistence,Official Receiver Services,Staff Payment,900001503,23.36,
BEIS,The Insolvency Service,12/06/2018,Travel & Subsistence,Official Receiver Services,Staff Payment,900001503,23.36,
BEIS,The Insolvency Service,12/06/2018,Travel & Subsistence,Official Receiver Services,Staff Payment,900001503,23.36,
BEIS,The Insolvency Service,12/06/2018,Travel & Subsistence,Official Receiver Services,Staff Payment,900001428,1.00,
BEIS,The Insolvency Service,12/06/2018,Travel & Subsistence,Official Receiver Services,Staff Payment,900001428,8.10,
BEIS,The Insolvency Service,12/06/2018,Travel & Subsistence,Official Receiver Services,Staff Payment,900001428,8.10,
BEIS,The Insolvency Service,12/06/2018,Travel & Subsistence,Official Receiver Services,Staff Payment,900001458,40.50,
BEIS,The Insolvency Service,12/06/2018,Travel & Subsistence,Official Receiver Services,Staff Payment,900001458,40.50,
BEIS,The Insolvency Service,12/06/2018,Travel & Subsistence,Business Service Division,Staff Payment,900001445,5.88,
BEIS,The Insolvency Service,12/06/2018,Travel & Subsistence,Business Service Division,Staff Payment,900001445,24.00,
BEIS,The Insolvency Service,12/06/2018,Travel & Subsistence,Business Service Division,Staff Payment,900001445,5.00,
BEIS,The Insolvency Service,12/06/2018,Travel & Subsistence,Business Service Division,Staff Payment,900001445,5.00,
BEIS,The Insolvency Service,12/06/2018,Travel & Subsistence,People & Capability,Staff Payment,900001447,5.00,
BEIS,The Insolvency Service,12/06/2018,Travel & Subsistence,People & Capability,Staff Payment,900001448,5.00,
BEIS,The Insolvency Service,12/06/2018,Travel & Subsistence,People & Capability,Staff Payment,900001449,5.00,
BEIS,The Insolvency Service,12/06/2018,Travel & Subsistence,People & Capability,Staff Payment,900001449,13.64,
BEIS,The Insolvency Service,12/06/2018,Travel & Subsistence,People & Capability,Staff Payment,900001449,0.00,
BEIS,The Insolvency Service,12/06/2018,Travel & Subsistence,People & Capability,Staff Payment,900001450,5.00,
BEIS,The Insolvency Service,12/06/2018,Travel & Subsistence,People & Capability,Staff Payment,900001451,5.00,
BEIS,The Insolvency Service,12/06/2018,Travel & Subsistence,People & Capability,Staff Payment,900001452,5.00,
BEIS,The Insolvency Service,12/06/2018,Travel & Subsistence,People & Capability,Staff Payment,900001454,5.00,
BEIS,The Insolvency Service,12/06/2018,Travel & Subsistence,People & Capability,Staff Payment,900001454,12.00,
BEIS,The Insolvency Service,12/06/2018,Travel & Subsistence,People & Capability,Staff Payment,900001455,34.70,
BEIS,The Insolvency Service,12/06/2018,Travel & Subsistence,Investigations & Enforcement Services,Staff Payment,900001453,4.59,
BEIS,The Insolvency Service,12/06/2018,Travel & Subsistence,People & Capability,Staff Payment,900001484,2.65,
BEIS,The Insolvency Service,12/06/2018,Travel & Subsistence,People & Capability,Staff Payment,900001484,5.00,
BEIS,The Insolvency Service,12/06/2018,Travel & Subsistence,People & Capability,Staff Payment,900001484,348.70,
BEIS,The Insolvency Service,12/06/2018,Travel & Subsistence,People & Capability,Staff Payment,900001435,8.40,
BEIS,The Insolvency Service,12/06/2018,Travel & Subsistence,People & Capability,Staff Payment,900001435,1.99,
BEIS,The Insolvency Service,12/06/2018,Travel & Subsistence,People & Capability,Staff Payment,900001435,2.40,
BEIS,The Insolvency Service,12/06/2018,Travel & Subsistence,People & Capability,Staff Payment,900001435,2.40,
BEIS,The Insolvency Service,12/06/2018,Travel & Subsistence,People & Capability,Staff Payment,900001435,15.00,
BEIS,The Insolvency Service,12/06/2018,Travel & Subsistence,People & Capability,Staff Payment,900001435,5.00,
BEIS,The Insolvency Service,12/06/2018,Travel & Subsistence,Investigations & Enforcement Services,Staff Payment,900001234,22.50,
BEIS,The Insolvency Service,12/06/2018,Travel & Subsistence,Investigations & Enforcement Services,Staff Payment,900001234,12.00,
BEIS,The Insolvency Service,12/06/2018,Travel & Subsistence,Investigations & Enforcement Services,Staff Payment,900001234,3.60,
BEIS,The Insolvency Service,12/06/2018,Travel & Subsistence,People & Capability,Staff Payment,900001475,15.00,
BEIS,The Insolvency Service,12/06/2018,Travel & Subsistence,Strategy & Change,Staff Payment,900001162,4.35,
BEIS,The Insolvency Service,12/06/2018,Travel & Subsistence,Strategy & Change,Staff Payment,900001162,5.00,
BEIS,The Insolvency Service,12/06/2018,Travel & Subsistence,Strategy & Change,Staff Payment,900001162,5.00,
BEIS,The Insolvency Service,12/06/2018,Travel & Subsistence,Finance & Commercial,Staff Payment,900001442,5.00,
BEIS,The Insolvency Service,12/06/2018,Travel & Subsistence,Finance & Commercial,Staff Payment,900001442,115.00,
BEIS,The Insolvency Service,12/06/2018,Travel & Subsistence,Official Receiver Services,Staff Payment,900001479,58.05,
BEIS,The Insolvency Service,12/06/2018,Travel & Subsistence,Official Receiver Services,Staff Payment,900001479,5.00,
BEIS,The Insolvency Service,12/06/2018,Travel & Subsistence,Official Receiver Services,Staff Payment,900001479,3.00,
BEIS,The Insolvency Service,12/06/2018,Travel & Subsistence,Strategy & Change,Staff Payment,900001091,7.20,
BEIS,The Insolvency Service,12/06/2018,Travel & Subsistence,Strategy & Change,Staff Payment,900001091,3.44,
BEIS,The Insolvency Service,12/06/2018,Travel & Subsistence,Strategy & Change,Staff Payment,900001091,15.00,
BEIS,The Insolvency Service,12/06/2018,Travel & Subsistence,Strategy & Change,Staff Payment,900001091,5.00,
BEIS,The Insolvency Service,12/06/2018,Travel & Subsistence,Strategy & Change,Staff Payment,900001091,10.00,
BEIS,The Insolvency Service,12/06/2018,Travel & Subsistence,Strategy & Change,Staff Payment,900001091,24.00,
BEIS,The Insolvency Service,12/06/2018,Travel & Subsistence,Strategy & Change,Staff Payment,900001091,7.20,
BEIS,The Insolvency Service,12/06/2018,Travel & Subsistence,Investigations & Enforcement Services,Staff Payment,900001464,9.60,
BEIS,The Insolvency Service,12/06/2018,Travel & Subsistence,Official Receiver Services,Staff Payment,900001437,30.75,
BEIS,The Insolvency Service,12/06/2018,Travel & Subsistence,Official Receiver Services,Staff Payment,900001437,12.00,
BEIS,The Insolvency Service,12/06/2018,Travel & Subsistence,Official Receiver Services,Staff Payment,900001437,5.00,
BEIS,The Insolvency Service,12/06/2018,Travel & Subsistence,Official Receiver Services,Staff Payment,900001437,1.45,
BEIS,The Insolvency Service,12/06/2018,Travel & Subsistence,Official Receiver Services,Staff Payment,900001437,30.75,
BEIS,The Insolvency Service,12/06/2018,Travel & Subsistence,Official Receiver Services,Staff Payment,900001429,3.50,
BEIS,The Insolvency Service,12/06/2018,Travel & Subsistence,Official Receiver Services,Staff Payment,900001429,2.40,
BEIS,The Insolvency Service,12/06/2018,Travel & Subsistence,Official Receiver Services,Staff Payment,900001429,2.40,
BEIS,The Insolvency Service,12/06/2018,Travel & Subsistence,Official Receiver Services,Staff Payment,900001429,5.00,
BEIS,The Insolvency Service,12/06/2018,Travel & Subsistence,Official Receiver Services,Staff Payment,900001236,12.70,
BEIS,The Insolvency Service,12/06/2018,Travel & Subsistence,Official Receiver Services,Staff Payment,900001236,12.70,
BEIS,The Insolvency Service,12/06/2018,Travel & Subsistence,Official Receiver Services,Staff Payment,900001457,15.00,
BEIS,The Insolvency Service,12/06/2018,Travel & Subsistence,Official Receiver Services,Staff Payment,900001457,11.70,
BEIS,The Insolvency Service,12/06/2018,Travel & Subsistence,Business Service Division,Staff Payment,900001459,4.55,
BEIS,The Insolvency Service,12/06/2018,Travel & Subsistence,Business Service Division,Staff Payment,900001459,12.09,
BEIS,The Insolvency Service,12/06/2018,Travel & Subsistence,Business Service Division,Staff Payment,900001459,5.00,
BEIS,The Insolvency Service,12/06/2018,Travel & Subsistence,Business Service Division,Staff Payment,900001459,4.90,
BEIS,The Insolvency Service,12/06/2018,Travel & Subsistence,Business Service Division,Staff Payment,900001459,5.00,
BEIS,The Insolvency Service,12/06/2018,Travel & Subsistence,Official Receiver Services,Staff Payment,900001202,10.70,
BEIS,The Insolvency Service,12/06/2018,Travel & Subsistence,Official Receiver Services,Staff Payment,900001495,10.70,
BEIS,The Insolvency Service,12/06/2018,Travel & Subsistence,Official Receiver Services,Staff Payment,900001501,22.05,
BEIS,The Insolvency Service,12/06/2018,Travel & Subsistence,Official Receiver Services,Staff Payment,900001501,17.55,
BEIS,The Insolvency Service,12/06/2018,Travel & Subsistence,Official Receiver Services,Staff Payment,900001501,1.50,
BEIS,The Insolvency Service,12/06/2018,Travel & Subsistence,Chief Executive Office,Staff Payment,900001393,5.00,
BEIS,The Insolvency Service,12/06/2018,Travel & Subsistence,Chief Executive Office,Staff Payment,900001393,5.00,
BEIS,The Insolvency Service,12/06/2018,Travel & Subsistence,Chief Executive Office,Staff Payment,900001393,2.40,
BEIS,The Insolvency Service,12/06/2018,Travel & Subsistence,Chief Executive Office,Staff Payment,900001393,2.40,
BEIS,The Insolvency Service,12/06/2018,Travel & Subsistence,Chief Executive Office,Staff Payment,900001393,10.00,
BEIS,The Insolvency Service,12/06/2018,Travel & Subsistence,Chief Executive Office,Staff Payment,900001393,4.79,
BEIS,The Insolvency Service,12/06/2018,Travel & Subsistence,Chief Executive Office,Staff Payment,900001393,7.00,
BEIS,The Insolvency Service,12/06/2018,Travel & Subsistence,Chief Executive Office,Staff Payment,900001393,14.00,
BEIS,The Insolvency Service,12/06/2018,Travel & Subsistence,Chief Executive Office,Staff Payment,900001393,30.00,
BEIS,The Insolvency Service,12/06/2018,Travel & Subsistence,Chief Executive Office,Staff Payment,900001393,4.80,
BEIS,The Insolvency Service,12/06/2018,Travel & Subsistence,Chief Executive Office,Staff Payment,900001393,4.99,
BEIS,The Insolvency Service,12/06/2018,Travel & Subsistence,Chief Executive Office,Staff Payment,900001393,14.00,
BEIS,The Insolvency Service,12/06/2018,Travel & Subsistence,Chief Executive Office,Staff Payment,900001393,4.00,
BEIS,The Insolvency Service,12/06/2018,Travel & Subsistence,Official Receiver Services,Staff Payment,900001407,49.00,
BEIS,The Insolvency Service,12/06/2018,Travel & Subsistence,Strategy & Change,Staff Payment,900001304,8.96,
BEIS,The Insolvency Service,12/06/2018,Travel & Subsistence,Strategy & Change,Staff Payment,900001304,5.50,
BEIS,The Insolvency Service,12/06/2018,Travel & Subsistence,Strategy & Change,Staff Payment,900001304,50.00,
BEIS,The Insolvency Service,12/06/2018,Travel & Subsistence,Strategy & Change,Staff Payment,900001304,5.00,
BEIS,The Insolvency Service,12/06/2018,Travel & Subsistence,Strategy & Change,Staff Payment,900001304,6.00,
BEIS,The Insolvency Service,12/06/2018,Travel & Subsistence,Strategy & Change,Staff Payment,900001434,6.60,
BEIS,The Insolvency Service,12/06/2018,Travel & Subsistence,Strategy & Change,Staff Payment,900001434,30.00,
BEIS,The Insolvency Service,12/06/2018,Travel & Subsistence,Strategy & Change,Staff Payment,900001434,5.50,
BEIS,The Insolvency Service,12/06/2018,Travel & Subsistence,Strategy & Change,Staff Payment,900001434,1.99,
BEIS,The Insolvency Service,12/06/2018,Travel & Subsistence,Finance & Commercial,Staff Payment,900001512,15.00,
BEIS,The Insolvency Service,12/06/2018,Travel & Subsistence,Finance & Commercial,Staff Payment,900001512,5.00,
BEIS,The Insolvency Service,12/06/2018,Travel & Subsistence,Finance & Commercial,Staff Payment,900001512,3.95,
BEIS,The Insolvency Service,12/06/2018,Travel & Subsistence,Finance & Commercial,Staff Payment,900001512,5.00,
BEIS,The Insolvency Service,12/06/2018,Travel & Subsistence,Official Receiver Services,Staff Payment,900001439,4.30,
BEIS,The Insolvency Service,12/06/2018,Travel & Subsistence,Official Receiver Services,Staff Payment,900001439,4.94,
BEIS,The Insolvency Service,12/06/2018,Travel & Subsistence,Investigations & Enforcement Services,Staff Payment,900000606,5.40,
BEIS,The Insolvency Service,12/06/2018,Travel & Subsistence,Investigations & Enforcement Services,Staff Payment,900000606,5.55,
BEIS,The Insolvency Service,12/06/2018,Travel & Subsistence,Business Service Division,Staff Payment,900001478,6.50,
BEIS,The Insolvency Service,12/06/2018,Travel & Subsistence,Business Service Division,Staff Payment,900001478,5.00,
BEIS,The Insolvency Service,12/06/2018,Travel & Subsistence,Business Service Division,Staff Payment,900001478,5.00,
BEIS,The Insolvency Service,12/06/2018,Travel & Subsistence,Business Service Division,Staff Payment,900001478,1.80,
BEIS,The Insolvency Service,12/06/2018,Travel & Subsistence,Business Service Division,Staff Payment,900001478,5.00,
BEIS,The Insolvency Service,12/06/2018,Travel & Subsistence,Business Service Division,Staff Payment,900001478,15.00,
BEIS,The Insolvency Service,12/06/2018,Travel & Subsistence,Business Service Division,Staff Payment,900001478,5.00,
BEIS,The Insolvency Service,12/06/2018,Travel & Subsistence,Investigations & Enforcement Services,Staff Payment,900001403,3.60,
BEIS,The Insolvency Service,12/06/2018,Travel & Subsistence,Investigations & Enforcement Services,Staff Payment,900001403,4.50,
BEIS,The Insolvency Service,12/06/2018,Travel & Subsistence,Investigations & Enforcement Services,Staff Payment,900001403,4.20,
BEIS,The Insolvency Service,12/06/2018,Travel & Subsistence,Investigations & Enforcement Services,Staff Payment,900001494,3.95,
BEIS,The Insolvency Service,12/06/2018,Travel & Subsistence,Investigations & Enforcement Services,Staff Payment,900001494,3.00,
BEIS,The Insolvency Service,12/06/2018,Travel & Subsistence,Investigations & Enforcement Services,Staff Payment,900001494,4.30,
BEIS,The Insolvency Service,12/06/2018,Travel & Subsistence,Investigations & Enforcement Services,Staff Payment,900001494,3.00,
BEIS,The Insolvency Service,12/06/2018,Travel & Subsistence,Investigations & Enforcement Services,Staff Payment,900001494,63.00,
BEIS,The Insolvency Service,12/06/2018,Travel & Subsistence,Investigations & Enforcement Services,Staff Payment,900001440,7.80,
BEIS,The Insolvency Service,12/06/2018,Travel & Subsistence,Investigations & Enforcement Services,Staff Payment,900001440,50.85,
BEIS,The Insolvency Service,12/06/2018,Travel & Subsistence,Investigations & Enforcement Services,Staff Payment,900001440,1.80,
BEIS,The Insolvency Service,12/06/2018,Travel & Subsistence,Investigations & Enforcement Services,Staff Payment,900001440,4.70,
BEIS,The Insolvency Service,12/06/2018,Travel & Subsistence,Investigations & Enforcement Services,Staff Payment,900001440,5.00,
BEIS,The Insolvency Service,12/06/2018,Travel & Subsistence,Investigations & Enforcement Services,Staff Payment,900001440,5.00,
BEIS,The Insolvency Service,12/06/2018,Travel & Subsistence,Investigations & Enforcement Services,Staff Payment,900001440,5.00,
BEIS,The Insolvency Service,12/06/2018,Travel & Subsistence,Investigations & Enforcement Services,Staff Payment,900001440,4.85,
BEIS,The Insolvency Service,12/06/2018,Travel & Subsistence,Investigations & Enforcement Services,Staff Payment,900001440,5.00,
BEIS,The Insolvency Service,12/06/2018,Travel & Subsistence,Investigations & Enforcement Services,Staff Payment,900001440,3.65,
BEIS,The Insolvency Service,12/06/2018,Travel & Subsistence,Investigations & Enforcement Services,Staff Payment,900001440,5.00,
BEIS,The Insolvency Service,12/06/2018,Travel & Subsistence,Investigations & Enforcement Services,Staff Payment,900001440,7.65,
BEIS,The Insolvency Service,12/06/2018,Travel & Subsistence,Investigations & Enforcement Services,Staff Payment,900001440,7.65,
BEIS,The Insolvency Service,12/06/2018,Travel & Subsistence,Investigations & Enforcement Services,Staff Payment,900001440,5.50,
BEIS,The Insolvency Service,12/06/2018,Travel & Subsistence,Investigations & Enforcement Services,Staff Payment,900001469,4.80,
BEIS,The Insolvency Service,12/06/2018,Travel & Subsistence,Strategy & Change,Staff Payment,900001239,5.00,
BEIS,The Insolvency Service,12/06/2018,Travel & Subsistence,Strategy & Change,Staff Payment,900001240,5.00,
BEIS,The Insolvency Service,12/06/2018,Travel & Subsistence,Strategy & Change,Staff Payment,900001242,4.98,
BEIS,The Insolvency Service,12/06/2018,Travel & Subsistence,Finance & Commercial,Staff Payment,900001012,13.75,
BEIS,The Insolvency Service,12/06/2018,Travel & Subsistence,Finance & Commercial,Staff Payment,900001012,5.00,
BEIS,The Insolvency Service,12/06/2018,Travel & Subsistence,Finance & Commercial,Staff Payment,900001417,5.00,
BEIS,The Insolvency Service,12/06/2018,Travel & Subsistence,Finance & Commercial,Staff Payment,900001417,14.50,
BEIS,The Insolvency Service,12/06/2018,Travel & Subsistence,Finance & Commercial,Staff Payment,900001417,3.00,
BEIS,The Insolvency Service,12/06/2018,Travel & Subsistence,Finance & Commercial,Staff Payment,900001417,2.40,
BEIS,The Insolvency Service,12/06/2018,Travel & Subsistence,Finance & Commercial,Staff Payment,900001417,2.40,
BEIS,The Insolvency Service,12/06/2018,Investigation & Enforcement Costs,Official Receiver Services,Pricewaterhouse Coopers LLP,300001245,456375.00,243823957
BEIS,The Insolvency Service,12/06/2018,Insolvency Case Related Costs,Official Receiver Services,Williams Lea Ltd,300001209,149.16,662774703
BEIS,The Insolvency Service,12/06/2018,Travel & Subsistence,Business Service Division,Staff Payment,900001225,18.99,
BEIS,The Insolvency Service,12/06/2018,Travel & Subsistence,Finance & Commercial,Staff Payment,900001522,5.50,
BEIS,The Insolvency Service,12/06/2018,Travel & Subsistence,Finance & Commercial,Staff Payment,900001522,5.00,
BEIS,The Insolvency Service,12/06/2018,Travel & Subsistence,Finance & Commercial,Staff Payment,900001523,15.00,
BEIS,The Insolvency Service,12/06/2018,Travel & Subsistence,Finance & Commercial,Staff Payment,900001523,4.35,
BEIS,The Insolvency Service,12/06/2018,Travel & Subsistence,Finance & Commercial,Staff Payment,900001523,10.00,
BEIS,The Insolvency Service,12/06/2018,Travel & Subsistence,Investigations & Enforcement Services,Staff Payment,900001488,29.99,
BEIS,The Insolvency Service,12/06/2018,Travel & Subsistence,Investigations & Enforcement Services,Staff Payment,900001505,4.20,
BEIS,The Insolvency Service,12/06/2018,Travel & Subsistence,Investigations & Enforcement Services,Staff Payment,900001506,5.00,
BEIS,The Insolvency Service,12/06/2018,Travel & Subsistence,Strategy & Change,Staff Payment,900000717,5.00,
BEIS,The Insolvency Service,12/06/2018,Travel & Subsistence,Strategy & Change,Staff Payment,900000717,13.00,
BEIS,The Insolvency Service,12/06/2018,Travel & Subsistence,Strategy & Change,Staff Payment,900000717,4.50,
BEIS,The Insolvency Service,12/06/2018,Travel & Subsistence,Strategy & Change,Staff Payment,900000717,4.45,
BEIS,The Insolvency Service,12/06/2018,Travel & Subsistence,Strategy & Change,Staff Payment,900001489,11.50,
BEIS,The Insolvency Service,12/06/2018,Travel & Subsistence,Strategy & Change,Staff Payment,900001489,4.50,
BEIS,The Insolvency Service,12/06/2018,Travel & Subsistence,Strategy & Change,Staff Payment,900001489,5.00,
BEIS,The Insolvency Service,12/06/2018,Travel & Subsistence,Strategy & Change,Staff Payment,900001489,11.00,
BEIS,The Insolvency Service,12/06/2018,Travel & Subsistence,Strategy & Change,Staff Payment,900001489,5.00,
BEIS,The Insolvency Service,12/06/2018,Travel & Subsistence,Strategy & Change,Staff Payment,900001489,5.00,
BEIS,The Insolvency Service,12/06/2018,Travel & Subsistence,Strategy & Change,Staff Payment,900001489,25.00,
BEIS,The Insolvency Service,12/06/2018,Travel & Subsistence,Strategy & Change,Staff Payment,900001489,4.70,
BEIS,The Insolvency Service,12/06/2018,Travel & Subsistence,Strategy & Change,Staff Payment,900001489,25.00,
BEIS,The Insolvency Service,12/06/2018,Travel & Subsistence,Strategy & Change,Staff Payment,900001489,5.00,
BEIS,The Insolvency Service,12/06/2018,Travel & Subsistence,Strategy & Change,Staff Payment,900001489,4.90,
BEIS,The Insolvency Service,12/06/2018,Travel & Subsistence,Strategy & Change,Staff Payment,900001489,13.50,
BEIS,The Insolvency Service,12/06/2018,Travel & Subsistence,Strategy & Change,Staff Payment,900001489,5.00,
BEIS,The Insolvency Service,12/06/2018,Travel & Subsistence,Strategy & Change,Staff Payment,900001489,5.00,
BEIS,The Insolvency Service,12/06/2018,Travel & Subsistence,Investigations & Enforcement Services,Staff Payment,900001241,71.10,
BEIS,The Insolvency Service,12/06/2018,Travel & Subsistence,Investigations & Enforcement Services,Staff Payment,900001241,44.10,
BEIS,The Insolvency Service,12/06/2018,Travel & Subsistence,Investigations & Enforcement Services,Staff Payment,900001241,36.90,
BEIS,The Insolvency Service,12/06/2018,Travel & Subsistence,Investigations & Enforcement Services,Staff Payment,900001241,43.20,
BEIS,The Insolvency Service,12/06/2018,Travel & Subsistence,Investigations & Enforcement Services,Staff Payment,900001241,29.70,
BEIS,The Insolvency Service,12/06/2018,Travel & Subsistence,Investigations & Enforcement Services,Staff Payment,900001241,4.00,
BEIS,The Insolvency Service,12/06/2018,Travel & Subsistence,Investigations & Enforcement Services,Staff Payment,900001241,48.15,
BEIS,The Insolvency Service,12/06/2018,Travel & Subsistence,Investigations & Enforcement Services,Staff Payment,900001241,48.60,
BEIS,The Insolvency Service,12/06/2018,Travel & Subsistence,Investigations & Enforcement Services,Staff Payment,900001241,2.60,
BEIS,The Insolvency Service,12/06/2018,Travel & Subsistence,Investigations & Enforcement Services,Staff Payment,900001241,16.33,
BEIS,The Insolvency Service,12/06/2018,Travel & Subsistence,Investigations & Enforcement Services,Staff Payment,900001241,10.00,
BEIS,The Insolvency Service,12/06/2018,Travel & Subsistence,Investigations & Enforcement Services,Staff Payment,900001241,15.00,
BEIS,The Insolvency Service,12/06/2018,Travel & Subsistence,Investigations & Enforcement Services,Staff Payment,900001241,6.90,
BEIS,The Insolvency Service,12/06/2018,Travel & Subsistence,Investigations & Enforcement Services,Staff Payment,900001241,15.00,
BEIS,The Insolvency Service,12/06/2018,Travel & Subsistence,Investigations & Enforcement Services,Staff Payment,900001241,4.50,
BEIS,The Insolvency Service,12/06/2018,Travel & Subsistence,Investigations & Enforcement Services,Staff Payment,900001241,70.20,
BEIS,The Insolvency Service,12/06/2018,Travel & Subsistence,Investigations & Enforcement Services,Staff Payment,900001241,2.60,
BEIS,The Insolvency Service,12/06/2018,Travel & Subsistence,Investigations & Enforcement Services,Staff Payment,900001241,21.60,
BEIS,The Insolvency Service,12/06/2018,Travel & Subsistence,Investigations & Enforcement Services,Staff Payment,900001241,2.60,
BEIS,The Insolvency Service,12/06/2018,Travel & Subsistence,Investigations & Enforcement Services,Staff Payment,900001241,10.00,
BEIS,The Insolvency Service,12/06/2018,Travel & Subsistence,Investigations & Enforcement Services,Staff Payment,900001241,5.00,
BEIS,The Insolvency Service,12/06/2018,Travel & Subsistence,Investigations & Enforcement Services,Staff Payment,900001519,5.00,
BEIS,The Insolvency Service,12/06/2018,Travel & Subsistence,Investigations & Enforcement Services,Staff Payment,900001519,5.00,
BEIS,The Insolvency Service,12/06/2018,Travel & Subsistence,Investigations & Enforcement Services,Staff Payment,900001519,56.25,
BEIS,The Insolvency Service,12/06/2018,Travel & Subsistence,Investigations & Enforcement Services,Staff Payment,900001527,17.52,
BEIS,The Insolvency Service,12/06/2018,Travel & Subsistence,Investigations & Enforcement Services,Staff Payment,900001527,43.92,
BEIS,The Insolvency Service,12/06/2018,Travel & Subsistence,Investigations & Enforcement Services,Staff Payment,900001527,54.00,
BEIS,The Insolvency Service,12/06/2018,Travel & Subsistence,Investigations & Enforcement Services,Staff Payment,900001406,6.50,
BEIS,The Insolvency Service,12/06/2018,Travel & Subsistence,Investigations & Enforcement Services,Staff Payment,900001406,6.00,
BEIS,The Insolvency Service,12/06/2018,Travel & Subsistence,Investigations & Enforcement Services,Staff Payment,900001406,5.00,
BEIS,The Insolvency Service,12/06/2018,Travel & Subsistence,Investigations & Enforcement Services,Staff Payment,900001408,6.00,
BEIS,The Insolvency Service,12/06/2018,Travel & Subsistence,Investigations & Enforcement Services,Staff Payment,900001408,5.00,
BEIS,The Insolvency Service,12/06/2018,Travel & Subsistence,Official Receiver Services,Staff Payment,900001490,4.60,
BEIS,The Insolvency Service,12/06/2018,Travel & Subsistence,Official Receiver Services,Staff Payment,900001490,4.15,
BEIS,The Insolvency Service,12/06/2018,Travel & Subsistence,Investigations & Enforcement Services,Staff Payment,900001466,9.20,
BEIS,The Insolvency Service,12/06/2018,Travel & Subsistence,Investigations & Enforcement Services,Staff Payment,900001378,2.40,
BEIS,The Insolvency Service,12/06/2018,Legal Costs,Official Receiver Services,Government Legal Department,300001292,1534.12,766793665
BEIS,The Insolvency Service,12/06/2018,Travel & Subsistence,Investigations & Enforcement Services,Staff Payment,900001427,43.20,
BEIS,The Insolvency Service,12/06/2018,Travel & Subsistence,Investigations & Enforcement Services,Staff Payment,900001427,57.60,
BEIS,The Insolvency Service,12/06/2018,Travel & Subsistence,Investigations & Enforcement Services,Staff Payment,900001427,7.85,
BEIS,The Insolvency Service,12/06/2018,Travel & Subsistence,Investigations & Enforcement Services,Staff Payment,900001427,30.00,
BEIS,The Insolvency Service,12/06/2018,Travel & Subsistence,Investigations & Enforcement Services,Staff Payment,900001427,10.00,
BEIS,The Insolvency Service,12/06/2018,Travel & Subsistence,Investigations & Enforcement Services,Staff Payment,900001427,5.00,
BEIS,The Insolvency Service,12/06/2018,Travel & Subsistence,Investigations & Enforcement Services,Staff Payment,900001427,6.00,
BEIS,The Insolvency Service,12/06/2018,Travel & Subsistence,Investigations & Enforcement Services,Staff Payment,900001427,15.00,
BEIS,The Insolvency Service,12/06/2018,Travel & Subsistence,Investigations & Enforcement Services,Staff Payment,900001427,15.00,
BEIS,The Insolvency Service,12/06/2018,Travel & Subsistence,Investigations & Enforcement Services,Staff Payment,900001427,63.00,
BEIS,The Insolvency Service,13/06/2018,Insolvency Case Related Costs,Official Receiver Services,The Stationery Office Ltd,300001191,26.15,662774703
BEIS,The Insolvency Service,13/06/2018,Insolvency Case Related Costs,Official Receiver Services,Williams Lea Ltd,300001208,74.58,662774703
BEIS,The Insolvency Service,13/06/2018,Travel & Subsistence,Official Receiver Services,Staff Payment,900001044,9.90,
BEIS,The Insolvency Service,13/06/2018,Travel & Subsistence,Official Receiver Services,Staff Payment,900001044,9.90,
BEIS,The Insolvency Service,13/06/2018,Travel & Subsistence,Investigations & Enforcement Services,Staff Payment,900001037,14.50,
BEIS,The Insolvency Service,13/06/2018,Travel & Subsistence,Investigations & Enforcement Services,Staff Payment,900001037,88.79,
BEIS,The Insolvency Service,13/06/2018,Travel & Subsistence,Investigations & Enforcement Services,Staff Payment,900001037,8.00,
BEIS,The Insolvency Service,13/06/2018,Travel & Subsistence,Investigations & Enforcement Services,Staff Payment,900001037,14.50,
BEIS,The Insolvency Service,13/06/2018,Travel & Subsistence,Business Service Division,Staff Payment,900000753,7.50,
BEIS,The Insolvency Service,13/06/2018,Travel & Subsistence,Business Service Division,Staff Payment,900000753,39.99,
BEIS,The Insolvency Service,13/06/2018,Travel & Subsistence,Business Service Division,Staff Payment,900000754,3.70,
BEIS,The Insolvency Service,13/06/2018,Travel & Subsistence,Business Service Division,Staff Payment,900000757,3.69,
BEIS,The Insolvency Service,13/06/2018,Travel & Subsistence,Business Service Division,Staff Payment,900000757,5.00,
BEIS,The Insolvency Service,13/06/2018,Travel & Subsistence,Business Service Division,Staff Payment,900000757,8.00,
BEIS,The Insolvency Service,13/06/2018,Travel & Subsistence,Business Service Division,Staff Payment,900000757,15.00,
BEIS,The Insolvency Service,13/06/2018,Travel & Subsistence,Business Service Division,Staff Payment,900000758,15.95,
BEIS,The Insolvency Service,13/06/2018,Travel & Subsistence,Business Service Division,Staff Payment,900000758,5.00,
BEIS,The Insolvency Service,13/06/2018,Travel & Subsistence,Business Service Division,Staff Payment,900000758,15.00,
BEIS,The Insolvency Service,13/06/2018,Travel & Subsistence,Business Service Division,Staff Payment,900000959,3.00,
BEIS,The Insolvency Service,13/06/2018,Travel & Subsistence,Business Service Division,Staff Payment,900000959,15.00,
BEIS,The Insolvency Service,13/06/2018,Travel & Subsistence,Business Service Division,Staff Payment,900000959,5.00,
BEIS,The Insolvency Service,13/06/2018,Travel & Subsistence,Business Service Division,Staff Payment,900000959,5.00,
BEIS,The Insolvency Service,13/06/2018,Travel & Subsistence,Business Service Division,Staff Payment,900001181,5.00,
BEIS,The Insolvency Service,13/06/2018,Travel & Subsistence,Business Service Division,Staff Payment,900001181,8.39,
BEIS,The Insolvency Service,13/06/2018,Travel & Subsistence,Business Service Division,Staff Payment,900001181,5.00,
BEIS,The Insolvency Service,13/06/2018,Travel & Subsistence,Business Service Division,Staff Payment,900001181,3.34,
BEIS,The Insolvency Service,13/06/2018,Travel & Subsistence,Business Service Division,Staff Payment,900001181,34.20,
BEIS,The Insolvency Service,13/06/2018,Travel & Subsistence,Business Service Division,Staff Payment,900001181,34.20,
BEIS,The Insolvency Service,13/06/2018,Travel & Subsistence,Official Receiver Services,Staff Payment,900001530,1.20,
BEIS,The Insolvency Service,13/06/2018,Travel & Subsistence,Official Receiver Services,Staff Payment,900001530,7.51,
BEIS,The Insolvency Service,13/06/2018,Travel & Subsistence,Official Receiver Services,Staff Payment,900001530,18.00,
BEIS,The Insolvency Service,13/06/2018,Travel & Subsistence,Investigations & Enforcement Services,Staff Payment,900001170,32.00,
BEIS,The Insolvency Service,13/06/2018,Travel & Subsistence,Business Service Division,Staff Payment,900001493,37.80,
BEIS,The Insolvency Service,13/06/2018,Travel & Subsistence,Business Service Division,Staff Payment,900001493,4.14,
BEIS,The Insolvency Service,13/06/2018,Travel & Subsistence,Business Service Division,Staff Payment,900001493,15.00,
BEIS,The Insolvency Service,13/06/2018,Travel & Subsistence,Business Service Division,Staff Payment,900001493,2.95,
BEIS,The Insolvency Service,13/06/2018,Travel & Subsistence,Business Service Division,Staff Payment,900001493,37.80,
BEIS,The Insolvency Service,13/06/2018,Travel & Subsistence,Business Service Division,Staff Payment,900001493,5.00,
BEIS,The Insolvency Service,13/06/2018,Travel & Subsistence,Official Receiver Services,Staff Payment,900001099,3.10,
BEIS,The Insolvency Service,13/06/2018,Travel & Subsistence,Official Receiver Services,Staff Payment,900001099,12.60,
BEIS,The Insolvency Service,13/06/2018,Travel & Subsistence,Official Receiver Services,Staff Payment,900000055,51.30,
BEIS,The Insolvency Service,13/06/2018,Travel & Subsistence,Official Receiver Services,Staff Payment,900000055,24.00,
BEIS,The Insolvency Service,13/06/2018,Travel & Subsistence,Official Receiver Services,Staff Payment,900000055,93.90,
BEIS,The Insolvency Service,13/06/2018,Travel & Subsistence,Official Receiver Services,Staff Payment,900000055,12.50,
BEIS,The Insolvency Service,13/06/2018,Travel & Subsistence,Official Receiver Services,Staff Payment,900000055,10.00,
BEIS,The Insolvency Service,13/06/2018,Travel & Subsistence,Official Receiver Services,Staff Payment,900000055,5.00,
BEIS,The Insolvency Service,13/06/2018,Travel & Subsistence,Official Receiver Services,Staff Payment,900000055,1.99,
BEIS,The Insolvency Service,13/06/2018,Travel & Subsistence,Official Receiver Services,Staff Payment,900000055,5.00,
BEIS,The Insolvency Service,13/06/2018,Travel & Subsistence,Official Receiver Services,Staff Payment,900000055,4.40,
BEIS,The Insolvency Service,13/06/2018,Travel & Subsistence,Official Receiver Services,Staff Payment,900000055,10.60,
BEIS,The Insolvency Service,13/06/2018,Travel & Subsistence,Official Receiver Services,Staff Payment,900000055,4.40,
BEIS,The Insolvency Service,13/06/2018,Travel & Subsistence,Official Receiver Services,Staff Payment,900000055,162.00,
BEIS,The Insolvency Service,13/06/2018,Travel & Subsistence,Official Receiver Services,Staff Payment,900000055,154.80,
BEIS,The Insolvency Service,13/06/2018,Travel & Subsistence,Official Receiver Services,Staff Payment,900000055,81.90,
BEIS,The Insolvency Service,13/06/2018,Travel & Subsistence,Official Receiver Services,Staff Payment,900000055,12.00,
BEIS,The Insolvency Service,13/06/2018,Travel & Subsistence,Official Receiver Services,Staff Payment,900000055,3.00,
BEIS,The Insolvency Service,13/06/2018,Travel & Subsistence,Official Receiver Services,Staff Payment,900000055,7.00,
BEIS,The Insolvency Service,13/06/2018,Travel & Subsistence,Official Receiver Services,Staff Payment,900000055,22.70,
BEIS,The Insolvency Service,13/06/2018,Travel & Subsistence,Official Receiver Services,Staff Payment,900000055,3.69,
BEIS,The Insolvency Service,13/06/2018,Travel & Subsistence,Official Receiver Services,Staff Payment,900000055,4.40,
BEIS,The Insolvency Service,13/06/2018,Travel & Subsistence,Official Receiver Services,Staff Payment,900000055,7.40,
BEIS,The Insolvency Service,13/06/2018,Travel & Subsistence,Official Receiver Services,Staff Payment,900000055,248.60,
BEIS,The Insolvency Service,13/06/2018,Travel & Subsistence,Official Receiver Services,Staff Payment,900000055,7.40,
BEIS,The Insolvency Service,13/06/2018,Travel & Subsistence,Official Receiver Services,Staff Payment,900001085,8.69,
BEIS,The Insolvency Service,13/06/2018,Travel & Subsistence,Official Receiver Services,Staff Payment,900001085,141.05,
BEIS,The Insolvency Service,13/06/2018,Travel & Subsistence,Official Receiver Services,Staff Payment,900001085,4.40,
BEIS,The Insolvency Service,13/06/2018,Travel & Subsistence,People & Capability,Staff Payment,900001226,4.00,
BEIS,The Insolvency Service,13/06/2018,Travel & Subsistence,Investigations & Enforcement Services,Staff Payment,900001079,3.98,
BEIS,The Insolvency Service,13/06/2018,Travel & Subsistence,Investigations & Enforcement Services,Staff Payment,900001079,4.60,
BEIS,The Insolvency Service,13/06/2018,Travel & Subsistence,Investigations & Enforcement Services,Staff Payment,900001214,5.00,
BEIS,The Insolvency Service,13/06/2018,Travel & Subsistence,Official Receiver Services,Staff Payment,900001165,4.05,
BEIS,The Insolvency Service,13/06/2018,Travel & Subsistence,Official Receiver Services,Staff Payment,900001131,37.80,
BEIS,The Insolvency Service,13/06/2018,Travel & Subsistence,Official Receiver Services,Staff Payment,900001131,2.00,
BEIS,The Insolvency Service,13/06/2018,Travel & Subsistence,Investigations & Enforcement Services,Staff Payment,900000929,7.00,
BEIS,The Insolvency Service,13/06/2018,Travel & Subsistence,Investigations & Enforcement Services,Staff Payment,900000930,7.00,
BEIS,The Insolvency Service,13/06/2018,Travel & Subsistence,Investigations & Enforcement Services,Staff Payment,900000930,7.30,
BEIS,The Insolvency Service,13/06/2018,Travel & Subsistence,Official Receiver Services,Staff Payment,900001491,8.80,
BEIS,The Insolvency Service,13/06/2018,Travel & Subsistence,Official Receiver Services,Staff Payment,900001491,5.00,
BEIS,The Insolvency Service,13/06/2018,Travel & Subsistence,Official Receiver Services,Staff Payment,900001491,24.00,
BEIS,The Insolvency Service,13/06/2018,Travel & Subsistence,Official Receiver Services,Staff Payment,900001028,19.95,
BEIS,The Insolvency Service,13/06/2018,Travel & Subsistence,Official Receiver Services,Staff Payment,900001126,15.00,
BEIS,The Insolvency Service,13/06/2018,Travel & Subsistence,Official Receiver Services,Staff Payment,900001126,90.00,
BEIS,The Insolvency Service,13/06/2018,Travel & Subsistence,Official Receiver Services,Staff Payment,900001126,4.80,
BEIS,The Insolvency Service,13/06/2018,Travel & Subsistence,Official Receiver Services,Staff Payment,900001126,90.90,
BEIS,The Insolvency Service,13/06/2018,Travel & Subsistence,Official Receiver Services,Staff Payment,900001126,5.00,
BEIS,The Insolvency Service,13/06/2018,Travel & Subsistence,Investigations & Enforcement Services,Staff Payment,900001184,37.80,
BEIS,The Insolvency Service,13/06/2018,Travel & Subsistence,Investigations & Enforcement Services,Staff Payment,900001185,19.80,
BEIS,The Insolvency Service,13/06/2018,Travel & Subsistence,Investigations & Enforcement Services,Staff Payment,900001185,6.50,
BEIS,The Insolvency Service,13/06/2018,Travel & Subsistence,Investigations & Enforcement Services,Staff Payment,900001185,6.91,
BEIS,The Insolvency Service,13/06/2018,Travel & Subsistence,Investigations & Enforcement Services,Staff Payment,900001185,37.35,
BEIS,The Insolvency Service,13/06/2018,Travel & Subsistence,Official Receiver Services,Staff Payment,900000629,15.00,
BEIS,The Insolvency Service,13/06/2018,Travel & Subsistence,Official Receiver Services,Staff Payment,900000629,2.30,
BEIS,The Insolvency Service,13/06/2018,Travel & Subsistence,Official Receiver Services,Staff Payment,900000630,4.40,
BEIS,The Insolvency Service,13/06/2018,Travel & Subsistence,Official Receiver Services,Staff Payment,900000632,3.01,
BEIS,The Insolvency Service,13/06/2018,Travel & Subsistence,Official Receiver Services,Staff Payment,900000632,2.70,
BEIS,The Insolvency Service,13/06/2018,Travel & Subsistence,Official Receiver Services,Staff Payment,900000632,13.50,
BEIS,The Insolvency Service,13/06/2018,Travel & Subsistence,Official Receiver Services,Staff Payment,900000977,9.40,
BEIS,The Insolvency Service,13/06/2018,Travel & Subsistence,Official Receiver Services,Staff Payment,900000980,7.90,
BEIS,The Insolvency Service,13/06/2018,Travel & Subsistence,Official Receiver Services,Staff Payment,900000981,15.80,
BEIS,The Insolvency Service,13/06/2018,Travel & Subsistence,Official Receiver Services,Staff Payment,900000982,7.90,
BEIS,The Insolvency Service,13/06/2018,Travel & Subsistence,Official Receiver Services,Staff Payment,900000983,7.90,
BEIS,The Insolvency Service,13/06/2018,Travel & Subsistence,Official Receiver Services,Staff Payment,900000984,15.80,
BEIS,The Insolvency Service,13/06/2018,Travel & Subsistence,Official Receiver Services,Staff Payment,900000985,7.90,
BEIS,The Insolvency Service,13/06/2018,Travel & Subsistence,Official Receiver Services,Staff Payment,900000986,7.90,
BEIS,The Insolvency Service,13/06/2018,Travel & Subsistence,Official Receiver Services,Staff Payment,900001045,41.85,
BEIS,The Insolvency Service,13/06/2018,Travel & Subsistence,Official Receiver Services,Staff Payment,900001128,4.40,
BEIS,The Insolvency Service,13/06/2018,Travel & Subsistence,Official Receiver Services,Staff Payment,900000926,22.20,
BEIS,The Insolvency Service,13/06/2018,Travel & Subsistence,Official Receiver Services,Staff Payment,900001259,11.10,
BEIS,The Insolvency Service,13/06/2018,Travel & Subsistence,Official Receiver Services,Staff Payment,900001259,11.10,
BEIS,The Insolvency Service,13/06/2018,Travel & Subsistence,Finance & Commercial,Staff Payment,900001098,2.69,
BEIS,The Insolvency Service,13/06/2018,Travel & Subsistence,Finance & Commercial,Staff Payment,900001098,4.40,
BEIS,The Insolvency Service,13/06/2018,Travel & Subsistence,Official Receiver Services,Staff Payment,900000811,27.73,
BEIS,The Insolvency Service,13/06/2018,Travel & Subsistence,Official Receiver Services,Staff Payment,900001049,5.00,
BEIS,The Insolvency Service,13/06/2018,Travel & Subsistence,Official Receiver Services,Staff Payment,900001049,3.00,
BEIS,The Insolvency Service,13/06/2018,Travel & Subsistence,Official Receiver Services,Staff Payment,900001051,15.00,
BEIS,The Insolvency Service,13/06/2018,Travel & Subsistence,Official Receiver Services,Staff Payment,900001051,5.00,
BEIS,The Insolvency Service,13/06/2018,Travel & Subsistence,Official Receiver Services,Staff Payment,900001051,4.60,
BEIS,The Insolvency Service,13/06/2018,Travel & Subsistence,Official Receiver Services,Staff Payment,900001051,7.40,
BEIS,The Insolvency Service,13/06/2018,Travel & Subsistence,Official Receiver Services,Staff Payment,900001051,5.30,
BEIS,The Insolvency Service,13/06/2018,Travel & Subsistence,Official Receiver Services,Staff Payment,900001301,4.80,
BEIS,The Insolvency Service,13/06/2018,Travel & Subsistence,Official Receiver Services,Staff Payment,900001301,4.80,
BEIS,The Insolvency Service,13/06/2018,Travel & Subsistence,Official Receiver Services,Staff Payment,900001301,5.00,
BEIS,The Insolvency Service,13/06/2018,Travel & Subsistence,Official Receiver Services,Staff Payment,900001301,15.00,
BEIS,The Insolvency Service,13/06/2018,Travel & Subsistence,Finance & Commercial,Staff Payment,900000916,238.00,
BEIS,The Insolvency Service,13/06/2018,Travel & Subsistence,Finance & Commercial,Staff Payment,900000919,2.60,
BEIS,The Insolvency Service,13/06/2018,Travel & Subsistence,Finance & Commercial,Staff Payment,900000919,2.60,
BEIS,The Insolvency Service,13/06/2018,Travel & Subsistence,Finance & Commercial,Staff Payment,900000919,2.60,
BEIS,The Insolvency Service,13/06/2018,Travel & Subsistence,Official Receiver Services,Staff Payment,900001090,5.00,
BEIS,The Insolvency Service,13/06/2018,Travel & Subsistence,Investigations & Enforcement Services,Staff Payment,900001500,11.20,
BEIS,The Insolvency Service,13/06/2018,Travel & Subsistence,Investigations & Enforcement Services,Staff Payment,900001500,9.50,
BEIS,The Insolvency Service,13/06/2018,Travel & Subsistence,Investigations & Enforcement Services,Staff Payment,900001500,5.00,
BEIS,The Insolvency Service,13/06/2018,Travel & Subsistence,Investigations & Enforcement Services,Staff Payment,900001500,8.50,
BEIS,The Insolvency Service,13/06/2018,Travel & Subsistence,Finance & Commercial,Staff Payment,900001531,88.00,
BEIS,The Insolvency Service,13/06/2018,Travel & Subsistence,Finance & Commercial,Staff Payment,900001535,90.00,
BEIS,The Insolvency Service,13/06/2018,Travel & Subsistence,Investigations & Enforcement Services,Staff Payment,900001537,7.00,
BEIS,The Insolvency Service,13/06/2018,Travel & Subsistence,Investigations & Enforcement Services,Staff Payment,900001537,15.00,
BEIS,The Insolvency Service,13/06/2018,Travel & Subsistence,Investigations & Enforcement Services,Staff Payment,900001537,3.40,
BEIS,The Insolvency Service,13/06/2018,Travel & Subsistence,Chief Executive Office,Staff Payment,900001534,16.65,
BEIS,The Insolvency Service,13/06/2018,Travel & Subsistence,Chief Executive Office,Staff Payment,900001534,16.65,
BEIS,The Insolvency Service,13/06/2018,Travel & Subsistence,Chief Executive Office,Staff Payment,900001536,17.37,
BEIS,The Insolvency Service,13/06/2018,Travel & Subsistence,Chief Executive Office,Staff Payment,900001536,17.37,
BEIS,The Insolvency Service,13/06/2018,Travel & Subsistence,Finance & Commercial,Staff Payment,900001509,9.55,
BEIS,The Insolvency Service,13/06/2018,Travel & Subsistence,Finance & Commercial,Staff Payment,900001509,7.28,
BEIS,The Insolvency Service,14/06/2018,Training Costs,Strategy & Change,Kpmg Llp,300001160,325.00,791788859
BEIS,The Insolvency Service,14/06/2018,Travel & Subsistence,Strategy & Change,Staff Payment,900001558,7.99,
BEIS,The Insolvency Service,14/06/2018,Travel & Subsistence,Strategy & Change,Staff Payment,900001558,3.50,
BEIS,The Insolvency Service,14/06/2018,Travel & Subsistence,Strategy & Change,Staff Payment,900001558,5.00,
BEIS,The Insolvency Service,14/06/2018,Travel & Subsistence,Strategy & Change,Staff Payment,900001558,3.39,
BEIS,The Insolvency Service,14/06/2018,Travel & Subsistence,Strategy & Change,Staff Payment,900001558,2.00,
BEIS,The Insolvency Service,14/06/2018,Travel & Subsistence,Strategy & Change,Staff Payment,900001558,70.65,
BEIS,The Insolvency Service,14/06/2018,Travel & Subsistence,People & Capability,Staff Payment,900001135,15.00,
BEIS,The Insolvency Service,14/06/2018,Travel & Subsistence,People & Capability,Staff Payment,900001135,5.00,
BEIS,The Insolvency Service,14/06/2018,Travel & Subsistence,People & Capability,Staff Payment,900001436,5.00,
BEIS,The Insolvency Service,14/06/2018,Travel & Subsistence,People & Capability,Staff Payment,900001436,18.45,
BEIS,The Insolvency Service,14/06/2018,Travel & Subsistence,People & Capability,Staff Payment,900001423,6.30,
BEIS,The Insolvency Service,14/06/2018,Travel & Subsistence,People & Capability,Staff Payment,900001423,20.00,
BEIS,The Insolvency Service,14/06/2018,Travel & Subsistence,People & Capability,Staff Payment,900001423,5.00,
BEIS,The Insolvency Service,14/06/2018,Travel & Subsistence,People & Capability,Staff Payment,900001423,6.30,
BEIS,The Insolvency Service,14/06/2018,Travel & Subsistence,People & Capability,Staff Payment,900001423,18.00,
BEIS,The Insolvency Service,14/06/2018,Travel & Subsistence,Official Receiver Services,Staff Payment,900000331,5.00,
BEIS,The Insolvency Service,14/06/2018,Travel & Subsistence,People & Capability,Staff Payment,900000331,10.70,
BEIS,The Insolvency Service,14/06/2018,Travel & Subsistence,Official Receiver Services,Staff Payment,900000331,4.39,
BEIS,The Insolvency Service,14/06/2018,Travel & Subsistence,Official Receiver Services,Staff Payment,900000337,15.00,
BEIS,The Insolvency Service,14/06/2018,Travel & Subsistence,People & Capability,Staff Payment,900000337,5.00,
BEIS,The Insolvency Service,14/06/2018,Travel & Subsistence,People & Capability,Staff Payment,900000337,5.00,
BEIS,The Insolvency Service,14/06/2018,Travel & Subsistence,People & Capability,Staff Payment,900000337,18.20,
BEIS,The Insolvency Service,14/06/2018,Travel & Subsistence,People & Capability,Staff Payment,900000581,18.20,
BEIS,The Insolvency Service,14/06/2018,Travel & Subsistence,People & Capability,Staff Payment,900000581,15.00,
BEIS,The Insolvency Service,14/06/2018,Travel & Subsistence,People & Capability,Staff Payment,900000581,5.00,
BEIS,The Insolvency Service,14/06/2018,Travel & Subsistence,People & Capability,Staff Payment,900000581,5.00,
BEIS,The Insolvency Service,14/06/2018,Travel & Subsistence,People & Capability,Staff Payment,900000807,5.00,
BEIS,The Insolvency Service,14/06/2018,Travel & Subsistence,People & Capability,Staff Payment,900000807,15.00,
BEIS,The Insolvency Service,14/06/2018,Travel & Subsistence,People & Capability,Staff Payment,900000807,11.20,
BEIS,The Insolvency Service,14/06/2018,Travel & Subsistence,People & Capability,Staff Payment,900000807,5.00,
BEIS,The Insolvency Service,14/06/2018,Travel & Subsistence,People & Capability,Staff Payment,900001243,5.00,
BEIS,The Insolvency Service,14/06/2018,Travel & Subsistence,People & Capability,Staff Payment,900001243,5.00,
BEIS,The Insolvency Service,14/06/2018,Travel & Subsistence,People & Capability,Staff Payment,900001243,15.00,
BEIS,The Insolvency Service,14/06/2018,Travel & Subsistence,People & Capability,Staff Payment,900001243,18.20,
BEIS,The Insolvency Service,14/06/2018,Travel & Subsistence,Official Receiver Services,Staff Payment,900001539,6.30,
BEIS,The Insolvency Service,14/06/2018,Travel & Subsistence,Official Receiver Services,Staff Payment,900001539,4.45,
BEIS,The Insolvency Service,14/06/2018,Travel & Subsistence,Official Receiver Services,Staff Payment,900001539,4.95,
BEIS,The Insolvency Service,14/06/2018,Travel & Subsistence,Investigations & Enforcement Services,Staff Payment,900001514,5.00,
BEIS,The Insolvency Service,14/06/2018,Travel & Subsistence,Investigations & Enforcement Services,Staff Payment,900001514,8.50,
BEIS,The Insolvency Service,14/06/2018,Travel & Subsistence,People & Capability,Staff Payment,900001524,10.00,
BEIS,The Insolvency Service,14/06/2018,Travel & Subsistence,People & Capability,Staff Payment,900001524,5.00,
BEIS,The Insolvency Service,14/06/2018,Travel & Subsistence,People & Capability,Staff Payment,900001524,7.00,
BEIS,The Insolvency Service,14/06/2018,Travel & Subsistence,People & Capability,Staff Payment,900001524,14.75,
BEIS,The Insolvency Service,14/06/2018,Travel & Subsistence,People & Capability,Staff Payment,900001524,50.00,
BEIS,The Insolvency Service,14/06/2018,Travel & Subsistence,People & Capability,Staff Payment,900001563,11.25,
BEIS,The Insolvency Service,14/06/2018,Travel & Subsistence,Official Receiver Services,Staff Payment,900000649,35.75,
BEIS,The Insolvency Service,14/06/2018,Travel & Subsistence,Official Receiver Services,Staff Payment,900000649,8.85,
BEIS,The Insolvency Service,14/06/2018,Travel & Subsistence,Official Receiver Services,Staff Payment,900000649,5.00,
BEIS,The Insolvency Service,14/06/2018,Travel & Subsistence,Official Receiver Services,Staff Payment,900000649,10.00,
BEIS,The Insolvency Service,14/06/2018,Travel & Subsistence,Investigations & Enforcement Services,Staff Payment,900001552,25.00,
BEIS,The Insolvency Service,14/06/2018,Travel & Subsistence,Investigations & Enforcement Services,Staff Payment,900001552,25.00,
BEIS,The Insolvency Service,14/06/2018,Travel & Subsistence,Investigations & Enforcement Services,Staff Payment,900001552,65.00,
BEIS,The Insolvency Service,14/06/2018,Travel & Subsistence,Investigations & Enforcement Services,Staff Payment,900001552,20.00,
BEIS,The Insolvency Service,14/06/2018,Travel & Subsistence,Information & Technology,Staff Payment,900001555,12.00,
BEIS,The Insolvency Service,14/06/2018,Travel & Subsistence,Information & Technology,Staff Payment,900001555,27.00,
BEIS,The Insolvency Service,14/06/2018,Insolvency Case Related Costs,Official Receiver Services,Insolvency Service,300001234,20.00,
BEIS,The Insolvency Service,15/06/2018,Insolvency Case Related Costs,Official Receiver Services,Williams Lea Ltd,300001207,74.58,662774703
BEIS,The Insolvency Service,18/06/2018,Travel & Subsistence,Official Receiver Services,Staff Payment,900001570,23.99,
BEIS,The Insolvency Service,18/06/2018,Travel & Subsistence,Official Receiver Services,Staff Payment,900001570,5.00,
BEIS,The Insolvency Service,18/06/2018,Travel & Subsistence,Official Receiver Services,Staff Payment,900001570,20.16,
BEIS,The Insolvency Service,18/06/2018,Travel & Subsistence,Business Service Division,Staff Payment,900001627,91.80,
BEIS,The Insolvency Service,18/06/2018,Travel & Subsistence,Finance & Commercial,Staff Payment,900001601,15.00,
BEIS,The Insolvency Service,18/06/2018,Travel & Subsistence,Finance & Commercial,Staff Payment,900001601,4.49,
BEIS,The Insolvency Service,18/06/2018,Travel & Subsistence,Finance & Commercial,Staff Payment,900001601,5.00,
BEIS,The Insolvency Service,18/06/2018,Travel & Subsistence,Investigations & Enforcement Services,Staff Payment,900001546,35.10,
BEIS,The Insolvency Service,18/06/2018,Travel & Subsistence,Investigations & Enforcement Services,Staff Payment,900001546,35.10,
BEIS,The Insolvency Service,18/06/2018,Travel & Subsistence,Investigations & Enforcement Services,Staff Payment,900001546,24.30,
BEIS,The Insolvency Service,18/06/2018,Travel & Subsistence,Investigations & Enforcement Services,Staff Payment,900001546,24.30,
BEIS,The Insolvency Service,18/06/2018,Travel & Subsistence,Chief Executive Office,Staff Payment,900001559,4.60,
BEIS,The Insolvency Service,18/06/2018,Travel & Subsistence,Investigations & Enforcement Services,Staff Payment,900001556,4.00,
BEIS,The Insolvency Service,18/06/2018,Travel & Subsistence,Investigations & Enforcement Services,Staff Payment,900001556,9.70,
BEIS,The Insolvency Service,18/06/2018,Travel & Subsistence,Business Service Division,Staff Payment,900001618,132.50,
BEIS,The Insolvency Service,18/06/2018,Travel & Subsistence,Business Service Division,Staff Payment,900001618,5.00,
BEIS,The Insolvency Service,18/06/2018,Travel & Subsistence,Business Service Division,Staff Payment,900001618,5.00,
BEIS,The Insolvency Service,18/06/2018,Travel & Subsistence,Business Service Division,Staff Payment,900001618,16.80,
BEIS,The Insolvency Service,18/06/2018,Travel & Subsistence,Strategy & Change,Staff Payment,900001307,37.20,
BEIS,The Insolvency Service,18/06/2018,Travel & Subsistence,Strategy & Change,Staff Payment,900001308,26.40,
BEIS,The Insolvency Service,18/06/2018,Travel & Subsistence,Strategy & Change,Staff Payment,900001310,26.40,
BEIS,The Insolvency Service,18/06/2018,Travel & Subsistence,Official Receiver Services,Staff Payment,900000705,3.00,
BEIS,The Insolvency Service,18/06/2018,Travel & Subsistence,Official Receiver Services,Staff Payment,900000705,25.20,
BEIS,The Insolvency Service,18/06/2018,Travel & Subsistence,Official Receiver Services,Staff Payment,900001645,2.10,
BEIS,The Insolvency Service,18/06/2018,Travel & Subsistence,Official Receiver Services,Staff Payment,900001645,8.10,
BEIS,The Insolvency Service,18/06/2018,Travel & Subsistence,People & Capability,Staff Payment,900001597,5.00,
BEIS,The Insolvency Service,18/06/2018,Travel & Subsistence,People & Capability,Staff Payment,900001598,3.69,
BEIS,The Insolvency Service,18/06/2018,Travel & Subsistence,Finance & Commercial,Staff Payment,900001258,5.00,
BEIS,The Insolvency Service,18/06/2018,Travel & Subsistence,Official Receiver Services,Staff Payment,900001594,3.60,
BEIS,The Insolvency Service,18/06/2018,Travel & Subsistence,Finance & Commercial,Staff Payment,900001602,77.85,
BEIS,The Insolvency Service,18/06/2018,Travel & Subsistence,Business Service Division,Staff Payment,900001642,3.70,
BEIS,The Insolvency Service,18/06/2018,Travel & Subsistence,Business Service Division,Staff Payment,900001642,15.00,
BEIS,The Insolvency Service,18/06/2018,Travel & Subsistence,Business Service Division,Staff Payment,900001642,4.50,
BEIS,The Insolvency Service,18/06/2018,Travel & Subsistence,Official Receiver Services,Staff Payment,900001540,14.50,
BEIS,The Insolvency Service,18/06/2018,Travel & Subsistence,Official Receiver Services,Staff Payment,900001567,45.45,
BEIS,The Insolvency Service,18/06/2018,Travel & Subsistence,Official Receiver Services,Staff Payment,900001567,5.60,
BEIS,The Insolvency Service,18/06/2018,Travel & Subsistence,Official Receiver Services,Staff Payment,900001567,9.20,
BEIS,The Insolvency Service,18/06/2018,Travel & Subsistence,Official Receiver Services,Staff Payment,900001568,45.90,
BEIS,The Insolvency Service,18/06/2018,Travel & Subsistence,Official Receiver Services,Staff Payment,900001568,5.00,
BEIS,The Insolvency Service,18/06/2018,Travel & Subsistence,Investigations & Enforcement Services,Staff Payment,900001584,86.40,
BEIS,The Insolvency Service,18/06/2018,Travel & Subsistence,Investigations & Enforcement Services,Staff Payment,900001584,5.00,
BEIS,The Insolvency Service,18/06/2018,Travel & Subsistence,Strategy & Change,Staff Payment,900001396,20.00,
BEIS,The Insolvency Service,18/06/2018,Travel & Subsistence,Strategy & Change,Staff Payment,900001396,47.12,
BEIS,The Insolvency Service,18/06/2018,Travel & Subsistence,Strategy & Change,Staff Payment,900001396,10.00,
BEIS,The Insolvency Service,18/06/2018,Travel & Subsistence,Strategy & Change,Staff Payment,900001396,31.54,
BEIS,The Insolvency Service,18/06/2018,Travel & Subsistence,Official Receiver Services,Staff Payment,900001481,17.00,
BEIS,The Insolvency Service,18/06/2018,Travel & Subsistence,Official Receiver Services,Staff Payment,900001504,24.80,
BEIS,The Insolvency Service,18/06/2018,Travel & Subsistence,Official Receiver Services,Staff Payment,900001504,18.99,
BEIS,The Insolvency Service,18/06/2018,Travel & Subsistence,Official Receiver Services,Staff Payment,900001418,4.00,
BEIS,The Insolvency Service,18/06/2018,Travel & Subsistence,Official Receiver Services,Staff Payment,900001418,62.10,
BEIS,The Insolvency Service,18/06/2018,Travel & Subsistence,Official Receiver Services,Staff Payment,900001418,39.60,
BEIS,The Insolvency Service,18/06/2018,Travel & Subsistence,Official Receiver Services,Staff Payment,900001418,1.70,
BEIS,The Insolvency Service,18/06/2018,Travel & Subsistence,Official Receiver Services,Staff Payment,900001418,8.10,
BEIS,The Insolvency Service,18/06/2018,Travel & Subsistence,Official Receiver Services,Staff Payment,900001418,1.50,
BEIS,The Insolvency Service,18/06/2018,Travel & Subsistence,Information & Technology,Staff Payment,900001643,116.50,
BEIS,The Insolvency Service,18/06/2018,Travel & Subsistence,Information & Technology,Staff Payment,900001643,8.00,
BEIS,The Insolvency Service,18/06/2018,Travel & Subsistence,Official Receiver Services,Staff Payment,900001633,9.30,
BEIS,The Insolvency Service,18/06/2018,Travel & Subsistence,Strategy & Change,Staff Payment,900001587,5.00,
BEIS,The Insolvency Service,18/06/2018,Travel & Subsistence,Strategy & Change,Staff Payment,900001587,5.00,
BEIS,The Insolvency Service,18/06/2018,Travel & Subsistence,Strategy & Change,Staff Payment,900001587,14.00,
BEIS,The Insolvency Service,18/06/2018,Travel & Subsistence,Strategy & Change,Staff Payment,900001587,4.70,
BEIS,The Insolvency Service,18/06/2018,Travel & Subsistence,Business Service Division,Staff Payment,900001619,3.00,
BEIS,The Insolvency Service,18/06/2018,Travel & Subsistence,Business Service Division,Staff Payment,900001619,5.00,
BEIS,The Insolvency Service,18/06/2018,Travel & Subsistence,Chief Executive Office,Staff Payment,900001653,14.50,
BEIS,The Insolvency Service,18/06/2018,Travel & Subsistence,Chief Executive Office,Staff Payment,900001653,14.50,
BEIS,The Insolvency Service,18/06/2018,Travel & Subsistence,Business Service Division,Staff Payment,900001636,8.30,
BEIS,The Insolvency Service,18/06/2018,Travel & Subsistence,Business Service Division,Staff Payment,900001636,5.00,
BEIS,The Insolvency Service,18/06/2018,Travel & Subsistence,Business Service Division,Staff Payment,900001636,8.10,
BEIS,The Insolvency Service,18/06/2018,Travel & Subsistence,Business Service Division,Staff Payment,900001637,5.00,
BEIS,The Insolvency Service,18/06/2018,Travel & Subsistence,Business Service Division,Staff Payment,900001637,15.00,
BEIS,The Insolvency Service,18/06/2018,Travel & Subsistence,Official Receiver Services,Staff Payment,900001634,3.19,
BEIS,The Insolvency Service,18/06/2018,Travel & Subsistence,Official Receiver Services,Staff Payment,900001634,10.00,
BEIS,The Insolvency Service,18/06/2018,Travel & Subsistence,Criminal Enforcement Team,Staff Payment,900001610,12.95,
BEIS,The Insolvency Service,18/06/2018,Travel & Subsistence,Criminal Enforcement Team,Staff Payment,900001610,7.00,
BEIS,The Insolvency Service,18/06/2018,Travel & Subsistence,Criminal Enforcement Team,Staff Payment,900001610,5.80,
BEIS,The Insolvency Service,18/06/2018,Travel & Subsistence,Criminal Enforcement Team,Staff Payment,900001610,4.70,
BEIS,The Insolvency Service,18/06/2018,Travel & Subsistence,Finance & Commercial,Staff Payment,900001554,2.40,
BEIS,The Insolvency Service,18/06/2018,Travel & Subsistence,Finance & Commercial,Staff Payment,900001554,4.79,
BEIS,The Insolvency Service,18/06/2018,Travel & Subsistence,Finance & Commercial,Staff Payment,900001554,2.40,
BEIS,The Insolvency Service,18/06/2018,Computer and IT Systems,Information & Technology,Vodafone - Cable & Wireless Communications,300001179,240.00,569953277
BEIS,The Insolvency Service,18/06/2018,Investigation & Enforcement Costs,Criminal Enforcement Team,Trinity Barristers,300001250,198.00,744811039
BEIS,The Insolvency Service,18/06/2018,Investigation & Enforcement Costs,Criminal Enforcement Team,Trinity Barristers,300001251,942.00,744811039
BEIS,The Insolvency Service,18/06/2018,Computer and IT Systems,Official Receiver Services,Royal Mail,300001291,21.90,243170002
BEIS,The Insolvency Service,18/06/2018,Travel & Subsistence,Business Service Division,Staff Payment,900001482,16.45,
BEIS,The Insolvency Service,19/06/2018,Investigation & Enforcement Costs,Investigations & Enforcement Services,Dwf Solicitors,300001028,67674.69,
BEIS,The Insolvency Service,19/06/2018,Insolvency Case Related Costs,Finance & Commercial,Insolvency Service,300001252,1206.38,
BEIS,The Insolvency Service,19/06/2018,Insolvency Case Related Costs,Finance & Commercial,Insolvency Service,300001253,99.97,
BEIS,The Insolvency Service,19/06/2018,Insolvency Case Related Costs,Finance & Commercial,Insolvency Service,300001254,333.84,
BEIS,The Insolvency Service,20/06/2018,Travel & Subsistence,Investigations & Enforcement Services,Staff Payment,900001663,9.55,
BEIS,The Insolvency Service,20/06/2018,Travel & Subsistence,Investigations & Enforcement Services,Staff Payment,900001663,6.70,
BEIS,The Insolvency Service,20/06/2018,Travel & Subsistence,Investigations & Enforcement Services,Staff Payment,900001663,75.60,
BEIS,The Insolvency Service,20/06/2018,Travel & Subsistence,Investigations & Enforcement Services,Staff Payment,900001663,37.80,
BEIS,The Insolvency Service,20/06/2018,Travel & Subsistence,Investigations & Enforcement Services,Staff Payment,900001663,30.80,
BEIS,The Insolvency Service,20/06/2018,Travel & Subsistence,Investigations & Enforcement Services,Staff Payment,900001665,4.15,
BEIS,The Insolvency Service,20/06/2018,Travel & Subsistence,Investigations & Enforcement Services,Staff Payment,900001665,5.00,
BEIS,The Insolvency Service,20/06/2018,Travel & Subsistence,Investigations & Enforcement Services,Staff Payment,900001665,37.80,
BEIS,The Insolvency Service,20/06/2018,Travel & Subsistence,Investigations & Enforcement Services,Staff Payment,900001665,9.90,
BEIS,The Insolvency Service,20/06/2018,Travel & Subsistence,Official Receiver Services,Staff Payment,900001694,7.90,
BEIS,The Insolvency Service,20/06/2018,Travel & Subsistence,Official Receiver Services,Staff Payment,900001677,5.00,
BEIS,The Insolvency Service,20/06/2018,Travel & Subsistence,Business Service Division,Staff Payment,900000751,4.50,
BEIS,The Insolvency Service,20/06/2018,Travel & Subsistence,Business Service Division,Staff Payment,900000751,5.00,
BEIS,The Insolvency Service,20/06/2018,Travel & Subsistence,Business Service Division,Staff Payment,900000751,5.00,
BEIS,The Insolvency Service,20/06/2018,Travel & Subsistence,Business Service Division,Staff Payment,900000751,3.24,
BEIS,The Insolvency Service,20/06/2018,Travel & Subsistence,Business Service Division,Staff Payment,900000751,3.80,
BEIS,The Insolvency Service,20/06/2018,Travel & Subsistence,Business Service Division,Staff Payment,900000751,5.33,
BEIS,The Insolvency Service,20/06/2018,Travel & Subsistence,Official Receiver Services,Staff Payment,900001695,5.00,
BEIS,The Insolvency Service,20/06/2018,Travel & Subsistence,People & Capability,Staff Payment,900001599,18.75,
BEIS,The Insolvency Service,20/06/2018,Travel & Subsistence,People & Capability,Staff Payment,900001599,18.00,
BEIS,The Insolvency Service,20/06/2018,Travel & Subsistence,People & Capability,Staff Payment,900001599,27.00,
BEIS,The Insolvency Service,20/06/2018,Travel & Subsistence,People & Capability,Staff Payment,900001599,20.00,
BEIS,The Insolvency Service,20/06/2018,Travel & Subsistence,People & Capability,Staff Payment,900001599,5.00,
BEIS,The Insolvency Service,20/06/2018,Travel & Subsistence,People & Capability,Staff Payment,900001600,14.50,
BEIS,The Insolvency Service,20/06/2018,Travel & Subsistence,Investigations & Enforcement Services,Staff Payment,900001671,5.00,
BEIS,The Insolvency Service,20/06/2018,Travel & Subsistence,Investigations & Enforcement Services,Staff Payment,900001671,3.48,
BEIS,The Insolvency Service,20/06/2018,Travel & Subsistence,Investigations & Enforcement Services,Staff Payment,900001671,2.70,
BEIS,The Insolvency Service,20/06/2018,Travel & Subsistence,Investigations & Enforcement Services,Staff Payment,900001671,14.95,
BEIS,The Insolvency Service,20/06/2018,Travel & Subsistence,Investigations & Enforcement Services,Staff Payment,900001671,4.70,
BEIS,The Insolvency Service,20/06/2018,Travel & Subsistence,Investigations & Enforcement Services,Staff Payment,900001672,2.00,
BEIS,The Insolvency Service,20/06/2018,Travel & Subsistence,Investigations & Enforcement Services,Staff Payment,900001672,20.00,
BEIS,The Insolvency Service,20/06/2018,Travel & Subsistence,Investigations & Enforcement Services,Staff Payment,900001672,4.48,
BEIS,The Insolvency Service,20/06/2018,Travel & Subsistence,Investigations & Enforcement Services,Staff Payment,900001672,4.70,
BEIS,The Insolvency Service,20/06/2018,Travel & Subsistence,Investigations & Enforcement Services,Staff Payment,900001609,5.00,
BEIS,The Insolvency Service,20/06/2018,Travel & Subsistence,Investigations & Enforcement Services,Staff Payment,900001609,22.70,
BEIS,The Insolvency Service,20/06/2018,Travel & Subsistence,Investigations & Enforcement Services,Staff Payment,900001532,4.80,
BEIS,The Insolvency Service,20/06/2018,Travel & Subsistence,Investigations & Enforcement Services,Staff Payment,900001532,12.00,
BEIS,The Insolvency Service,20/06/2018,Travel & Subsistence,Investigations & Enforcement Services,Staff Payment,900001532,8.19,
BEIS,The Insolvency Service,20/06/2018,Travel & Subsistence,Investigations & Enforcement Services,Staff Payment,900001533,3.10,
BEIS,The Insolvency Service,20/06/2018,Travel & Subsistence,Investigations & Enforcement Services,Staff Payment,900001533,12.00,
BEIS,The Insolvency Service,20/06/2018,Travel & Subsistence,Investigations & Enforcement Services,Staff Payment,900001617,7.20,
BEIS,The Insolvency Service,20/06/2018,Travel & Subsistence,Investigations & Enforcement Services,Staff Payment,900001617,4.84,
BEIS,The Insolvency Service,20/06/2018,Travel & Subsistence,Investigations & Enforcement Services,Staff Payment,900001617,7.20,
BEIS,The Insolvency Service,20/06/2018,Travel & Subsistence,Investigations & Enforcement Services,Staff Payment,900001617,5.00,
BEIS,The Insolvency Service,20/06/2018,Travel & Subsistence,Investigations & Enforcement Services,Staff Payment,900001620,5.00,
BEIS,The Insolvency Service,20/06/2018,Travel & Subsistence,Investigations & Enforcement Services,Staff Payment,900001620,7.20,
BEIS,The Insolvency Service,20/06/2018,Travel & Subsistence,Investigations & Enforcement Services,Staff Payment,900001620,4.75,
BEIS,The Insolvency Service,20/06/2018,Travel & Subsistence,Investigations & Enforcement Services,Staff Payment,900001620,7.50,
BEIS,The Insolvency Service,20/06/2018,Travel & Subsistence,Finance & Commercial,Staff Payment,900000941,5.00,
BEIS,The Insolvency Service,20/06/2018,Travel & Subsistence,Official Receiver Services,Staff Payment,900001661,30.00,
BEIS,The Insolvency Service,20/06/2018,Travel & Subsistence,Official Receiver Services,Staff Payment,900001661,10.00,
BEIS,The Insolvency Service,20/06/2018,Travel & Subsistence,Official Receiver Services,Staff Payment,900001661,15.00,
BEIS,The Insolvency Service,20/06/2018,Travel & Subsistence,Official Receiver Services,Staff Payment,900001704,16.40,
BEIS,The Insolvency Service,20/06/2018,Travel & Subsistence,Official Receiver Services,Staff Payment,900001704,11.95,
BEIS,The Insolvency Service,20/06/2018,Travel & Subsistence,Official Receiver Services,Staff Payment,900001704,26.35,
BEIS,The Insolvency Service,20/06/2018,Travel & Subsistence,Official Receiver Services,Staff Payment,900001704,15.00,
BEIS,The Insolvency Service,20/06/2018,Travel & Subsistence,Official Receiver Services,Staff Payment,900001703,15.00,
BEIS,The Insolvency Service,20/06/2018,Travel & Subsistence,Official Receiver Services,Staff Payment,900001703,23.45,
BEIS,The Insolvency Service,20/06/2018,Travel & Subsistence,Official Receiver Services,Staff Payment,900001703,15.00,
BEIS,The Insolvency Service,20/06/2018,Travel & Subsistence,Official Receiver Services,Staff Payment,900001703,15.00,
BEIS,The Insolvency Service,20/06/2018,Travel & Subsistence,Official Receiver Services,Staff Payment,900001703,4.72,
BEIS,The Insolvency Service,20/06/2018,Travel & Subsistence,Business Service Division,Staff Payment,900001698,49.55,
BEIS,The Insolvency Service,20/06/2018,Travel & Subsistence,Business Service Division,Staff Payment,900001698,13.75,
BEIS,The Insolvency Service,20/06/2018,Travel & Subsistence,Business Service Division,Staff Payment,900001698,14.55,
BEIS,The Insolvency Service,20/06/2018,Travel & Subsistence,Business Service Division,Staff Payment,900001698,20.00,
BEIS,The Insolvency Service,20/06/2018,Travel & Subsistence,Official Receiver Services,Staff Payment,900001593,24.30,
BEIS,The Insolvency Service,20/06/2018,Travel & Subsistence,Official Receiver Services,Staff Payment,900001593,24.30,
BEIS,The Insolvency Service,20/06/2018,Travel & Subsistence,Investigations & Enforcement Services,Staff Payment,900001690,5.00,
BEIS,The Insolvency Service,20/06/2018,Travel & Subsistence,Official Receiver Services,Staff Payment,900001705,457.90,
BEIS,The Insolvency Service,20/06/2018,Travel & Subsistence,Official Receiver Services,Staff Payment,900001631,42.30,
BEIS,The Insolvency Service,20/06/2018,Travel & Subsistence,Official Receiver Services,Staff Payment,900001631,5.00,
BEIS,The Insolvency Service,20/06/2018,Travel & Subsistence,Official Receiver Services,Staff Payment,900001467,36.90,
BEIS,The Insolvency Service,20/06/2018,Travel & Subsistence,Business Service Division,Staff Payment,900000634,5.00,
BEIS,The Insolvency Service,20/06/2018,Travel & Subsistence,Business Service Division,Staff Payment,900000634,14.60,
BEIS,The Insolvency Service,20/06/2018,Travel & Subsistence,Business Service Division,Staff Payment,900000634,5.00,
BEIS,The Insolvency Service,20/06/2018,Travel & Subsistence,Business Service Division,Staff Payment,900000634,4.50,
BEIS,The Insolvency Service,20/06/2018,Travel & Subsistence,Business Service Division,Staff Payment,900000634,4.50,
BEIS,The Insolvency Service,20/06/2018,Travel & Subsistence,Business Service Division,Staff Payment,900001525,5.00,
BEIS,The Insolvency Service,20/06/2018,Travel & Subsistence,Business Service Division,Staff Payment,900001525,5.00,
BEIS,The Insolvency Service,20/06/2018,Travel & Subsistence,Business Service Division,Staff Payment,900001525,15.00,
BEIS,The Insolvency Service,20/06/2018,Travel & Subsistence,Business Service Division,Staff Payment,900001525,6.70,
BEIS,The Insolvency Service,20/06/2018,Travel & Subsistence,Business Service Division,Staff Payment,900001525,5.00,
BEIS,The Insolvency Service,20/06/2018,Travel & Subsistence,Business Service Division,Staff Payment,900001525,3.50,
BEIS,The Insolvency Service,20/06/2018,Travel & Subsistence,Business Service Division,Staff Payment,900001525,12.90,
BEIS,The Insolvency Service,20/06/2018,Travel & Subsistence,Business Service Division,Staff Payment,900001525,6.00,
BEIS,The Insolvency Service,20/06/2018,Travel & Subsistence,Business Service Division,Staff Payment,900001640,5.00,
BEIS,The Insolvency Service,20/06/2018,Travel & Subsistence,Business Service Division,Staff Payment,900001640,17.50,
BEIS,The Insolvency Service,20/06/2018,Travel & Subsistence,Business Service Division,Staff Payment,900001640,2.00,
BEIS,The Insolvency Service,20/06/2018,Travel & Subsistence,Business Service Division,Staff Payment,900001640,17.50,
BEIS,The Insolvency Service,20/06/2018,Travel & Subsistence,Official Receiver Services,Staff Payment,900001357,21.90,
BEIS,The Insolvency Service,20/06/2018,Travel & Subsistence,Official Receiver Services,Staff Payment,900001357,10.60,
BEIS,The Insolvency Service,20/06/2018,Travel & Subsistence,Official Receiver Services,Staff Payment,900001359,6.30,
BEIS,The Insolvency Service,20/06/2018,Travel & Subsistence,Strategy & Change,Staff Payment,900001662,25.00,
BEIS,The Insolvency Service,20/06/2018,Travel & Subsistence,Strategy & Change,Staff Payment,900001662,5.50,
BEIS,The Insolvency Service,20/06/2018,Travel & Subsistence,Strategy & Change,Staff Payment,900001662,7.00,
BEIS,The Insolvency Service,20/06/2018,Travel & Subsistence,Strategy & Change,Staff Payment,900001662,3.98,
BEIS,The Insolvency Service,20/06/2018,Travel & Subsistence,Strategy & Change,Staff Payment,900001662,5.00,
BEIS,The Insolvency Service,20/06/2018,Travel & Subsistence,Official Receiver Services,Staff Payment,900001654,24.80,
BEIS,The Insolvency Service,20/06/2018,Travel & Subsistence,Official Receiver Services,Staff Payment,900001557,5.00,
BEIS,The Insolvency Service,20/06/2018,Travel & Subsistence,Official Receiver Services,Staff Payment,900001557,4.95,
BEIS,The Insolvency Service,20/06/2018,Travel & Subsistence,Official Receiver Services,Staff Payment,900001557,4.40,
BEIS,The Insolvency Service,20/06/2018,Travel & Subsistence,Official Receiver Services,Staff Payment,900001557,5.00,
BEIS,The Insolvency Service,20/06/2018,Travel & Subsistence,Official Receiver Services,Staff Payment,900001557,1.70,
BEIS,The Insolvency Service,20/06/2018,Travel & Subsistence,Chief Executive Office,Staff Payment,900001681,15.00,
BEIS,The Insolvency Service,20/06/2018,Travel & Subsistence,Investigations & Enforcement Services,Staff Payment,900001346,3.65,
BEIS,The Insolvency Service,20/06/2018,Travel & Subsistence,Investigations & Enforcement Services,Staff Payment,900001346,3.00,
BEIS,The Insolvency Service,20/06/2018,Travel & Subsistence,Investigations & Enforcement Services,Staff Payment,900001346,5.00,
BEIS,The Insolvency Service,20/06/2018,Travel & Subsistence,Investigations & Enforcement Services,Staff Payment,900001346,25.19,
BEIS,The Insolvency Service,20/06/2018,Travel & Subsistence,Investigations & Enforcement Services,Staff Payment,900001560,35.09,
BEIS,The Insolvency Service,20/06/2018,Travel & Subsistence,Investigations & Enforcement Services,Staff Payment,900001560,3.00,
BEIS,The Insolvency Service,20/06/2018,Travel & Subsistence,Investigations & Enforcement Services,Staff Payment,900001560,2.70,
BEIS,The Insolvency Service,20/06/2018,Travel & Subsistence,Investigations & Enforcement Services,Staff Payment,900001560,5.00,
BEIS,The Insolvency Service,20/06/2018,Travel & Subsistence,Investigations & Enforcement Services,Staff Payment,900001560,13.45,
BEIS,The Insolvency Service,20/06/2018,Travel & Subsistence,Official Receiver Services,Staff Payment,900001700,2.00,
BEIS,The Insolvency Service,20/06/2018,Travel & Subsistence,Investigations & Enforcement Services,Staff Payment,900001644,31.50,
BEIS,The Insolvency Service,20/06/2018,Travel & Subsistence,Investigations & Enforcement Services,Staff Payment,900001644,37.80,
BEIS,The Insolvency Service,20/06/2018,Travel & Subsistence,Investigations & Enforcement Services,Staff Payment,900001644,3.00,
BEIS,The Insolvency Service,20/06/2018,Travel & Subsistence,Investigations & Enforcement Services,Staff Payment,900001644,51.30,
BEIS,The Insolvency Service,20/06/2018,Travel & Subsistence,Investigations & Enforcement Services,Staff Payment,900001644,48.60,
BEIS,The Insolvency Service,20/06/2018,Travel & Subsistence,Investigations & Enforcement Services,Staff Payment,900001644,2.50,
BEIS,The Insolvency Service,20/06/2018,Travel & Subsistence,Investigations & Enforcement Services,Staff Payment,900001644,3.34,
BEIS,The Insolvency Service,20/06/2018,Travel & Subsistence,Investigations & Enforcement Services,Staff Payment,900001644,3.34,
BEIS,The Insolvency Service,20/06/2018,Travel & Subsistence,Investigations & Enforcement Services,Staff Payment,900001644,3.34,
BEIS,The Insolvency Service,20/06/2018,Travel & Subsistence,Investigations & Enforcement Services,Staff Payment,900001644,5.00,
BEIS,The Insolvency Service,20/06/2018,Travel & Subsistence,Investigations & Enforcement Services,Staff Payment,900001644,5.00,
BEIS,The Insolvency Service,20/06/2018,Travel & Subsistence,Investigations & Enforcement Services,Staff Payment,900001644,5.00,
BEIS,The Insolvency Service,20/06/2018,Travel & Subsistence,Investigations & Enforcement Services,Staff Payment,900001644,5.00,
BEIS,The Insolvency Service,20/06/2018,Travel & Subsistence,Investigations & Enforcement Services,Staff Payment,900001644,5.00,
BEIS,The Insolvency Service,20/06/2018,Travel & Subsistence,Investigations & Enforcement Services,Staff Payment,900001644,5.00,
BEIS,The Insolvency Service,20/06/2018,Travel & Subsistence,Investigations & Enforcement Services,Staff Payment,900001644,5.00,
BEIS,The Insolvency Service,20/06/2018,Travel & Subsistence,Investigations & Enforcement Services,Staff Payment,900001644,3.34,
BEIS,The Insolvency Service,20/06/2018,Travel & Subsistence,Investigations & Enforcement Services,Staff Payment,900001644,4.45,
BEIS,The Insolvency Service,20/06/2018,Travel & Subsistence,Investigations & Enforcement Services,Staff Payment,900001644,3.80,
BEIS,The Insolvency Service,20/06/2018,Travel & Subsistence,Investigations & Enforcement Services,Staff Payment,900001644,38.70,
BEIS,The Insolvency Service,20/06/2018,Travel & Subsistence,Investigations & Enforcement Services,Staff Payment,900001644,63.90,
BEIS,The Insolvency Service,20/06/2018,Travel & Subsistence,Investigations & Enforcement Services,Staff Payment,900001372,6.75,
BEIS,The Insolvency Service,20/06/2018,Travel & Subsistence,Investigations & Enforcement Services,Staff Payment,900001372,23.00,
BEIS,The Insolvency Service,20/06/2018,Travel & Subsistence,Investigations & Enforcement Services,Staff Payment,900001372,6.75,
BEIS,The Insolvency Service,20/06/2018,Travel & Subsistence,Investigations & Enforcement Services,Staff Payment,900001372,6.75,
BEIS,The Insolvency Service,20/06/2018,Travel & Subsistence,Investigations & Enforcement Services,Staff Payment,900001372,34.50,
BEIS,The Insolvency Service,20/06/2018,Travel & Subsistence,Investigations & Enforcement Services,Staff Payment,900001372,52.20,
BEIS,The Insolvency Service,20/06/2018,Travel & Subsistence,Investigations & Enforcement Services,Staff Payment,900001372,11.49,
BEIS,The Insolvency Service,20/06/2018,Travel & Subsistence,Investigations & Enforcement Services,Staff Payment,900001372,15.00,
BEIS,The Insolvency Service,20/06/2018,Travel & Subsistence,Investigations & Enforcement Services,Staff Payment,900001372,23.00,
BEIS,The Insolvency Service,20/06/2018,Travel & Subsistence,Investigations & Enforcement Services,Staff Payment,900001372,6.75,
BEIS,The Insolvency Service,20/06/2018,Travel & Subsistence,Investigations & Enforcement Services,Staff Payment,900001372,6.75,
BEIS,The Insolvency Service,20/06/2018,Travel & Subsistence,Investigations & Enforcement Services,Staff Payment,900001372,6.75,
BEIS,The Insolvency Service,20/06/2018,Travel & Subsistence,Investigations & Enforcement Services,Staff Payment,900001372,52.20,
BEIS,The Insolvency Service,20/06/2018,Travel & Subsistence,Investigations & Enforcement Services,Staff Payment,900001372,15.00,
BEIS,The Insolvency Service,20/06/2018,Travel & Subsistence,Investigations & Enforcement Services,Staff Payment,900001372,15.00,
BEIS,The Insolvency Service,20/06/2018,Travel & Subsistence,Investigations & Enforcement Services,Staff Payment,900001372,15.00,
BEIS,The Insolvency Service,20/06/2018,Travel & Subsistence,Investigations & Enforcement Services,Staff Payment,900001420,16.80,
BEIS,The Insolvency Service,20/06/2018,Travel & Subsistence,Investigations & Enforcement Services,Staff Payment,900001502,5.00,
BEIS,The Insolvency Service,20/06/2018,Travel & Subsistence,Investigations & Enforcement Services,Staff Payment,900001502,8.00,
BEIS,The Insolvency Service,20/06/2018,Travel & Subsistence,Investigations & Enforcement Services,Staff Payment,900001583,4.20,
BEIS,The Insolvency Service,20/06/2018,Travel & Subsistence,Investigations & Enforcement Services,Staff Payment,900001583,5.00,
BEIS,The Insolvency Service,20/06/2018,Travel & Subsistence,Investigations & Enforcement Services,Staff Payment,900001675,1.70,
BEIS,The Insolvency Service,20/06/2018,Travel & Subsistence,Investigations & Enforcement Services,Staff Payment,900001675,15.00,
BEIS,The Insolvency Service,20/06/2018,Travel & Subsistence,Investigations & Enforcement Services,Staff Payment,900001675,2.45,
BEIS,The Insolvency Service,20/06/2018,Travel & Subsistence,Investigations & Enforcement Services,Staff Payment,900001675,9.49,
BEIS,The Insolvency Service,20/06/2018,Travel & Subsistence,Official Receiver Services,Staff Payment,900001589,3.35,
BEIS,The Insolvency Service,20/06/2018,Travel & Subsistence,Official Receiver Services,Staff Payment,900001590,5.00,
BEIS,The Insolvency Service,20/06/2018,Travel & Subsistence,Official Receiver Services,Staff Payment,900001586,5.00,
BEIS,The Insolvency Service,20/06/2018,Travel & Subsistence,Official Receiver Services,Staff Payment,900001591,15.00,
BEIS,The Insolvency Service,20/06/2018,Travel & Subsistence,Official Receiver Services,Staff Payment,900001592,5.00,
BEIS,The Insolvency Service,20/06/2018,Travel & Subsistence,Official Receiver Services,Staff Payment,900001656,5.00,
BEIS,The Insolvency Service,22/06/2018,Accomodation,Finance & Commercial,Cbre Limited,300001156,3441.56,
BEIS,The Insolvency Service,22/06/2018,Computer and IT Systems,Investigations & Enforcement Services,Tnt Uk Ltd,300001138,35.99,354715057
BEIS,The Insolvency Service,22/06/2018,Computer and IT Systems,Investigations & Enforcement Services,Tnt Uk Ltd,300001140,86.95,354715057
